Body Name,Body,Service Label,Service Code,CIPFA Detailed Expenditure Type,CIPFA Detailed Expenditure Code,Date,Transaction Number,Net Amount,Supplier Name,,,,,,,,,Jun
Nottinghamshire County Council,1111/1001,Surplus or Deficit from Trading Undertak,TRADING,Premises Related,BJA,11/04/2012,01-10001,679.05,Biffa Waste Services Ltd,,,,,,,,,
Nottinghamshire County Council,1111/1001,Surplus or Deficit from Trading Undertak,TRADING,Supplies & Services,DDA,12/04/2012,01-10001,790.4,Hamelin Paperbrands Ltd,,,,,,,,,
Nottinghamshire County Council,1111/1001,Surplus or Deficit from Trading Undertak,TRADING,Supplies & Services,DDA,12/04/2012,01-10001,1994.2,Hamelin Paperbrands Ltd,,,,,,,,,
Nottinghamshire County Council,1111/1001,Surplus or Deficit from Trading Undertak,TRADING,Supplies & Services,DDA,23/04/2012,01-10001,731.28,Hamelin Paperbrands Ltd,,,,,,,,,
Nottinghamshire County Council,1111/1001,Surplus or Deficit from Trading Undertak,TRADING,Supplies & Services,DDA,23/04/2012,01-10001,1664,Hamelin Paperbrands Ltd,,,,,,,,,
Nottinghamshire County Council,1111/1001,Surplus or Deficit from Trading Undertak,TRADING,Supplies & Services,DDA,23/04/2012,01-10001,1664,Hamelin Paperbrands Ltd,,,,,,,,,
Nottinghamshire County Council,1111/1001,Surplus or Deficit from Trading Undertak,TRADING,Supplies & Services,DDA,17/04/2012,01-10001,15474,Premier Paper Group Ltd,,,,,,,,,
Nottinghamshire County Council,1111/1001,Surplus or Deficit from Trading Undertak,TRADING,Supplies & Services,DDA,26/04/2012,01-10001,763.5,Premier Paper Group Ltd,,,,,,,,,
Nottinghamshire County Council,1111/1001,Surplus or Deficit from Trading Undertak,TRADING,Supplies & Services,DDA,17/04/2012,01-10001,1376.4,Grosvenor House Papers Ltd,,,,,,,,,
Nottinghamshire County Council,1111/1001,Surplus or Deficit from Trading Undertak,TRADING,Supplies & Services,DDA,23/04/2012,01-10001,9240,Talk Paper,,,,,,,,,
Nottinghamshire County Council,1111/1001,Surplus or Deficit from Trading Undertak,TRADING,Supplies & Services,DDA,26/04/2012,01-10001,883.32,Eagle Envelopes Ltd,,,,,,,,,
Nottinghamshire County Council,1111/1001,Surplus or Deficit from Trading Undertak,TRADING,Supplies & Services,DDA,17/04/2012,01-10001,504.96,R.H.Ritchings Ltd,,,,,,,,,
Nottinghamshire County Council,1111/1001,Surplus or Deficit from Trading Undertak,TRADING,Supplies & Services,DDA,23/04/2012,01-10001,1794.57,Allen Glenold Ltd,,,,,,,,,
Nottinghamshire County Council,1111/1001,Surplus or Deficit from Trading Undertak,TRADING,Supplies & Services,DDA,30/04/2012,01-10001,1468.21,Allen Glenold Ltd,,,,,,,,,
Nottinghamshire County Council,1111/1001,Surplus or Deficit from Trading Undertak,TRADING,Supplies & Services,DDA,26/04/2012,01-10001,800.54,Slater Harrison & Co Ltd,,,,,,,,,
Nottinghamshire County Council,1111/1001,Surplus or Deficit from Trading Undertak,TRADING,Supplies & Services,DDA,26/04/2012,01-10001,1817.87,Slater Harrison & Co Ltd,,,,,,,,,
Nottinghamshire County Council,1111/1001,Surplus or Deficit from Trading Undertak,TRADING,Supplies & Services,DDA,17/04/2012,01-10001,9544.13,Georgia-Pacific Gb Ltd,,,,,,,,,
Nottinghamshire County Council,1111/1001,Surplus or Deficit from Trading Undertak,TRADING,Supplies & Services,DDA,17/04/2012,01-10001,1867,Eastpoint,,,,,,,,,
Nottinghamshire County Council,1111/1001,Surplus or Deficit from Trading Undertak,TRADING,Supplies & Services,DDA,26/04/2012,01-10001,668.68,Eastpoint,,,,,,,,,
Nottinghamshire County Council,1111/1001,Surplus or Deficit from Trading Undertak,TRADING,Supplies & Services,DDA,30/04/2012,01-10001,872.12,Eastpoint,,,,,,,,,
Nottinghamshire County Council,1111/1001,Surplus or Deficit from Trading Undertak,TRADING,Supplies & Services,DDA,30/04/2012,01-10001,974.04,Eastpoint,,,,,,,,,
Nottinghamshire County Council,1111/1001,Surplus or Deficit from Trading Undertak,TRADING,Supplies & Services,DDA,11/04/2012,01-10001,605.28,Newell Rubbermaid,,,,,,,,,
Nottinghamshire County Council,1111/1001,Surplus or Deficit from Trading Undertak,TRADING,Supplies & Services,DDA,11/04/2012,01-10001,617.8,Newell Rubbermaid,,,,,,,,,
Nottinghamshire County Council,1111/1001,Surplus or Deficit from Trading Undertak,TRADING,Supplies & Services,DDA,12/04/2012,01-10001,762.28,Newell Rubbermaid,,,,,,,,,
Nottinghamshire County Council,1111/1001,Surplus or Deficit from Trading Undertak,TRADING,Supplies & Services,DDA,17/04/2012,01-10001,2139.2,Newell Rubbermaid,,,,,,,,,
Nottinghamshire County Council,1111/1001,Surplus or Deficit from Trading Undertak,TRADING,Supplies & Services,DDA,26/04/2012,01-10001,4043.6,Newell Rubbermaid,,,,,,,,,
Nottinghamshire County Council,1111/1001,Surplus or Deficit from Trading Undertak,TRADING,Supplies & Services,DDA,23/04/2012,01-10001,882.4,Acco-Rexel Ltd,,,,,,,,,
Nottinghamshire County Council,1111/1001,Surplus or Deficit from Trading Undertak,TRADING,Supplies & Services,DDA,23/04/2012,01-10001,635.45,Acco-Rexel Ltd,,,,,,,,,
Nottinghamshire County Council,1111/1001,Surplus or Deficit from Trading Undertak,TRADING,Supplies & Services,DDA,26/04/2012,01-10001,1165.99,Acco-Rexel Ltd,,,,,,,,,
Nottinghamshire County Council,1111/1001,Surplus or Deficit from Trading Undertak,TRADING,Supplies & Services,DDA,30/04/2012,01-10001,1010.45,Flip File Ltd,,,,,,,,,
Nottinghamshire County Council,1111/1001,Surplus or Deficit from Trading Undertak,TRADING,Supplies & Services,DDA,11/04/2012,01-10001,4285.06,Henkel Loctite Adhesives Ltd,,,,,,,,,
Nottinghamshire County Council,1111/1001,Surplus or Deficit from Trading Undertak,TRADING,Supplies & Services,DDA,26/04/2012,01-10001,2157.46,Henkel Loctite Adhesives Ltd,,,,,,,,,
Nottinghamshire County Council,1111/1001,Surplus or Deficit from Trading Undertak,TRADING,Supplies & Services,DDA,30/04/2012,01-10001,549.96,Henkel Loctite Adhesives Ltd,,,,,,,,,
Nottinghamshire County Council,1111/1001,Surplus or Deficit from Trading Undertak,TRADING,Supplies & Services,DDA,30/04/2012,01-10001,3577.96,Staedtler (Uk) Ltd,,,,,,,,,
Nottinghamshire County Council,1111/1001,Surplus or Deficit from Trading Undertak,TRADING,Supplies & Services,DDA,23/04/2012,01-10001,520.5,Concord Filing Products Ltd,,,,,,,,,
Nottinghamshire County Council,1111/1001,Surplus or Deficit from Trading Undertak,TRADING,Supplies & Services,DDA,17/04/2012,01-10001,505.24,Rapesco Office Products Plc,,,,,,,,,
Nottinghamshire County Council,1111/1001,Surplus or Deficit from Trading Undertak,TRADING,Supplies & Services,DDA,26/04/2012,01-10001,621.95,Avery Dennison Office Products Uk Ltd,,,,,,,,,
Nottinghamshire County Council,1111/1001,Surplus or Deficit from Trading Undertak,TRADING,Supplies & Services,DDA,17/04/2012,01-10001,697.67,Exaclair Limited,,,,,,,,,
Nottinghamshire County Council,1111/1001,Surplus or Deficit from Trading Undertak,TRADING,Supplies & Services,DAA,30/04/2012,01-10001,521.5,H-Squared Electronics Ltd,,,,,,,,,
Nottinghamshire County Council,1111/1001,Surplus or Deficit from Trading Undertak,TRADING,Supplies & Services,DAA,11/04/2012,01-10001,2490.3,Shermond,,,,,,,,,
Nottinghamshire County Council,1111/1001,Surplus or Deficit from Trading Undertak,TRADING,Supplies & Services,DAA,17/04/2012,01-10001,1534.46,Shermond,,,,,,,,,
Nottinghamshire County Council,1111/1001,Surplus or Deficit from Trading Undertak,TRADING,Supplies & Services,DFA,27/04/2012,01-10001,1380,Iris Ticketing Ltd,,,,,,,,,
Nottinghamshire County Council,1111/1001,Surplus or Deficit from Trading Undertak,TRADING,Supplies & Services,DAA,26/04/2012,01-10001,551.75,Vivid Laminating Technologies Ltd,,,,,,,,,
Nottinghamshire County Council,1111/1001,Surplus or Deficit from Trading Undertak,TRADING,Supplies & Services,DAA,26/04/2012,01-10001,2860.52,Vivid Laminating Technologies Ltd,,,,,,,,,
Nottinghamshire County Council,1111/1001,Surplus or Deficit from Trading Undertak,TRADING,Supplies & Services,DAA,17/04/2012,01-10001,805.01,Qc Supplies Ltd,,,,,,,,,
Nottinghamshire County Council,1111/1001,Surplus or Deficit from Trading Undertak,TRADING,Supplies & Services,DAA,24/04/2012,01-10001,1926.33,Qc Supplies Ltd,,,,,,,,,
Nottinghamshire County Council,1111/1001,Surplus or Deficit from Trading Undertak,TRADING,Supplies & Services,DAA,23/04/2012,01-10001,1260.41,Office Xpress,,,,,,,,,
Nottinghamshire County Council,1111/1001,Surplus or Deficit from Trading Undertak,TRADING,Supplies & Services,DAA,03/04/2012,01-10001,1163.41,Datapac,,,,,,,,,
Nottinghamshire County Council,1111/1001,Surplus or Deficit from Trading Undertak,TRADING,Supplies & Services,DAA,11/04/2012,01-10001,2055.65,Datapac,,,,,,,,,
Nottinghamshire County Council,1111/1001,Surplus or Deficit from Trading Undertak,TRADING,Supplies & Services,DAA,17/04/2012,01-10001,830.18,Datapac,,,,,,,,,
Nottinghamshire County Council,1111/1001,Surplus or Deficit from Trading Undertak,TRADING,Supplies & Services,DAA,17/04/2012,01-10001,2509.6,Datapac,,,,,,,,,
Nottinghamshire County Council,1111/1001,Surplus or Deficit from Trading Undertak,TRADING,Supplies & Services,DAA,17/04/2012,01-10001,656.96,Datapac,,,,,,,,,
Nottinghamshire County Council,1111/1001,Surplus or Deficit from Trading Undertak,TRADING,Supplies & Services,DAA,23/04/2012,01-10001,539.8,Datapac,,,,,,,,,
Nottinghamshire County Council,1111/1001,Surplus or Deficit from Trading Undertak,TRADING,Supplies & Services,DAA,24/04/2012,01-10001,978.59,Datapac,,,,,,,,,
Nottinghamshire County Council,1111/1001,Surplus or Deficit from Trading Undertak,TRADING,Supplies & Services,DAA,05/04/2012,01-10001,612.9,Spectrum Computer Supplies Ltd,,,,,,,,,
Nottinghamshire County Council,1111/1001,Surplus or Deficit from Trading Undertak,TRADING,Premises Related,BJA,11/04/2012,01-10001,2526.3,Polystar Plastics Ltd,,,,,,,,,
Nottinghamshire County Council,1111/1001,Surplus or Deficit from Trading Undertak,TRADING,Premises Related,BJA,11/04/2012,01-10001,1243.02,Polystar Plastics Ltd,,,,,,,,,
Nottinghamshire County Council,1111/1001,Surplus or Deficit from Trading Undertak,TRADING,Premises Related,BJA,23/04/2012,01-10001,816.27,Polystar Plastics Ltd,,,,,,,,,
Nottinghamshire County Council,1111/1001,Surplus or Deficit from Trading Undertak,TRADING,Premises Related,BJA,30/04/2012,01-10001,1354.47,Polystar Plastics Ltd,,,,,,,,,
Nottinghamshire County Council,1111/1001,Surplus or Deficit from Trading Undertak,TRADING,Premises Related,BJA,17/04/2012,01-10001,627.6,Soho Consulting Ltd,,,,,,,,,
Nottinghamshire County Council,1111/1001,Surplus or Deficit from Trading Undertak,TRADING,Premises Related,BJA,05/04/2012,01-10001,807.89,Ecover (Uk) Ltd,,,,,,,,,
Nottinghamshire County Council,1111/1001,Surplus or Deficit from Trading Undertak,TRADING,Premises Related,BJA,30/04/2012,01-10001,815.55,Ecover (Uk) Ltd,,,,,,,,,
Nottinghamshire County Council,1111/1001,Surplus or Deficit from Trading Undertak,TRADING,Premises Related,BJA,03/04/2012,01-10001,539.63,Bunzl Cleaning & Hygiene Supplies,,,,,,,,,
Nottinghamshire County Council,1111/1001,Surplus or Deficit from Trading Undertak,TRADING,Premises Related,BJA,03/04/2012,01-10001,511.86,Bunzl Cleaning & Hygiene Supplies,,,,,,,,,
Nottinghamshire County Council,1111/1001,Surplus or Deficit from Trading Undertak,TRADING,Premises Related,BJA,05/04/2012,01-10001,688.4,Bunzl Cleaning & Hygiene Supplies,,,,,,,,,
Nottinghamshire County Council,1111/1001,Surplus or Deficit from Trading Undertak,TRADING,Premises Related,BJA,19/04/2012,01-10001,1627.8,Bunzl Cleaning & Hygiene Supplies,,,,,,,,,
Nottinghamshire County Council,1111/1001,Surplus or Deficit from Trading Undertak,TRADING,Premises Related,BJA,23/04/2012,01-10001,614.7,Bunzl Cleaning & Hygiene Supplies,,,,,,,,,
Nottinghamshire County Council,1111/1001,Surplus or Deficit from Trading Undertak,TRADING,Premises Related,BJA,24/04/2012,01-10001,885,Bunzl Cleaning & Hygiene Supplies,,,,,,,,,
Nottinghamshire County Council,1111/1001,Surplus or Deficit from Trading Undertak,TRADING,Premises Related,BJA,11/04/2012,01-10001,1774.96,Cromwell Polythene Ltd,,,,,,,,,
Nottinghamshire County Council,1111/1001,Surplus or Deficit from Trading Undertak,TRADING,Premises Related,BJA,23/04/2012,01-10001,748.16,3M (United Kingdom) Plc,,,,,,,,,
Nottinghamshire County Council,1111/1001,Surplus or Deficit from Trading Undertak,TRADING,Premises Related,BJA,17/04/2012,01-10001,1247.6,Multex Chemicals,,,,,,,,,
Nottinghamshire County Council,1111/1001,Surplus or Deficit from Trading Undertak,TRADING,Premises Related,BJA,11/04/2012,01-10001,666.9,Evans Vanodine International Ltd,,,,,,,,,
Nottinghamshire County Council,1111/1001,Surplus or Deficit from Trading Undertak,TRADING,Premises Related,BJA,26/04/2012,01-10001,701.58,Evans Vanodine International Ltd,,,,,,,,,
Nottinghamshire County Council,1111/1001,Surplus or Deficit from Trading Undertak,TRADING,Premises Related,BJA,03/04/2012,01-10001,2646.83,Johnson Diversey,,,,,,,,,
Nottinghamshire County Council,1111/1001,Surplus or Deficit from Trading Undertak,TRADING,Premises Related,BJA,23/04/2012,01-10001,1110.56,Johnson Diversey,,,,,,,,,
Nottinghamshire County Council,1111/1001,Surplus or Deficit from Trading Undertak,TRADING,Premises Related,BJA,03/04/2012,01-10001,4463.7,Premiere Products,,,,,,,,,
Nottinghamshire County Council,1111/1001,Surplus or Deficit from Trading Undertak,TRADING,Premises Related,BJA,12/04/2012,01-10001,536.4,Premiere Products,,,,,,,,,
Nottinghamshire County Council,1111/1001,Surplus or Deficit from Trading Undertak,TRADING,Premises Related,BJA,24/04/2012,01-10001,3904.2,Premiere Products,,,,,,,,,
Nottinghamshire County Council,1111/1001,Surplus or Deficit from Trading Undertak,TRADING,Premises Related,BJA,27/04/2012,01-10001,1928.32,Premiere Products,,,,,,,,,
Nottinghamshire County Council,1111/1001,Surplus or Deficit from Trading Undertak,TRADING,Premises Related,BJA,27/04/2012,01-10001,5166,Premiere Products,,,,,,,,,
Nottinghamshire County Council,1111/1001,Surplus or Deficit from Trading Undertak,TRADING,Premises Related,BJA,12/04/2012,01-10001,1050,R Scott & Sons Ltd,,,,,,,,,
Nottinghamshire County Council,1111/1001,Surplus or Deficit from Trading Undertak,TRADING,Premises Related,BJA,24/04/2012,01-10001,1868.3,R Scott & Sons Ltd,,,,,,,,,
Nottinghamshire County Council,1111/1001,Surplus or Deficit from Trading Undertak,TRADING,Premises Related,BJA,26/04/2012,01-10001,2519.5,R Scott & Sons Ltd,,,,,,,,,
Nottinghamshire County Council,1111/1001,Surplus or Deficit from Trading Undertak,TRADING,Premises Related,BJA,26/04/2012,01-10001,727.5,R Scott & Sons Ltd,,,,,,,,,
Nottinghamshire County Council,1111/1001,Surplus or Deficit from Trading Undertak,TRADING,Premises Related,BJA,17/04/2012,01-10001,505.55,Scot Young Research,,,,,,,,,
Nottinghamshire County Council,1111/1001,Surplus or Deficit from Trading Undertak,TRADING,Premises Related,BJA,05/04/2012,01-10001,555.33,Zeniith Hygiene Systems Ltd,,,,,,,,,
Nottinghamshire County Council,1111/1001,Surplus or Deficit from Trading Undertak,TRADING,Premises Related,BJA,17/04/2012,01-10001,680.55,Zeniith Hygiene Systems Ltd,,,,,,,,,
Nottinghamshire County Council,1111/1001,Surplus or Deficit from Trading Undertak,TRADING,Premises Related,BJA,03/04/2012,01-10001,681.51,Rubbermaid Commercial Products,,,,,,,,,
Nottinghamshire County Council,1111/1001,Surplus or Deficit from Trading Undertak,TRADING,Supplies & Services,DAA,11/04/2012,01-10001,679.38,Nisbets,,,,,,,,,
Nottinghamshire County Council,1111/1001,Surplus or Deficit from Trading Undertak,TRADING,Supplies & Services,DAA,03/04/2012,01-10001,631.74,W V Howe (Hardware) Ltd,,,,,,,,,
Nottinghamshire County Council,1111/1001,Surplus or Deficit from Trading Undertak,TRADING,Supplies & Services,DAA,05/04/2012,01-10001,1950,A.M. Packaging (Mansfield) Ltd,,,,,,,,,
Nottinghamshire County Council,1111/1001,Surplus or Deficit from Trading Undertak,TRADING,Supplies & Services,DAA,17/04/2012,01-10001,580,Disposable Supplies,,,,,,,,,
Nottinghamshire County Council,1111/1001,Surplus or Deficit from Trading Undertak,TRADING,Supplies & Services,DAA,11/04/2012,01-10001,1512.72,Ransome Sporting Goods Group Ltd,,,,,,,,,
Nottinghamshire County Council,1111/1001,Surplus or Deficit from Trading Undertak,TRADING,Supplies & Services,DAA,11/04/2012,01-10001,777.2,Kay-Metzeler Ltd,,,,,,,,,
Nottinghamshire County Council,1111/1001,Surplus or Deficit from Trading Undertak,TRADING,Supplies & Services,DBA,24/04/2012,01-10001,571.66,North West Tea Service Ltd,,,,,,,,,
Nottinghamshire County Council,1111/1001,Surplus or Deficit from Trading Undertak,TRADING,Supplies & Services,DAA,03/04/2012,01-10001,617.88,Dualit Ltd,,,,,,,,,
Nottinghamshire County Council,1111/1001,Surplus or Deficit from Trading Undertak,TRADING,Supplies & Services,DCA,17/04/2012,01-10001,604.1,Freudenberg Household Products Lp,,,,,,,,,
Nottinghamshire County Council,1111/1001,Surplus or Deficit from Trading Undertak,TRADING,Supplies & Services,DCA,23/04/2012,01-10001,639.69,Freudenberg Household Products Lp,,,,,,,,,
Nottinghamshire County Council,1111/1001,Surplus or Deficit from Trading Undertak,TRADING,Supplies & Services,DCA,30/04/2012,01-10001,658.2,Freudenberg Household Products Lp,,,,,,,,,
Nottinghamshire County Council,1111/1001,Surplus or Deficit from Trading Undertak,TRADING,Supplies & Services,DAA,25/04/2012,01-10001,1822,Capita Business Services Ltd,,,,,,,,,
Nottinghamshire County Council,1111/1001,Surplus or Deficit from Trading Undertak,TRADING,Supplies & Services,DAA,24/04/2012,01-10001,1590,Sebel Furniture Ltd,,,,,,,,,
Nottinghamshire County Council,1111/1001,Surplus or Deficit from Trading Undertak,TRADING,Supplies & Services,DAA,24/04/2012,01-10001,1150.2,Principal Furniture,,,,,,,,,
Nottinghamshire County Council,1111/1001,Surplus or Deficit from Trading Undertak,TRADING,Supplies & Services,DAA,03/04/2012,01-10001,557.6,Advanced Moulds Ltd,,,,,,,,,
Nottinghamshire County Council,1111/1001,Surplus or Deficit from Trading Undertak,TRADING,Supplies & Services,DAA,24/04/2012,01-10001,1258.18,Advanced Moulds Ltd,,,,,,,,,
Nottinghamshire County Council,1111/1001,Surplus or Deficit from Trading Undertak,TRADING,Supplies & Services,DAA,24/04/2012,01-10001,733.2,Advanced Moulds Ltd,,,,,,,,,
Nottinghamshire County Council,1111/1001,Surplus or Deficit from Trading Undertak,TRADING,Supplies & Services,DAA,24/04/2012,01-10001,514.38,Kit For Kids Ltd,,,,,,,,,
Nottinghamshire County Council,1111/1001,Surplus or Deficit from Trading Undertak,TRADING,Supplies & Services,DAA,12/04/2012,01-10001,524.5,Marmax Products Ltd,,,,,,,,,
Nottinghamshire County Council,1111/1001,Surplus or Deficit from Trading Undertak,TRADING,Supplies & Services,DAA,05/04/2012,01-10001,863.2,Hille Education Products Ltd,,,,,,,,,
Nottinghamshire County Council,1111/1001,Surplus or Deficit from Trading Undertak,TRADING,Supplies & Services,DAA,17/04/2012,01-10001,1680,Hille Education Products Ltd,,,,,,,,,
Nottinghamshire County Council,1111/1001,Surplus or Deficit from Trading Undertak,TRADING,Supplies & Services,DAA,30/04/2012,01-10001,1400,Hille Education Products Ltd,,,,,,,,,
Nottinghamshire County Council,1111/1001,Surplus or Deficit from Trading Undertak,TRADING,Supplies & Services,DAA,19/04/2012,01-10001,1245.85,Gopak Ltd,,,,,,,,,
Nottinghamshire County Council,1111/1001,Surplus or Deficit from Trading Undertak,TRADING,Supplies & Services,DAA,24/04/2012,01-10001,2492.1,Gopak Ltd,,,,,,,,,
Nottinghamshire County Council,1111/1001,Surplus or Deficit from Trading Undertak,TRADING,Supplies & Services,DAA,03/04/2012,01-10001,608.72,Gratnells Ltd,,,,,,,,,
Nottinghamshire County Council,1111/1001,Surplus or Deficit from Trading Undertak,TRADING,Supplies & Services,DAA,11/04/2012,01-10001,729.81,Gratnells Ltd,,,,,,,,,
Nottinghamshire County Council,1111/1001,Surplus or Deficit from Trading Undertak,TRADING,Supplies & Services,DAA,24/04/2012,01-10001,918,Gratnells Ltd,,,,,,,,,
Nottinghamshire County Council,1111/1001,Surplus or Deficit from Trading Undertak,TRADING,Supplies & Services,DAA,30/04/2012,01-10001,585,Flexiform Business Furniture,,,,,,,,,
Nottinghamshire County Council,1111/1001,Surplus or Deficit from Trading Undertak,TRADING,Supplies & Services,DAA,23/04/2012,01-10001,570.24,Hille Seating Ltd,,,,,,,,,
Nottinghamshire County Council,1111/1001,Surplus or Deficit from Trading Undertak,TRADING,Supplies & Services,DAA,26/04/2012,01-10001,1069.2,Hille Seating Ltd,,,,,,,,,
Nottinghamshire County Council,1111/1001,Surplus or Deficit from Trading Undertak,TRADING,Supplies & Services,DAA,23/04/2012,01-10001,1183.9,Efm (Chesterfield) Ltd,,,,,,,,,
Nottinghamshire County Council,1111/1001,Surplus or Deficit from Trading Undertak,TRADING,Supplies & Services,DAA,30/04/2012,01-10001,979.2,Efm (Chesterfield) Ltd,,,,,,,,,
Nottinghamshire County Council,1111/1001,Surplus or Deficit from Trading Undertak,TRADING,Supplies & Services,DAA,17/04/2012,01-10001,509.8,Education Essentials,,,,,,,,,
Nottinghamshire County Council,1111/1001,Surplus or Deficit from Trading Undertak,TRADING,Supplies & Services,DAA,23/04/2012,01-10001,662.4,William Sinclair Horticulture Ltd,,,,,,,,,
Nottinghamshire County Council,1111/1001,Surplus or Deficit from Trading Undertak,TRADING,Supplies & Services,DAA,23/04/2012,01-10001,662.4,William Sinclair Horticulture Ltd,,,,,,,,,
Nottinghamshire County Council,1111/1001,Surplus or Deficit from Trading Undertak,TRADING,Supplies & Services,DAA,24/04/2012,01-10001,526.82,William Sinclair Horticulture Ltd,,,,,,,,,
Nottinghamshire County Council,1111/1001,Surplus or Deficit from Trading Undertak,TRADING,Supplies & Services,DAA,11/04/2012,01-10001,610.84,Brian Clegg (Educational Products) Ltd,,,,,,,,,
Nottinghamshire County Council,1111/1001,Surplus or Deficit from Trading Undertak,TRADING,Supplies & Services,DAA,19/04/2012,01-10001,809.73,Brian Clegg (Educational Products) Ltd,,,,,,,,,
Nottinghamshire County Council,1111/1001,Surplus or Deficit from Trading Undertak,TRADING,Supplies & Services,DAA,19/04/2012,01-10001,1695.18,Brian Clegg (Educational Products) Ltd,,,,,,,,,
Nottinghamshire County Council,1111/1001,Surplus or Deficit from Trading Undertak,TRADING,Supplies & Services,DAA,26/04/2012,01-10001,716.4,Brian Clegg (Educational Products) Ltd,,,,,,,,,
Nottinghamshire County Council,1111/1001,Surplus or Deficit from Trading Undertak,TRADING,Supplies & Services,DAA,26/04/2012,01-10001,1095.98,Brian Clegg (Educational Products) Ltd,,,,,,,,,
Nottinghamshire County Council,1111/1001,Surplus or Deficit from Trading Undertak,TRADING,Supplies & Services,DDA,03/04/2012,01-10001,838.2,Craftpacks,,,,,,,,,
Nottinghamshire County Council,1111/1001,Surplus or Deficit from Trading Undertak,TRADING,Supplies & Services,DDA,17/04/2012,01-10001,605.75,Commotion Technology Supplies,,,,,,,,,
Nottinghamshire County Council,1111/1001,Surplus or Deficit from Trading Undertak,TRADING,Supplies & Services,DDA,17/04/2012,01-10001,516,Commotion Technology Supplies,,,,,,,,,
Nottinghamshire County Council,1111/1001,Surplus or Deficit from Trading Undertak,TRADING,Supplies & Services,DDA,24/04/2012,01-10001,536,Commotion Technology Supplies,,,,,,,,,
Nottinghamshire County Council,1111/1001,Surplus or Deficit from Trading Undertak,TRADING,Supplies & Services,DDA,23/04/2012,01-10001,724.86,Newclay Products Ltd,,,,,,,,,
Nottinghamshire County Council,1111/1001,Surplus or Deficit from Trading Undertak,TRADING,Supplies & Services,DDA,17/04/2012,01-10001,893.77,Scolaquip Ltd,,,,,,,,,
Nottinghamshire County Council,1111/1001,Surplus or Deficit from Trading Undertak,TRADING,Supplies & Services,DDA,23/04/2012,01-10001,602,Scolaquip Ltd,,,,,,,,,
Nottinghamshire County Council,1111/1001,Surplus or Deficit from Trading Undertak,TRADING,Supplies & Services,DDA,19/04/2012,01-10001,4800,Lucy Friend Paper Co,,,,,,,,,
Nottinghamshire County Council,1111/1001,Surplus or Deficit from Trading Undertak,TRADING,Supplies & Services,DDA,17/04/2012,01-10001,731.53,Creativity International Ltd,,,,,,,,,
Nottinghamshire County Council,1111/1001,Surplus or Deficit from Trading Undertak,TRADING,Supplies & Services,DDA,23/04/2012,01-10001,747.4,Creativity International Ltd,,,,,,,,,
Nottinghamshire County Council,1111/1001,Surplus or Deficit from Trading Undertak,TRADING,Supplies & Services,DDA,23/04/2012,01-10001,908.9,Creativity International Ltd,,,,,,,,,
Nottinghamshire County Council,1111/1001,Surplus or Deficit from Trading Undertak,TRADING,Supplies & Services,DDA,17/04/2012,01-10001,1084.28,Valentine Clays,,,,,,,,,
Nottinghamshire County Council,1111/1001,Surplus or Deficit from Trading Undertak,TRADING,Supplies & Services,DDA,11/04/2012,01-10001,739.76,Artstraws,,,,,,,,,
Nottinghamshire County Council,1111/1001,Surplus or Deficit from Trading Undertak,TRADING,Supplies & Services,DDA,30/04/2012,01-10001,517.82,Artstraws,,,,,,,,,
Nottinghamshire County Council,1111/1001,Surplus or Deficit from Trading Undertak,TRADING,Supplies & Services,DFA,25/04/2012,01-10001,3346.75,Legion Distribution Services Ltd,,,,,,,,,
Nottinghamshire County Council,1111/1001,Surplus or Deficit from Trading Undertak,TRADING,Supplies & Services,DFA,27/04/2012,01-10001,1500,Frama Uk Ltd,,,,,,,,,
Nottinghamshire County Council,1111/1001,Children and Young People,CYP,Employee Related,ABA,02/04/2012,01-10405,1860.52,Hawtonville Junior School,,,,,,,,,
Nottinghamshire County Council,1111/1001,Children and Young People,CYP,Employee Related,ABA,03/04/2012,01-11116,1380,In Trac Training & Consultancy Ltd,,,,,,,,,
Nottinghamshire County Council,1111/1001,Children and Young People,CYP,Employee Related,ABA,05/04/2012,01-11250,1380,In Trac Training & Consultancy Ltd,,,,,,,,,
Nottinghamshire County Council,1111/1001,Children and Young People,CYP,Employee Related,ABA,05/04/2012,01-11251,690,In Trac Training & Consultancy Ltd,,,,,,,,,
Nottinghamshire County Council,1111/1001,Children and Young People,CYP,Employee Related,ABA,17/04/2012,01-10447,500,M De-Lisser,,,,,,,,,
Nottinghamshire County Council,1111/1001,Children and Young People,CYP,Employee Related,ABA,24/04/2012,01-16462,1380,In Trac Training & Consultancy Ltd,,,,,,,,,
Nottinghamshire County Council,1111/1001,Children and Young People,CYP,Employee Related,ABA,24/04/2012,01-16463,1380,In Trac Training & Consultancy Ltd,,,,,,,,,
Nottinghamshire County Council,1111/1001,Children and Young People,CYP,Employee Related,ABA,30/04/2012,01-17308,689.5,School Appeals,,,,,,,,,
Nottinghamshire County Council,1111/1001,Children and Young People,CYP,Premises Related,BAA,11/04/2012,01-11810,522.2,M Shooter,,,,,,,,,
Nottinghamshire County Council,1111/1001,Children and Young People,CYP,Premises Related,BAA,23/04/2012,01-13571,743,Permabond Laminates Limited,,,,,,,,,
Nottinghamshire County Council,1111/1001,Children and Young People,CYP,Premises Related,BAA,23/04/2012,01-17107,527.19,Cranton Electrical Co Ltd,,,,,,,,,
Nottinghamshire County Council,1111/1001,Children and Young People,CYP,Premises Related,BAA,23/04/2012,01-17135,1476.14,Cranton Electrical Co Ltd,,,,,,,,,
Nottinghamshire County Council,1111/1001,Children and Young People,CYP,Premises Related,BCA,16/04/2012,01-12645,716.61,Sutton Centre Community College,,,,,,,,,
Nottinghamshire County Council,1111/1001,Children and Young People,CYP,Premises Related,BCA,23/04/2012,01-17175,2081.01,Emo Oil Ltd,,,,,,,,,
Nottinghamshire County Council,1111/1001,Children and Young People,CYP,Premises Related,BCA,24/04/2012,01-17212,1332,Forever Fuels Ltd,,,,,,,,,
Nottinghamshire County Council,1111/1001,Children and Young People,CYP,Premises Related,BDA,02/04/2012,01-10002,3875,K M Farrell,,,,,,,,,
Nottinghamshire County Council,1111/1001,Children and Young People,CYP,Premises Related,BDA,02/04/2012,01-10392,710,St Augustines Junior School,,,,,,,,,
Nottinghamshire County Council,1111/1001,Children and Young People,CYP,Premises Related,BDA,02/04/2012,01-10393,700,Crescent Primary School,,,,,,,,,
Nottinghamshire County Council,1111/1001,Children and Young People,CYP,Premises Related,BDA,02/04/2012,01-10394,1050,Bramcote Hills Primary School,,,,,,,,,
Nottinghamshire County Council,1111/1001,Children and Young People,CYP,Premises Related,BDA,05/04/2012,01-10051,1926.72,Mansfield District Council,,,,,,,,,
Nottinghamshire County Council,1111/1001,Children and Young People,CYP,Premises Related,BDA,05/04/2012,01-11344,602.43,Storewise Self Storage Ltd,,,,,,,,,
Nottinghamshire County Council,1111/1001,Children and Young People,CYP,Premises Related,BDA,10/04/2012,01-11470,523.75,South Forest Leisure Centre,,,,,,,,,
Nottinghamshire County Council,1111/1001,Children and Young People,CYP,Premises Related,BDA,13/04/2012,01-10304,1099.99,Nottingham City Council,,,,,,,,,
Nottinghamshire County Council,1111/1001,Children and Young People,CYP,Premises Related,BDA,19/04/2012,01-17115,4421.25,Alfred Mcalpine Business Services L,,,,,,,,,
Nottinghamshire County Council,1111/1001,Children and Young People,CYP,Premises Related,BDA,20/04/2012,01-17139,540,Notts Enterprises Ltd,,,,,,,,,
Nottinghamshire County Council,1111/1001,Children and Young People,CYP,Premises Related,BDA,23/04/2012,01-12685,1500.48,Mansfield District Council,,,,,,,,,
Nottinghamshire County Council,1111/1001,Children and Young People,CYP,Premises Related,BDA,23/04/2012,01-13520,500,Paramount Hotel,,,,,,,,,
Nottinghamshire County Council,1111/1001,Children and Young People,CYP,Premises Related,BDA,23/04/2012,01-17077,735,Notts Enterprises Ltd,,,,,,,,,
Nottinghamshire County Council,1111/1001,Children and Young People,CYP,Premises Related,BDA,24/04/2012,01-13706,2187.1,Slm Community Leisure Ltd,,,,,,,,,
Nottinghamshire County Council,1111/1001,Children and Young People,CYP,Premises Related,BDA,24/04/2012,01-16456,1418.2,South Forest Leisure Centre,,,,,,,,,
Nottinghamshire County Council,1111/1001,Children and Young People,CYP,Premises Related,BDA,25/04/2012,01-11471,2600,Edge Hill Enterprises Ltd,,,,,,,,,
Nottinghamshire County Council,1111/1001,Children and Young People,CYP,Premises Related,BEA,27/04/2012,01-11447,1404,Mansfield District Council,,,,,,,,,
Nottinghamshire County Council,1111/1001,Children and Young People,CYP,Premises Related,BFA,02/04/2012,01-10186,4370.64,Severn Trent Water Ltd,,,,,,,,,
Nottinghamshire County Council,1111/1001,Children and Young People,CYP,Premises Related,BFA,02/04/2012,01-10395,6238.19,Severn Trent Water Ltd,,,,,,,,,
Nottinghamshire County Council,1111/1001,Children and Young People,CYP,Premises Related,BFA,13/04/2012,01-12511,593.99,Adsm Ltd,,,,,,,,,
Nottinghamshire County Council,1111/1001,Children and Young People,CYP,Premises Related,BFA,16/04/2012,01-12645,164.18,Sutton Centre Community College,,,,,,,,,
Nottinghamshire County Council,1111/1001,Children and Young People,CYP,Premises Related,BFA,17/04/2012,01-12889,5857.67,Severn Trent Water Ltd,,,,,,,,,
Nottinghamshire County Council,1111/1001,Children and Young People,CYP,Premises Related,BFA,17/04/2012,01-12892,1499.55,Severn Trent Water Ltd,,,,,,,,,
Nottinghamshire County Council,1111/1001,Children and Young People,CYP,Premises Related,BFA,19/04/2012,01-12869,511.91,Severn Trent Water Ltd,,,,,,,,,
Nottinghamshire County Council,1111/1001,Children and Young People,CYP,Premises Related,BGA,04/04/2012,01-11190,1484.81,Custom Group Ltd,,,,,,,,,
Nottinghamshire County Council,1111/1001,Children and Young People,CYP,Premises Related,BJA,12/04/2012,01-11966,810,Phs Group Plc,,,,,,,,,
Nottinghamshire County Council,1111/1001,Children and Young People,CYP,Premises Related,BJA,26/04/2012,01-17156,2215.2,Newark & Sherwood District Council,,,,,,,,,
Nottinghamshire County Council,1111/1001,Children and Young People,CYP,Premises Related,BJA,27/04/2012,01-16859,1007.76,Mansfield District Council,,,,,,,,,
Nottinghamshire County Council,1111/1001,Children and Young People,CYP,Premises Related,BJA,30/04/2012,01-16974,1844.58,Quarrydale School Ncc Account,,,,,,,,,
Nottinghamshire County Council,1111/1001,Children and Young People,CYP,Transport Related,CCA,03/04/2012,01-11082,6500,Yourbus,,,,,,,,,
Nottinghamshire County Council,1111/1001,Children and Young People,CYP,Transport Related,CCA,05/04/2012,01-10032,1655.7,Norsaca Society Office,,,,,,,,,
Nottinghamshire County Council,1111/1001,Children and Young People,CYP,Transport Related,CCA,05/04/2012,01-10034,1541.12,Erewash Community Transport,,,,,,,,,
Nottinghamshire County Council,1111/1001,Children and Young People,CYP,Transport Related,CCA,05/04/2012,01-10035,1762.5,Erewash Community Transport,,,,,,,,,
Nottinghamshire County Council,1111/1001,Children and Young People,CYP,Transport Related,CCA,05/04/2012,01-10036,1407.6,Erewash Community Transport,,,,,,,,,
Nottinghamshire County Council,1111/1001,Children and Young People,CYP,Transport Related,CCA,05/04/2012,01-10037,1302.45,Erewash Community Transport,,,,,,,,,
Nottinghamshire County Council,1111/1001,Children and Young People,CYP,Transport Related,CCA,05/04/2012,01-11353,3533.38,Marriotts Travel,,,,,,,,,
Nottinghamshire County Council,1111/1001,Children and Young People,CYP,Transport Related,CCA,05/04/2012,01-11354,3106.84,Marriotts Travel,,,,,,,,,
Nottinghamshire County Council,1111/1001,Children and Young People,CYP,Transport Related,CCA,05/04/2012,01-11356,1246.3,Fozcabs Newark Taxis,,,,,,,,,
Nottinghamshire County Council,1111/1001,Children and Young People,CYP,Transport Related,CCA,05/04/2012,01-11357,694.52,Fozcabs Newark Taxis,,,,,,,,,
Nottinghamshire County Council,1111/1001,Children and Young People,CYP,Transport Related,CCA,05/04/2012,01-11358,1799,Fozcabs Newark Taxis,,,,,,,,,
Nottinghamshire County Council,1111/1001,Children and Young People,CYP,Transport Related,CCA,05/04/2012,01-11359,1688.44,Hawkins Taxis & Transport,,,,,,,,,
Nottinghamshire County Council,1111/1001,Children and Young People,CYP,Transport Related,CCA,05/04/2012,01-11360,1638.78,Midfield Travel,,,,,,,,,
Nottinghamshire County Council,1111/1001,Children and Young People,CYP,Transport Related,CCA,05/04/2012,01-11361,3463.24,Midfield Travel,,,,,,,,,
Nottinghamshire County Council,1111/1001,Children and Young People,CYP,Transport Related,CCA,05/04/2012,01-11362,1116,CW Taxis,,,,,,,,,
Nottinghamshire County Council,1111/1001,Children and Young People,CYP,Transport Related,CCA,05/04/2012,01-11364,1020,CW Taxis,,,,,,,,,
Nottinghamshire County Council,1111/1001,Children and Young People,CYP,Transport Related,CCA,05/04/2012,01-11365,261.3,CW Taxis,,,,,,,,,
Nottinghamshire County Council,1111/1001,Children and Young People,CYP,Transport Related,CCA,05/04/2012,01-11366,714,CW Taxis,,,,,,,,,
Nottinghamshire County Council,1111/1001,Children and Young People,CYP,Transport Related,CCA,05/04/2012,01-11367,4178.9,Kettlewell Retford Ltd,,,,,,,,,
Nottinghamshire County Council,1111/1001,Children and Young People,CYP,Transport Related,CCA,05/04/2012,01-11368,3749.68,Kettlewell Retford Ltd,,,,,,,,,
Nottinghamshire County Council,1111/1001,Children and Young People,CYP,Transport Related,CCA,05/04/2012,01-11369,2432.1,Kettlewell Retford Ltd,,,,,,,,,
Nottinghamshire County Council,1111/1001,Children and Young People,CYP,Transport Related,CCA,05/04/2012,01-11370,1492.2,Diamond Cars,,,,,,,,,
Nottinghamshire County Council,1111/1001,Children and Young People,CYP,Transport Related,CCA,05/04/2012,01-11371,2188.56,Diamond Cars,,,,,,,,,
Nottinghamshire County Council,1111/1001,Children and Young People,CYP,Transport Related,CCA,11/04/2012,01-11609,3124.22,Taxicover Uk Ltd,,,,,,,,,
Nottinghamshire County Council,1111/1001,Children and Young People,CYP,Transport Related,CCA,11/04/2012,01-11610,3563.56,Taxicover Uk Ltd,,,,,,,,,
Nottinghamshire County Council,1111/1001,Children and Young People,CYP,Transport Related,CCA,11/04/2012,01-11611,3916,Taxicover Uk Ltd,,,,,,,,,
Nottinghamshire County Council,1111/1001,Children and Young People,CYP,Transport Related,CCA,11/04/2012,01-11612,3557.62,Taxicover Uk Ltd,,,,,,,,,
Nottinghamshire County Council,1111/1001,Children and Young People,CYP,Transport Related,CCA,11/04/2012,01-11613,2774.86,Taxicover Uk Ltd,,,,,,,,,
Nottinghamshire County Council,1111/1001,Children and Young People,CYP,Transport Related,CCA,11/04/2012,01-11614,2992,Taxicover Uk Ltd,,,,,,,,,
Nottinghamshire County Council,1111/1001,Children and Young People,CYP,Transport Related,CCA,11/04/2012,01-11615,3828,Taxicover Uk Ltd,,,,,,,,,
Nottinghamshire County Council,1111/1001,Children and Young People,CYP,Transport Related,CCA,11/04/2012,01-11616,3652,Taxicover Uk Ltd,,,,,,,,,
Nottinghamshire County Council,1111/1001,Children and Young People,CYP,Transport Related,CCA,11/04/2012,01-11617,2640.04,Taxicover Uk Ltd,,,,,,,,,
Nottinghamshire County Council,1111/1001,Children and Young People,CYP,Transport Related,CCA,11/04/2012,01-11618,3268.1,Taxicover Uk Ltd,,,,,,,,,
Nottinghamshire County Council,1111/1001,Children and Young People,CYP,Transport Related,CCA,11/04/2012,01-11619,3618.12,Taxicover Uk Ltd,,,,,,,,,
Nottinghamshire County Council,1111/1001,Children and Young People,CYP,Transport Related,CCA,11/04/2012,01-11620,4112.9,Taxicover Uk Ltd,,,,,,,,,
Nottinghamshire County Council,1111/1001,Children and Young People,CYP,Transport Related,CCA,11/04/2012,01-11621,3280.2,Taxicover Uk Ltd,,,,,,,,,
Nottinghamshire County Council,1111/1001,Children and Young People,CYP,Transport Related,CCA,11/04/2012,01-11622,3404.94,Taxicover Uk Ltd,,,,,,,,,
Nottinghamshire County Council,1111/1001,Children and Young People,CYP,Transport Related,CCA,11/04/2012,01-11623,1480,Taxicover Uk Ltd,,,,,,,,,
Nottinghamshire County Council,1111/1001,Children and Young People,CYP,Transport Related,CCA,11/04/2012,01-11624,2772,Taxicover Uk Ltd,,,,,,,,,
Nottinghamshire County Council,1111/1001,Children and Young People,CYP,Transport Related,CCA,11/04/2012,01-11625,2062.5,Taxicover Uk Ltd,,,,,,,,,
Nottinghamshire County Council,1111/1001,Children and Young People,CYP,Transport Related,CCA,11/04/2012,01-11626,1776.06,Taxicover Uk Ltd,,,,,,,,,
Nottinghamshire County Council,1111/1001,Children and Young People,CYP,Transport Related,CCA,11/04/2012,01-11627,3751.22,Taxicover Uk Ltd,,,,,,,,,
Nottinghamshire County Council,1111/1001,Children and Young People,CYP,Transport Related,CCA,11/04/2012,01-11628,3798.08,Taxicover Uk Ltd,,,,,,,,,
Nottinghamshire County Council,1111/1001,Children and Young People,CYP,Transport Related,CCA,11/04/2012,01-11629,1353,All Wayz Travel,,,,,,,,,
Nottinghamshire County Council,1111/1001,Children and Young People,CYP,Transport Related,CCA,11/04/2012,01-11630,1210,All Wayz Travel,,,,,,,,,
Nottinghamshire County Council,1111/1001,Children and Young People,CYP,Transport Related,CCA,11/04/2012,01-11632,2763.86,Martins Travel,,,,,,,,,
Nottinghamshire County Council,1111/1001,Children and Young People,CYP,Transport Related,CCA,11/04/2012,01-11633,647.5,CBC Taxis Ltd,,,,,,,,,
Nottinghamshire County Council,1111/1001,Children and Young People,CYP,Transport Related,CCA,11/04/2012,01-11635,1544.4,Ace Of Mansfield Ltd,,,,,,,,,
Nottinghamshire County Council,1111/1001,Children and Young People,CYP,Transport Related,CCA,11/04/2012,01-11636,2310,Arnold Acorn Travel,,,,,,,,,
Nottinghamshire County Council,1111/1001,Children and Young People,CYP,Transport Related,CCA,11/04/2012,01-11638,716.98,Alpha Cars,,,,,,,,,
Nottinghamshire County Council,1111/1001,Children and Young People,CYP,Transport Related,CCA,11/04/2012,01-11639,2142,Arrow Specialised Transport Ltd,,,,,,,,,
Nottinghamshire County Council,1111/1001,Children and Young People,CYP,Transport Related,CCA,11/04/2012,01-11640,2121,Arrow Specialised Transport Ltd,,,,,,,,,
Nottinghamshire County Council,1111/1001,Children and Young People,CYP,Transport Related,CCA,11/04/2012,01-11641,2333.37,Arrow Specialised Transport Ltd,,,,,,,,,
Nottinghamshire County Council,1111/1001,Children and Young People,CYP,Transport Related,CCA,11/04/2012,01-11642,1958,Arrow Specialised Transport Ltd,,,,,,,,,
Nottinghamshire County Council,1111/1001,Children and Young People,CYP,Transport Related,CCA,11/04/2012,01-11643,1008,Arrow Specialised Transport Ltd,,,,,,,,,
Nottinghamshire County Council,1111/1001,Children and Young People,CYP,Transport Related,CCA,11/04/2012,01-11644,2235.2,Arrow Specialised Transport Ltd,,,,,,,,,
Nottinghamshire County Council,1111/1001,Children and Young People,CYP,Transport Related,CCA,11/04/2012,01-11645,1276,Arrow Specialised Transport Ltd,,,,,,,,,
Nottinghamshire County Council,1111/1001,Children and Young People,CYP,Transport Related,CCA,11/04/2012,01-11646,1982.2,Arrow Specialised Transport Ltd,,,,,,,,,
Nottinghamshire County Council,1111/1001,Children and Young People,CYP,Transport Related,CCA,11/04/2012,01-11647,2452.3,Arrow Specialised Transport Ltd,,,,,,,,,
Nottinghamshire County Council,1111/1001,Children and Young People,CYP,Transport Related,CCA,11/04/2012,01-11648,792,Arrow Specialised Transport Ltd,,,,,,,,,
Nottinghamshire County Council,1111/1001,Children and Young People,CYP,Transport Related,CCA,11/04/2012,01-11649,793,Arrow Specialised Transport Ltd,,,,,,,,,
Nottinghamshire County Council,1111/1001,Children and Young People,CYP,Transport Related,CCA,11/04/2012,01-11650,1974,Arrow Specialised Transport Ltd,,,,,,,,,
Nottinghamshire County Council,1111/1001,Children and Young People,CYP,Transport Related,CCA,11/04/2012,01-11651,2310,Arrow Specialised Transport Ltd,,,,,,,,,
Nottinghamshire County Council,1111/1001,Children and Young People,CYP,Transport Related,CCA,11/04/2012,01-11652,2262.54,Arrow Specialised Transport Ltd,,,,,,,,,
Nottinghamshire County Council,1111/1001,Children and Young People,CYP,Transport Related,CCA,11/04/2012,01-11653,2279.34,Arrow Specialised Transport Ltd,,,,,,,,,
Nottinghamshire County Council,1111/1001,Children and Young People,CYP,Transport Related,CCA,11/04/2012,01-11654,2237.13,Arrow Specialised Transport Ltd,,,,,,,,,
Nottinghamshire County Council,1111/1001,Children and Young People,CYP,Transport Related,CCA,11/04/2012,01-11655,2436,Arrow Specialised Transport Ltd,,,,,,,,,
Nottinghamshire County Council,1111/1001,Children and Young People,CYP,Transport Related,CCA,11/04/2012,01-11656,1816.5,Arrow Specialised Transport Ltd,,,,,,,,,
Nottinghamshire County Council,1111/1001,Children and Young People,CYP,Transport Related,CCA,11/04/2012,01-11657,1932,Arrow Specialised Transport Ltd,,,,,,,,,
Nottinghamshire County Council,1111/1001,Children and Young People,CYP,Transport Related,CCA,11/04/2012,01-11658,1870,Arrow Specialised Transport Ltd,,,,,,,,,
Nottinghamshire County Council,1111/1001,Children and Young People,CYP,Transport Related,CCA,11/04/2012,01-11659,1609.74,Arrow Specialised Transport Ltd,,,,,,,,,
Nottinghamshire County Council,1111/1001,Children and Young People,CYP,Transport Related,CCA,11/04/2012,01-11660,1518,Arrow Specialised Transport Ltd,,,,,,,,,
Nottinghamshire County Council,1111/1001,Children and Young People,CYP,Transport Related,CCA,11/04/2012,01-11661,1408,Arrow Specialised Transport Ltd,,,,,,,,,
Nottinghamshire County Council,1111/1001,Children and Young People,CYP,Transport Related,CCA,11/04/2012,01-11662,1385.5,Arrow Specialised Transport Ltd,,,,,,,,,
Nottinghamshire County Council,1111/1001,Children and Young People,CYP,Transport Related,CCA,11/04/2012,01-11663,4070,Arrow Specialised Transport Ltd,,,,,,,,,
Nottinghamshire County Council,1111/1001,Children and Young People,CYP,Transport Related,CCA,11/04/2012,01-11664,11166.15,Arrow Specialised Transport Ltd,,,,,,,,,
Nottinghamshire County Council,1111/1001,Children and Young People,CYP,Transport Related,CCA,11/04/2012,01-11665,3650.15,Arrow Specialised Transport Ltd,,,,,,,,,
Nottinghamshire County Council,1111/1001,Children and Young People,CYP,Transport Related,CCA,11/04/2012,01-11666,2650.2,Arrow Specialised Transport Ltd,,,,,,,,,
Nottinghamshire County Council,1111/1001,Children and Young People,CYP,Transport Related,CCA,11/04/2012,01-11667,2501.1,Arrow Specialised Transport Ltd,,,,,,,,,
Nottinghamshire County Council,1111/1001,Children and Young People,CYP,Transport Related,CCA,11/04/2012,01-11668,2045.4,Arrow Specialised Transport Ltd,,,,,,,,,
Nottinghamshire County Council,1111/1001,Children and Young People,CYP,Transport Related,CCA,11/04/2012,01-11669,2654.4,Arrow Specialised Transport Ltd,,,,,,,,,
Nottinghamshire County Council,1111/1001,Children and Young People,CYP,Transport Related,CCA,11/04/2012,01-11670,2459.6,Arrow Specialised Transport Ltd,,,,,,,,,
Nottinghamshire County Council,1111/1001,Children and Young People,CYP,Transport Related,CCA,11/04/2012,01-11671,1344,Arrow Specialised Transport Ltd,,,,,,,,,
Nottinghamshire County Council,1111/1001,Children and Young People,CYP,Transport Related,CCA,11/04/2012,01-11672,1438.5,Arrow Specialised Transport Ltd,,,,,,,,,
Nottinghamshire County Council,1111/1001,Children and Young People,CYP,Transport Related,CCA,11/04/2012,01-11673,1512,Arrow Specialised Transport Ltd,,,,,,,,,
Nottinghamshire County Council,1111/1001,Children and Young People,CYP,Transport Related,CCA,11/04/2012,01-11674,1407,Arrow Specialised Transport Ltd,,,,,,,,,
Nottinghamshire County Council,1111/1001,Children and Young People,CYP,Transport Related,CCA,11/04/2012,01-11675,1365,Arrow Specialised Transport Ltd,,,,,,,,,
Nottinghamshire County Council,1111/1001,Children and Young People,CYP,Transport Related,CCA,11/04/2012,01-11676,1716,Arrow Specialised Transport Ltd,,,,,,,,,
Nottinghamshire County Council,1111/1001,Children and Young People,CYP,Transport Related,CCA,11/04/2012,01-11677,2587.2,Arrow Specialised Transport Ltd,,,,,,,,,
Nottinghamshire County Council,1111/1001,Children and Young People,CYP,Transport Related,CCA,11/04/2012,01-11678,847,Arrow Specialised Transport Ltd,,,,,,,,,
Nottinghamshire County Council,1111/1001,Children and Young People,CYP,Transport Related,CCA,11/04/2012,01-11679,2726.02,Arrow Specialised Transport Ltd,,,,,,,,,
Nottinghamshire County Council,1111/1001,Children and Young People,CYP,Transport Related,CCA,11/04/2012,01-11680,1870,Arrow Specialised Transport Ltd,,,,,,,,,
Nottinghamshire County Council,1111/1001,Children and Young People,CYP,Transport Related,CCA,11/04/2012,01-11681,1672,Arrow Specialised Transport Ltd,,,,,,,,,
Nottinghamshire County Council,1111/1001,Children and Young People,CYP,Transport Related,CCA,11/04/2012,01-11682,1782,Arrow Specialised Transport Ltd,,,,,,,,,
Nottinghamshire County Council,1111/1001,Children and Young People,CYP,Transport Related,CCA,11/04/2012,01-11683,2134,Arrow Specialised Transport Ltd,,,,,,,,,
Nottinghamshire County Council,1111/1001,Children and Young People,CYP,Transport Related,CCA,11/04/2012,01-11684,1826,Arrow Specialised Transport Ltd,,,,,,,,,
Nottinghamshire County Council,1111/1001,Children and Young People,CYP,Transport Related,CCA,11/04/2012,01-11685,1848,Arrow Specialised Transport Ltd,,,,,,,,,
Nottinghamshire County Council,1111/1001,Children and Young People,CYP,Transport Related,CCA,11/04/2012,01-11686,1262.8,Arrow Specialised Transport Ltd,,,,,,,,,
Nottinghamshire County Council,1111/1001,Children and Young People,CYP,Transport Related,CCA,11/04/2012,01-11687,2455.2,Arrow Specialised Transport Ltd,,,,,,,,,
Nottinghamshire County Council,1111/1001,Children and Young People,CYP,Transport Related,CCA,11/04/2012,01-11688,2508,Arrow Specialised Transport Ltd,,,,,,,,,
Nottinghamshire County Council,1111/1001,Children and Young People,CYP,Transport Related,CCA,11/04/2012,01-11689,3324.05,Arrow Specialised Transport Ltd,,,,,,,,,
Nottinghamshire County Council,1111/1001,Children and Young People,CYP,Transport Related,CCA,11/04/2012,01-11690,762.5,Arrow Specialised Transport Ltd,,,,,,,,,
Nottinghamshire County Council,1111/1001,Children and Young People,CYP,Transport Related,CCA,11/04/2012,01-11691,1169.74,Bridges Transport Services,,,,,,,,,
Nottinghamshire County Council,1111/1001,Children and Young People,CYP,Transport Related,CCA,11/04/2012,01-11692,1320,Bridges Transport Services,,,,,,,,,
Nottinghamshire County Council,1111/1001,Children and Young People,CYP,Transport Related,CCA,11/04/2012,01-11693,1443.2,Bridges Transport Services,,,,,,,,,
Nottinghamshire County Council,1111/1001,Children and Young People,CYP,Transport Related,CCA,11/04/2012,01-11694,1489.06,Bridges Transport Services,,,,,,,,,
Nottinghamshire County Council,1111/1001,Children and Young People,CYP,Transport Related,CCA,11/04/2012,01-11695,1723.48,Bridges Transport Services,,,,,,,,,
Nottinghamshire County Council,1111/1001,Children and Young People,CYP,Transport Related,CCA,11/04/2012,01-11696,1287,Bridges Transport Services,,,,,,,,,
Nottinghamshire County Council,1111/1001,Children and Young People,CYP,Transport Related,CCA,11/04/2012,01-11697,1588.62,Bridges Transport Services,,,,,,,,,
Nottinghamshire County Council,1111/1001,Children and Young People,CYP,Transport Related,CCA,11/04/2012,01-11698,863.06,Bridges Transport Services,,,,,,,,,
Nottinghamshire County Council,1111/1001,Children and Young People,CYP,Transport Related,CCA,11/04/2012,01-11700,4346.57,Bridges Transport Services,,,,,,,,,
Nottinghamshire County Council,1111/1001,Children and Young People,CYP,Transport Related,CCA,11/04/2012,01-11701,1452.22,Bridges Transport Services,,,,,,,,,
Nottinghamshire County Council,1111/1001,Children and Young People,CYP,Transport Related,CCA,11/04/2012,01-11702,1540,Bridges Transport Services,,,,,,,,,
Nottinghamshire County Council,1111/1001,Children and Young People,CYP,Transport Related,CCA,11/04/2012,01-11703,1582.84,Bridges Transport Services,,,,,,,,,
Nottinghamshire County Council,1111/1001,Children and Young People,CYP,Transport Related,CCA,11/04/2012,01-11704,1228.48,Bridges Transport Services,,,,,,,,,
Nottinghamshire County Council,1111/1001,Children and Young People,CYP,Transport Related,CCA,11/04/2012,01-11705,965.14,Bridges Transport Services,,,,,,,,,
Nottinghamshire County Council,1111/1001,Children and Young People,CYP,Transport Related,CCA,11/04/2012,01-11706,536.8,Bridges Transport Services,,,,,,,,,
Nottinghamshire County Council,1111/1001,Children and Young People,CYP,Transport Related,CCA,11/04/2012,01-11707,701,Fozcabs Newark Taxis,,,,,,,,,
Nottinghamshire County Council,1111/1001,Children and Young People,CYP,Transport Related,CCA,11/04/2012,01-11708,1538.05,Fozcabs Newark Taxis,,,,,,,,,
Nottinghamshire County Council,1111/1001,Children and Young People,CYP,Transport Related,CCA,11/04/2012,01-11709,717.2,Fozcabs Newark Taxis,,,,,,,,,
Nottinghamshire County Council,1111/1001,Children and Young People,CYP,Transport Related,CCA,11/04/2012,01-11710,427.5,Fozcabs Newark Taxis,,,,,,,,,
Nottinghamshire County Council,1111/1001,Children and Young People,CYP,Transport Related,CCA,11/04/2012,01-11711,1712,Fozcabs Newark Taxis,,,,,,,,,
Nottinghamshire County Council,1111/1001,Children and Young People,CYP,Transport Related,CCA,11/04/2012,01-11712,2646.6,Horizon Travel,,,,,,,,,
Nottinghamshire County Council,1111/1001,Children and Young People,CYP,Transport Related,CCA,11/04/2012,01-11713,2227.02,Horizon Travel,,,,,,,,,
Nottinghamshire County Council,1111/1001,Children and Young People,CYP,Transport Related,CCA,11/04/2012,01-11714,3380.52,Horizon Travel,,,,,,,,,
Nottinghamshire County Council,1111/1001,Children and Young People,CYP,Transport Related,CCA,11/04/2012,01-11715,2758.8,Ja Travel Ltd,,,,,,,,,
Nottinghamshire County Council,1111/1001,Children and Young People,CYP,Transport Related,CCA,11/04/2012,01-11716,3058,Ja Travel Ltd,,,,,,,,,
Nottinghamshire County Council,1111/1001,Children and Young People,CYP,Transport Related,CCA,11/04/2012,01-11717,3383,Ja Travel Ltd,,,,,,,,,
Nottinghamshire County Council,1111/1001,Children and Young People,CYP,Transport Related,CCA,11/04/2012,01-11718,2738.56,Mct Uk Ltd,,,,,,,,,
Nottinghamshire County Council,1111/1001,Children and Young People,CYP,Transport Related,CCA,11/04/2012,01-11719,1539.6,Oasis Taxis Mansfield Ltd,,,,,,,,,
Nottinghamshire County Council,1111/1001,Children and Young People,CYP,Transport Related,CCA,11/04/2012,01-11720,1819.68,Sprays Transport Ltd,,,,,,,,,
Nottinghamshire County Council,1111/1001,Children and Young People,CYP,Transport Related,CCA,11/04/2012,01-11721,2342.56,Sprays Transport Ltd,,,,,,,,,
Nottinghamshire County Council,1111/1001,Children and Young People,CYP,Transport Related,CCA,11/04/2012,01-11722,1764,Sprays Transport Ltd,,,,,,,,,
Nottinghamshire County Council,1111/1001,Children and Young People,CYP,Transport Related,CCA,11/04/2012,01-11723,1785,Sprays Transport Ltd,,,,,,,,,
Nottinghamshire County Council,1111/1001,Children and Young People,CYP,Transport Related,CCA,11/04/2012,01-11724,1638,Sprays Transport Ltd,,,,,,,,,
Nottinghamshire County Council,1111/1001,Children and Young People,CYP,Transport Related,CCA,11/04/2012,01-11725,892.5,Sprays Transport Ltd,,,,,,,,,
Nottinghamshire County Council,1111/1001,Children and Young People,CYP,Transport Related,CCA,11/04/2012,01-11726,1785,Sprays Transport Ltd,,,,,,,,,
Nottinghamshire County Council,1111/1001,Children and Young People,CYP,Transport Related,CCA,11/04/2012,01-11727,1980,Sprays Transport Ltd,,,,,,,,,
Nottinghamshire County Council,1111/1001,Children and Young People,CYP,Transport Related,CCA,11/04/2012,01-11728,2112,Sprays Transport Ltd,,,,,,,,,
Nottinghamshire County Council,1111/1001,Children and Young People,CYP,Transport Related,CCA,11/04/2012,01-11729,2068,Sprays Transport Ltd,,,,,,,,,
Nottinghamshire County Council,1111/1001,Children and Young People,CYP,Transport Related,CCA,11/04/2012,01-11730,1722,Sprays Transport Ltd,,,,,,,,,
Nottinghamshire County Council,1111/1001,Children and Young People,CYP,Transport Related,CCA,11/04/2012,01-11731,1848,Sprays Transport Ltd,,,,,,,,,
Nottinghamshire County Council,1111/1001,Children and Young People,CYP,Transport Related,CCA,11/04/2012,01-11732,1254,Sprays Transport Ltd,,,,,,,,,
Nottinghamshire County Council,1111/1001,Children and Young People,CYP,Transport Related,CCA,11/04/2012,01-11733,1764,Sprays Transport Ltd,,,,,,,,,
Nottinghamshire County Council,1111/1001,Children and Young People,CYP,Transport Related,CCA,11/04/2012,01-11734,2415,Sprays Transport Ltd,,,,,,,,,
Nottinghamshire County Council,1111/1001,Children and Young People,CYP,Transport Related,CCA,11/04/2012,01-11735,2472.58,Sprays Transport Ltd,,,,,,,,,
Nottinghamshire County Council,1111/1001,Children and Young People,CYP,Transport Related,CCA,11/04/2012,01-11736,2410.32,Sprays Transport Ltd,,,,,,,,,
Nottinghamshire County Council,1111/1001,Children and Young People,CYP,Transport Related,CCA,11/04/2012,01-11737,2244,Sprays Transport Ltd,,,,,,,,,
Nottinghamshire County Council,1111/1001,Children and Young People,CYP,Transport Related,CCA,11/04/2012,01-11738,2379.52,Sprays Transport Ltd,,,,,,,,,
Nottinghamshire County Council,1111/1001,Children and Young People,CYP,Transport Related,CCA,11/04/2012,01-11739,2359.28,Sprays Transport Ltd,,,,,,,,,
Nottinghamshire County Council,1111/1001,Children and Young People,CYP,Transport Related,CCA,11/04/2012,01-11740,2743.65,Sprays Transport Ltd,,,,,,,,,
Nottinghamshire County Council,1111/1001,Children and Young People,CYP,Transport Related,CCA,11/04/2012,01-11741,2614.26,Sprays Transport Ltd,,,,,,,,,
Nottinghamshire County Council,1111/1001,Children and Young People,CYP,Transport Related,CCA,11/04/2012,01-11742,2789.16,Sprays Transport Ltd,,,,,,,,,
Nottinghamshire County Council,1111/1001,Children and Young People,CYP,Transport Related,CCA,11/04/2012,01-11743,1307.99,Sprays Transport Ltd,,,,,,,,,
Nottinghamshire County Council,1111/1001,Children and Young People,CYP,Transport Related,CCA,11/04/2012,01-11744,3150.62,Sprays Transport Ltd,,,,,,,,,
Nottinghamshire County Council,1111/1001,Children and Young People,CYP,Transport Related,CCA,11/04/2012,01-11745,1150.16,Elkingtons Park Garage,,,,,,,,,
Nottinghamshire County Council,1111/1001,Children and Young People,CYP,Transport Related,CCA,11/04/2012,01-11746,2631.42,K & S Coaches,,,,,,,,,
Nottinghamshire County Council,1111/1001,Children and Young People,CYP,Transport Related,CCA,11/04/2012,01-11747,1899.68,P Rhodes Transport Ltd,,,,,,,,,
Nottinghamshire County Council,1111/1001,Children and Young People,CYP,Transport Related,CCA,11/04/2012,01-11748,2344.44,Travelwise Coaches Ltd,,,,,,,,,
Nottinghamshire County Council,1111/1001,Children and Young People,CYP,Transport Related,CCA,11/04/2012,01-11749,1959.72,Travelwise Coaches Ltd,,,,,,,,,
Nottinghamshire County Council,1111/1001,Children and Young People,CYP,Transport Related,CCA,11/04/2012,01-11750,2131.92,Travelwise Coaches Ltd,,,,,,,,,
Nottinghamshire County Council,1111/1001,Children and Young People,CYP,Transport Related,CCA,11/04/2012,01-11751,2147.67,Travelwise Coaches Ltd,,,,,,,,,
Nottinghamshire County Council,1111/1001,Children and Young People,CYP,Transport Related,CCA,11/04/2012,01-11752,2525.16,Travelwise Coaches Ltd,,,,,,,,,
Nottinghamshire County Council,1111/1001,Children and Young People,CYP,Transport Related,CCA,11/04/2012,01-11753,2750,Travelwise Coaches Ltd,,,,,,,,,
Nottinghamshire County Council,1111/1001,Children and Young People,CYP,Transport Related,CCA,11/04/2012,01-11760,3869.36,AOT Coaches,,,,,,,,,
Nottinghamshire County Council,1111/1001,Children and Young People,CYP,Transport Related,CCA,11/04/2012,01-11761,2112,AOT Coaches,,,,,,,,,
Nottinghamshire County Council,1111/1001,Children and Young People,CYP,Transport Related,CCA,11/04/2012,01-11762,1350,AOT Coaches,,,,,,,,,
Nottinghamshire County Council,1111/1001,Children and Young People,CYP,Transport Related,CCA,11/04/2012,01-11763,953.29,AOT Coaches,,,,,,,,,
Nottinghamshire County Council,1111/1001,Children and Young People,CYP,Transport Related,CCA,11/04/2012,01-11766,924.22,Nottm Minibuses & Coaches,,,,,,,,,
Nottinghamshire County Council,1111/1001,Children and Young People,CYP,Transport Related,CCA,11/04/2012,01-11767,2034.12,Ashfield Travel,,,,,,,,,
Nottinghamshire County Council,1111/1001,Children and Young People,CYP,Transport Related,CCA,11/04/2012,01-11768,3440,Freeway Coaches Ltd,,,,,,,,,
Nottinghamshire County Council,1111/1001,Children and Young People,CYP,Transport Related,CCA,11/04/2012,01-11772,9380.8,Kettlewell Retford Ltd,,,,,,,,,
Nottinghamshire County Council,1111/1001,Children and Young People,CYP,Transport Related,CCA,11/04/2012,01-11773,787.33,AAA Taxis,,,,,,,,,
Nottinghamshire County Council,1111/1001,Children and Young People,CYP,Transport Related,CCA,11/04/2012,01-11774,909.5,AAA Taxis,,,,,,,,,
Nottinghamshire County Council,1111/1001,Children and Young People,CYP,Transport Related,CCA,11/04/2012,01-11775,2035,AAA Taxis,,,,,,,,,
Nottinghamshire County Council,1111/1001,Children and Young People,CYP,Transport Related,CCA,11/04/2012,01-11776,2167,AAA Taxis,,,,,,,,,
Nottinghamshire County Council,1111/1001,Children and Young People,CYP,Transport Related,CCA,11/04/2012,01-11777,2281.4,AAA Taxis,,,,,,,,,
Nottinghamshire County Council,1111/1001,Children and Young People,CYP,Transport Related,CCA,13/04/2012,01-10053,1876.05,Erewash Community Transport,,,,,,,,,
Nottinghamshire County Council,1111/1001,Children and Young People,CYP,Transport Related,CCA,13/04/2012,01-12302,2868.8,Sharpes Of Nottingham,,,,,,,,,
Nottinghamshire County Council,1111/1001,Children and Young People,CYP,Transport Related,CCA,13/04/2012,01-12307,600,Sharpes Of Nottingham,,,,,,,,,
Nottinghamshire County Council,1111/1001,Children and Young People,CYP,Transport Related,CCA,13/04/2012,01-12308,2730.64,Sharpes Of Nottingham,,,,,,,,,
Nottinghamshire County Council,1111/1001,Children and Young People,CYP,Transport Related,CCA,13/04/2012,01-12310,517,Southside Cars,,,,,,,,,
Nottinghamshire County Council,1111/1001,Children and Young People,CYP,Transport Related,CCA,13/04/2012,01-12311,800,Southside Cars,,,,,,,,,
Nottinghamshire County Council,1111/1001,Children and Young People,CYP,Transport Related,CCA,13/04/2012,01-12312,1445.5,Southside Cars,,,,,,,,,
Nottinghamshire County Council,1111/1001,Children and Young People,CYP,Transport Related,CCA,13/04/2012,01-12313,250,Southside Cars,,,,,,,,,
Nottinghamshire County Council,1111/1001,Children and Young People,CYP,Transport Related,CCA,13/04/2012,01-12314,950,Southside Cars,,,,,,,,,
Nottinghamshire County Council,1111/1001,Children and Young People,CYP,Transport Related,CCA,13/04/2012,01-12315,1198.5,Southside Cars,,,,,,,,,
Nottinghamshire County Council,1111/1001,Children and Young People,CYP,Transport Related,CCA,13/04/2012,01-12316,2420.5,Southside Cars,,,,,,,,,
Nottinghamshire County Council,1111/1001,Children and Young People,CYP,Transport Related,CCA,13/04/2012,01-12317,985.5,Southside Cars,,,,,,,,,
Nottinghamshire County Council,1111/1001,Children and Young People,CYP,Transport Related,CCA,13/04/2012,01-12318,1896,Southside Cars,,,,,,,,,
Nottinghamshire County Council,1111/1001,Children and Young People,CYP,Transport Related,CCA,13/04/2012,01-12319,1755,Southside Cars,,,,,,,,,
Nottinghamshire County Council,1111/1001,Children and Young People,CYP,Transport Related,CCA,13/04/2012,01-12320,1034,Southside Cars,,,,,,,,,
Nottinghamshire County Council,1111/1001,Children and Young People,CYP,Transport Related,CCA,13/04/2012,01-12321,2053.76,Southside Cars,,,,,,,,,
Nottinghamshire County Council,1111/1001,Children and Young People,CYP,Transport Related,CCA,13/04/2012,01-12322,882,Southside Cars,,,,,,,,,
Nottinghamshire County Council,1111/1001,Children and Young People,CYP,Transport Related,CCA,13/04/2012,01-12338,4326,Premiere Travel Ltd,,,,,,,,,
Nottinghamshire County Council,1111/1001,Children and Young People,CYP,Transport Related,CCA,13/04/2012,01-12342,3979.8,Redfern Travel,,,,,,,,,
Nottinghamshire County Council,1111/1001,Children and Young People,CYP,Transport Related,CCA,13/04/2012,01-12348,2640,Vale Travel,,,,,,,,,
Nottinghamshire County Council,1111/1001,Children and Young People,CYP,Transport Related,CCA,13/04/2012,01-12354,1281.28,Acorn Travel,,,,,,,,,
Nottinghamshire County Council,1111/1001,Children and Young People,CYP,Transport Related,CCA,13/04/2012,01-12355,2257.2,Arrow Specialised Transport Ltd,,,,,,,,,
Nottinghamshire County Council,1111/1001,Children and Young People,CYP,Transport Related,CCA,13/04/2012,01-12366,660,D G Private Hire Ltd,,,,,,,,,
Nottinghamshire County Council,1111/1001,Children and Young People,CYP,Transport Related,CCA,13/04/2012,01-12367,1628,D G Private Hire Ltd,,,,,,,,,
Nottinghamshire County Council,1111/1001,Children and Young People,CYP,Transport Related,CCA,13/04/2012,01-12368,1260,D G Private Hire Ltd,,,,,,,,,
Nottinghamshire County Council,1111/1001,Children and Young People,CYP,Transport Related,CCA,13/04/2012,01-12369,2046,D G Private Hire Ltd,,,,,,,,,
Nottinghamshire County Council,1111/1001,Children and Young People,CYP,Transport Related,CCA,13/04/2012,01-12370,1105.5,D G Private Hire Ltd,,,,,,,,,
Nottinghamshire County Council,1111/1001,Children and Young People,CYP,Transport Related,CCA,13/04/2012,01-12371,510,D G Private Hire Ltd,,,,,,,,,
Nottinghamshire County Council,1111/1001,Children and Young People,CYP,Transport Related,CCA,13/04/2012,01-12373,2374.74,Headland Taxi Services,,,,,,,,,
Nottinghamshire County Council,1111/1001,Children and Young People,CYP,Transport Related,CCA,13/04/2012,01-12374,1627.72,Headland Taxi Services,,,,,,,,,
Nottinghamshire County Council,1111/1001,Children and Young People,CYP,Transport Related,CCA,13/04/2012,01-12381,1760,Sprays Transport Ltd,,,,,,,,,
Nottinghamshire County Council,1111/1001,Children and Young People,CYP,Transport Related,CCA,13/04/2012,01-12382,1870,Sprays Transport Ltd,,,,,,,,,
Nottinghamshire County Council,1111/1001,Children and Young People,CYP,Transport Related,CCA,13/04/2012,01-12383,612,Trent Cars,,,,,,,,,
Nottinghamshire County Council,1111/1001,Children and Young People,CYP,Transport Related,CCA,13/04/2012,01-12384,1650,Trent Cars,,,,,,,,,
Nottinghamshire County Council,1111/1001,Children and Young People,CYP,Transport Related,CCA,13/04/2012,01-12387,3165.75,F & J Marriott T/A Unity Coaches,,,,,,,,,
Nottinghamshire County Council,1111/1001,Children and Young People,CYP,Transport Related,CCA,13/04/2012,01-12388,3165.75,F & J Marriott T/A Unity Coaches,,,,,,,,,
Nottinghamshire County Council,1111/1001,Children and Young People,CYP,Transport Related,CCA,13/04/2012,01-12393,2158.2,Vallances Coaches,,,,,,,,,
Nottinghamshire County Council,1111/1001,Children and Young People,CYP,Transport Related,CCA,13/04/2012,01-12394,2468.4,Vallances Coaches,,,,,,,,,
Nottinghamshire County Council,1111/1001,Children and Young People,CYP,Transport Related,CCA,13/04/2012,01-12397,2637.8,Ron Gash & Sons Ltd,,,,,,,,,
Nottinghamshire County Council,1111/1001,Children and Young People,CYP,Transport Related,CCA,13/04/2012,01-12398,2775.08,Bn Gibson Ltd,,,,,,,,,
Nottinghamshire County Council,1111/1001,Children and Young People,CYP,Transport Related,CCA,13/04/2012,01-12399,3485.68,Bn Gibson Ltd,,,,,,,,,
Nottinghamshire County Council,1111/1001,Children and Young People,CYP,Transport Related,CCA,13/04/2012,01-12400,2994.42,Bn Gibson Ltd,,,,,,,,,
Nottinghamshire County Council,1111/1001,Children and Young People,CYP,Transport Related,CCA,13/04/2012,01-12401,3555.98,Bn Gibson Ltd,,,,,,,,,
Nottinghamshire County Council,1111/1001,Children and Young People,CYP,Transport Related,CCA,13/04/2012,01-12402,3541.86,Goldstar Travel Nottm Ltd,,,,,,,,,
Nottinghamshire County Council,1111/1001,Children and Young People,CYP,Transport Related,CCA,13/04/2012,01-12403,1540,Goldstar Travel Nottm Ltd,,,,,,,,,
Nottinghamshire County Council,1111/1001,Children and Young People,CYP,Transport Related,CCA,13/04/2012,01-12404,0.01,Premier Taxis,,,,,,,,,
Nottinghamshire County Council,1111/1001,Children and Young People,CYP,Transport Related,CCA,13/04/2012,01-12405,704,D G Private Hire Ltd,,,,,,,,,
Nottinghamshire County Council,1111/1001,Children and Young People,CYP,Transport Related,CCA,13/04/2012,01-12406,270,D G Private Hire Ltd,,,,,,,,,
Nottinghamshire County Council,1111/1001,Children and Young People,CYP,Transport Related,CCA,13/04/2012,01-12407,553.79,D G Private Hire Ltd,,,,,,,,,
Nottinghamshire County Council,1111/1001,Children and Young People,CYP,Transport Related,CCA,13/04/2012,01-12408,2743.4,Amvale Ltd,,,,,,,,,
Nottinghamshire County Council,1111/1001,Children and Young People,CYP,Transport Related,CCA,13/04/2012,01-12409,540,Beechwood Taxis,,,,,,,,,
Nottinghamshire County Council,1111/1001,Children and Young People,CYP,Transport Related,CCA,13/04/2012,01-12411,1980,Garys Coaches Ltd,,,,,,,,,
Nottinghamshire County Council,1111/1001,Children and Young People,CYP,Transport Related,CCA,13/04/2012,01-12413,1430,K & R Cars,,,,,,,,,
Nottinghamshire County Council,1111/1001,Children and Young People,CYP,Transport Related,CCA,13/04/2012,01-12422,3537.6,Marshalls Of Sutton On Trent Ltd,,,,,,,,,
Nottinghamshire County Council,1111/1001,Children and Young People,CYP,Transport Related,CCA,13/04/2012,01-12428,1076.46,Meden Travel,,,,,,,,,
Nottinghamshire County Council,1111/1001,Children and Young People,CYP,Transport Related,CCA,13/04/2012,01-12441,3585.78,Travel Wright Ltd,,,,,,,,,
Nottinghamshire County Council,1111/1001,Children and Young People,CYP,Transport Related,CCA,13/04/2012,01-12442,14101.78,Travel Wright Ltd,,,,,,,,,
Nottinghamshire County Council,1111/1001,Children and Young People,CYP,Transport Related,CCA,13/04/2012,01-12443,2890.14,Travel Wright Ltd,,,,,,,,,
Nottinghamshire County Council,1111/1001,Children and Young People,CYP,Transport Related,CCA,13/04/2012,01-12450,3410,Travel Wright Ltd,,,,,,,,,
Nottinghamshire County Council,1111/1001,Children and Young People,CYP,Transport Related,CCA,13/04/2012,01-12453,2185.26,Jc Coaches,,,,,,,,,
Nottinghamshire County Council,1111/1001,Children and Young People,CYP,Transport Related,CCA,13/04/2012,01-12455,631.6,P & P Taxis,,,,,,,,,
Nottinghamshire County Council,1111/1001,Children and Young People,CYP,Transport Related,CCA,13/04/2012,01-12456,1496,P & P Taxis,,,,,,,,,
Nottinghamshire County Council,1111/1001,Children and Young People,CYP,Transport Related,CCA,13/04/2012,01-12464,1319.56,AAA Taxis,,,,,,,,,
Nottinghamshire County Council,1111/1001,Children and Young People,CYP,Transport Related,CCA,13/04/2012,01-12465,1287,AAA Taxis,,,,,,,,,
Nottinghamshire County Council,1111/1001,Children and Young People,CYP,Transport Related,CCA,13/04/2012,01-12466,979,AAA Taxis,,,,,,,,,
Nottinghamshire County Council,1111/1001,Children and Young People,CYP,Transport Related,CCA,13/04/2012,01-12467,1496,AAA Taxis,,,,,,,,,
Nottinghamshire County Council,1111/1001,Children and Young People,CYP,Transport Related,CCA,13/04/2012,01-12468,1688,AAA Taxis,,,,,,,,,
Nottinghamshire County Council,1111/1001,Children and Young People,CYP,Transport Related,CCA,13/04/2012,01-12471,3648.26,C W Moxon Ltd,,,,,,,,,
Nottinghamshire County Council,1111/1001,Children and Young People,CYP,Transport Related,CCA,13/04/2012,01-12474,1694,Town Taxis Ltd,,,,,,,,,
Nottinghamshire County Council,1111/1001,Children and Young People,CYP,Transport Related,CCA,13/04/2012,01-12475,752.4,Town Taxis Ltd,,,,,,,,,
Nottinghamshire County Council,1111/1001,Children and Young People,CYP,Transport Related,CCA,13/04/2012,01-12476,1029.6,Town Taxis Ltd,,,,,,,,,
Nottinghamshire County Council,1111/1001,Children and Young People,CYP,Transport Related,CCA,13/04/2012,01-12477,770,Town Taxis Ltd,,,,,,,,,
Nottinghamshire County Council,1111/1001,Children and Young People,CYP,Transport Related,CCA,13/04/2012,01-12478,900,Town Taxis Ltd,,,,,,,,,
Nottinghamshire County Council,1111/1001,Children and Young People,CYP,Transport Related,CCA,13/04/2012,01-12481,4643.1,Isle Coaches,,,,,,,,,
Nottinghamshire County Council,1111/1001,Children and Young People,CYP,Transport Related,CCA,13/04/2012,01-12483,726,Direct Cars (Lincoln) Ltd,,,,,,,,,
Nottinghamshire County Council,1111/1001,Children and Young People,CYP,Transport Related,CCA,13/04/2012,01-12484,1870,Stubbsy Travel,,,,,,,,,
Nottinghamshire County Council,1111/1001,Children and Young People,CYP,Transport Related,CCA,16/04/2012,01-12545,880,A C Taxis,,,,,,,,,
Nottinghamshire County Council,1111/1001,Children and Young People,CYP,Transport Related,CCA,16/04/2012,01-12546,1633.06,A Line Taxis,,,,,,,,,
Nottinghamshire County Council,1111/1001,Children and Young People,CYP,Transport Related,CCA,16/04/2012,01-12547,717.57,A Line Taxis,,,,,,,,,
Nottinghamshire County Council,1111/1001,Children and Young People,CYP,Transport Related,CCA,16/04/2012,01-12548,770,A Line Taxis,,,,,,,,,
Nottinghamshire County Council,1111/1001,Children and Young People,CYP,Transport Related,CCA,16/04/2012,01-12549,1452,Central Cars Nottm Ltd,,,,,,,,,
Nottinghamshire County Council,1111/1001,Children and Young People,CYP,Transport Related,CCA,16/04/2012,01-12550,924,Central Cars Nottm Ltd,,,,,,,,,
Nottinghamshire County Council,1111/1001,Children and Young People,CYP,Transport Related,CCA,16/04/2012,01-12551,3561.6,Central Cars Nottm Ltd,,,,,,,,,
Nottinghamshire County Council,1111/1001,Children and Young People,CYP,Transport Related,CCA,16/04/2012,01-12552,1611.72,Central Cars Nottm Ltd,,,,,,,,,
Nottinghamshire County Council,1111/1001,Children and Young People,CYP,Transport Related,CCA,16/04/2012,01-12553,1672,Central Cars Nottm Ltd,,,,,,,,,
Nottinghamshire County Council,1111/1001,Children and Young People,CYP,Transport Related,CCA,16/04/2012,01-12554,1260,Central Cars Nottm Ltd,,,,,,,,,
Nottinghamshire County Council,1111/1001,Children and Young People,CYP,Transport Related,CCA,16/04/2012,01-12555,1498.64,Central Cars Nottm Ltd,,,,,,,,,
Nottinghamshire County Council,1111/1001,Children and Young People,CYP,Transport Related,CCA,16/04/2012,01-12556,1056,Central Cars Nottm Ltd,,,,,,,,,
Nottinghamshire County Council,1111/1001,Children and Young People,CYP,Transport Related,CCA,16/04/2012,01-12566,2651.44,Harrison Ford,,,,,,,,,
Nottinghamshire County Council,1111/1001,Children and Young People,CYP,Transport Related,CCA,16/04/2012,01-12567,1251.2,Motorvation Taxis,,,,,,,,,
Nottinghamshire County Council,1111/1001,Children and Young People,CYP,Transport Related,CCA,16/04/2012,01-12568,528,Motorvation Taxis,,,,,,,,,
Nottinghamshire County Council,1111/1001,Children and Young People,CYP,Transport Related,CCA,16/04/2012,01-12569,3622.08,F & J Marriott T/A Unity Coaches,,,,,,,,,
Nottinghamshire County Council,1111/1001,Children and Young People,CYP,Transport Related,CCA,16/04/2012,01-12570,5470.52,Bn Gibson Ltd,,,,,,,,,
Nottinghamshire County Council,1111/1001,Children and Young People,CYP,Transport Related,CCA,16/04/2012,01-12571,3544.42,Bn Gibson Ltd,,,,,,,,,
Nottinghamshire County Council,1111/1001,Children and Young People,CYP,Transport Related,CCA,16/04/2012,01-12572,3527.7,Bn Gibson Ltd,,,,,,,,,
Nottinghamshire County Council,1111/1001,Children and Young People,CYP,Transport Related,CCA,16/04/2012,01-12573,4397.58,Bn Gibson Ltd,,,,,,,,,
Nottinghamshire County Council,1111/1001,Children and Young People,CYP,Transport Related,CCA,16/04/2012,01-12574,2637.6,Bn Gibson Ltd,,,,,,,,,
Nottinghamshire County Council,1111/1001,Children and Young People,CYP,Transport Related,CCA,16/04/2012,01-12575,3401.79,Bn Gibson Ltd,,,,,,,,,
Nottinghamshire County Council,1111/1001,Children and Young People,CYP,Transport Related,CCA,16/04/2012,01-12576,3150,Bn Gibson Ltd,,,,,,,,,
Nottinghamshire County Council,1111/1001,Children and Young People,CYP,Transport Related,CCA,16/04/2012,01-12577,4675.02,Bn Gibson Ltd,,,,,,,,,
Nottinghamshire County Council,1111/1001,Children and Young People,CYP,Transport Related,CCA,16/04/2012,01-12578,3228.28,Bn Gibson Ltd,,,,,,,,,
Nottinghamshire County Council,1111/1001,Children and Young People,CYP,Transport Related,CCA,16/04/2012,01-12579,3212.36,Bn Gibson Ltd,,,,,,,,,
Nottinghamshire County Council,1111/1001,Children and Young People,CYP,Transport Related,CCA,16/04/2012,01-12580,2500.3,Bn Gibson Ltd,,,,,,,,,
Nottinghamshire County Council,1111/1001,Children and Young People,CYP,Transport Related,CCA,16/04/2012,01-12581,3740,Bn Gibson Ltd,,,,,,,,,
Nottinghamshire County Council,1111/1001,Children and Young People,CYP,Transport Related,CCA,16/04/2012,01-12582,3740,Bn Gibson Ltd,,,,,,,,,
Nottinghamshire County Council,1111/1001,Children and Young People,CYP,Transport Related,CCA,16/04/2012,01-12583,1628,Bn Gibson Ltd,,,,,,,,,
Nottinghamshire County Council,1111/1001,Children and Young People,CYP,Transport Related,CCA,16/04/2012,01-12584,2830.3,Bn Gibson Ltd,,,,,,,,,
Nottinghamshire County Council,1111/1001,Children and Young People,CYP,Transport Related,CCA,16/04/2012,01-12585,2559.36,Bn Gibson Ltd,,,,,,,,,
Nottinghamshire County Council,1111/1001,Children and Young People,CYP,Transport Related,CCA,16/04/2012,01-12586,3179.88,Bn Gibson Ltd,,,,,,,,,
Nottinghamshire County Council,1111/1001,Children and Young People,CYP,Transport Related,CCA,16/04/2012,01-12587,4556.86,Bn Gibson Ltd,,,,,,,,,
Nottinghamshire County Council,1111/1001,Children and Young People,CYP,Transport Related,CCA,16/04/2012,01-12588,3174.6,Bn Gibson Ltd,,,,,,,,,
Nottinghamshire County Council,1111/1001,Children and Young People,CYP,Transport Related,CCA,16/04/2012,01-12589,1143,123 Taxis,,,,,,,,,
Nottinghamshire County Council,1111/1001,Children and Young People,CYP,Transport Related,CCA,16/04/2012,01-12590,751.74,123 Taxis,,,,,,,,,
Nottinghamshire County Council,1111/1001,Children and Young People,CYP,Transport Related,CCA,16/04/2012,01-12591,830.45,123 Taxis,,,,,,,,,
Nottinghamshire County Council,1111/1001,Children and Young People,CYP,Transport Related,CCA,16/04/2012,01-12599,7040,Stagecoach Services Ltd,,,,,,,,,
Nottinghamshire County Council,1111/1001,Children and Young People,CYP,Transport Related,CCA,16/04/2012,01-12600,3300,Stagecoach Services Ltd,,,,,,,,,
Nottinghamshire County Council,1111/1001,Children and Young People,CYP,Transport Related,CCA,16/04/2012,01-12627,3625.82,Tiger European Uk Ltd,,,,,,,,,
Nottinghamshire County Council,1111/1001,Children and Young People,CYP,Transport Related,CCA,19/04/2012,01-13152,737,Mar Taxis Ltd,,,,,,,,,
Nottinghamshire County Council,1111/1001,Children and Young People,CYP,Transport Related,CCA,19/04/2012,01-13153,2967.8,Sharpes Of Nottingham,,,,,,,,,
Nottinghamshire County Council,1111/1001,Children and Young People,CYP,Transport Related,CCA,19/04/2012,01-13154,1206,6 Five 2s,,,,,,,,,
Nottinghamshire County Council,1111/1001,Children and Young People,CYP,Transport Related,CCA,19/04/2012,01-13155,1370.6,6 Five 2s,,,,,,,,,
Nottinghamshire County Council,1111/1001,Children and Young People,CYP,Transport Related,CCA,19/04/2012,01-13156,1161.6,6 Five 2s,,,,,,,,,
Nottinghamshire County Council,1111/1001,Children and Young People,CYP,Transport Related,CCA,19/04/2012,01-13157,1848,6 Five 2s,,,,,,,,,
Nottinghamshire County Council,1111/1001,Children and Young People,CYP,Transport Related,CCA,19/04/2012,01-13158,829.92,6 Five 2s,,,,,,,,,
Nottinghamshire County Council,1111/1001,Children and Young People,CYP,Transport Related,CCA,19/04/2012,01-13159,970.62,6 Five 2s,,,,,,,,,
Nottinghamshire County Council,1111/1001,Children and Young People,CYP,Transport Related,CCA,19/04/2012,01-13160,916.08,6 Five 2s,,,,,,,,,
Nottinghamshire County Council,1111/1001,Children and Young People,CYP,Transport Related,CCA,19/04/2012,01-13161,502.6,6 Five 2s,,,,,,,,,
Nottinghamshire County Council,1111/1001,Children and Young People,CYP,Transport Related,CCA,19/04/2012,01-13162,1116,6 Five 2s,,,,,,,,,
Nottinghamshire County Council,1111/1001,Children and Young People,CYP,Transport Related,CCA,19/04/2012,01-13163,1537.8,6 Five 2s,,,,,,,,,
Nottinghamshire County Council,1111/1001,Children and Young People,CYP,Transport Related,CCA,19/04/2012,01-13165,701.12,Central Cars Nottm Ltd,,,,,,,,,
Nottinghamshire County Council,1111/1001,Children and Young People,CYP,Transport Related,CCA,19/04/2012,01-13166,700,Central Cars Nottm Ltd,,,,,,,,,
Nottinghamshire County Council,1111/1001,Children and Young People,CYP,Transport Related,CCA,19/04/2012,01-13167,605,Central Cars Nottm Ltd,,,,,,,,,
Nottinghamshire County Council,1111/1001,Children and Young People,CYP,Transport Related,CCA,19/04/2012,01-13168,1800,Redfern Travel,,,,,,,,,
Nottinghamshire County Council,1111/1001,Children and Young People,CYP,Transport Related,CCA,19/04/2012,01-13169,4675,Redfern Travel,,,,,,,,,
Nottinghamshire County Council,1111/1001,Children and Young People,CYP,Transport Related,CCA,19/04/2012,01-13190,708,Arrow Specialised Transport Ltd,,,,,,,,,
Nottinghamshire County Council,1111/1001,Children and Young People,CYP,Transport Related,CCA,19/04/2012,01-13193,2729.98,1st 4 Care Ltd,,,,,,,,,
Nottinghamshire County Council,1111/1001,Children and Young People,CYP,Transport Related,CCA,19/04/2012,01-13194,2824.14,1st 4 Care Ltd,,,,,,,,,
Nottinghamshire County Council,1111/1001,Children and Young People,CYP,Transport Related,CCA,19/04/2012,01-13195,2769.8,1st 4 Care Ltd,,,,,,,,,
Nottinghamshire County Council,1111/1001,Children and Young People,CYP,Transport Related,CCA,19/04/2012,01-13196,2533.08,1st 4 Care Ltd,,,,,,,,,
Nottinghamshire County Council,1111/1001,Children and Young People,CYP,Transport Related,CCA,19/04/2012,01-13197,2500.47,1st 4 Care Ltd,,,,,,,,,
Nottinghamshire County Council,1111/1001,Children and Young People,CYP,Transport Related,CCA,19/04/2012,01-13198,2331,1st 4 Care Ltd,,,,,,,,,
Nottinghamshire County Council,1111/1001,Children and Young People,CYP,Transport Related,CCA,19/04/2012,01-13199,2484,1st 4 Care Ltd,,,,,,,,,
Nottinghamshire County Council,1111/1001,Children and Young People,CYP,Transport Related,CCA,19/04/2012,01-13200,3749.9,1st 4 Care Ltd,,,,,,,,,
Nottinghamshire County Council,1111/1001,Children and Young People,CYP,Transport Related,CCA,19/04/2012,01-13202,1105,1st 4 Care Ltd,,,,,,,,,
Nottinghamshire County Council,1111/1001,Children and Young People,CYP,Transport Related,CCA,19/04/2012,01-13203,1372.14,1st 4 Care Ltd,,,,,,,,,
Nottinghamshire County Council,1111/1001,Children and Young People,CYP,Transport Related,CCA,19/04/2012,01-13204,4400,1st 4 Care Ltd,,,,,,,,,
Nottinghamshire County Council,1111/1001,Children and Young People,CYP,Transport Related,CCA,19/04/2012,01-13206,3316.5,Bn Gibson Ltd,,,,,,,,,
Nottinghamshire County Council,1111/1001,Children and Young People,CYP,Transport Related,CCA,19/04/2012,01-13207,4054.6,Bn Gibson Ltd,,,,,,,,,
Nottinghamshire County Council,1111/1001,Children and Young People,CYP,Transport Related,CCA,19/04/2012,01-13208,3593.04,Bn Gibson Ltd,,,,,,,,,
Nottinghamshire County Council,1111/1001,Children and Young People,CYP,Transport Related,CCA,19/04/2012,01-13209,2214.08,Bn Gibson Ltd,,,,,,,,,
Nottinghamshire County Council,1111/1001,Children and Young People,CYP,Transport Related,CCA,19/04/2012,01-13210,2684,Bn Gibson Ltd,,,,,,,,,
Nottinghamshire County Council,1111/1001,Children and Young People,CYP,Transport Related,CCA,19/04/2012,01-13211,1828.48,Bn Gibson Ltd,,,,,,,,,
Nottinghamshire County Council,1111/1001,Children and Young People,CYP,Transport Related,CCA,19/04/2012,01-13212,3180.32,Bn Gibson Ltd,,,,,,,,,
Nottinghamshire County Council,1111/1001,Children and Young People,CYP,Transport Related,CCA,19/04/2012,01-13213,3382.94,Bn Gibson Ltd,,,,,,,,,
Nottinghamshire County Council,1111/1001,Children and Young People,CYP,Transport Related,CCA,19/04/2012,01-13214,2165.85,Bn Gibson Ltd,,,,,,,,,
Nottinghamshire County Council,1111/1001,Children and Young People,CYP,Transport Related,CCA,19/04/2012,01-13215,948,Jb Tours Watnall Ltd,,,,,,,,,
Nottinghamshire County Council,1111/1001,Children and Young People,CYP,Transport Related,CCA,19/04/2012,01-13229,1297.89,Stagecoach Services Ltd,,,,,,,,,
Nottinghamshire County Council,1111/1001,Children and Young People,CYP,Transport Related,CCA,19/04/2012,01-13247,700,Paul S Winson Coaches,,,,,,,,,
Nottinghamshire County Council,1111/1001,Children and Young People,CYP,Transport Related,CCA,19/04/2012,01-13248,635,C W Moxon Ltd,,,,,,,,,
Nottinghamshire County Council,1111/1001,Children and Young People,CYP,Transport Related,CCA,19/04/2012,01-13249,3175,C W Moxon Ltd,,,,,,,,,
Nottinghamshire County Council,1111/1001,Children and Young People,CYP,Transport Related,CCA,19/04/2012,01-13250,1473,Town Taxis Ltd,,,,,,,,,
Nottinghamshire County Council,1111/1001,Children and Young People,CYP,Transport Related,CCA,24/04/2012,01-16488,6600,Brotherwood Automobility Ltd,,,,,,,,,
Nottinghamshire County Council,1111/1001,Children and Young People,CYP,Transport Related,CCA,26/04/2012,01-16627,629.2,Alert Cars Ltd,,,,,,,,,
Nottinghamshire County Council,1111/1001,Children and Young People,CYP,Transport Related,CCA,26/04/2012,01-16628,760,Mar Taxis Ltd,,,,,,,,,
Nottinghamshire County Council,1111/1001,Children and Young People,CYP,Transport Related,CCA,26/04/2012,01-16629,1496,6 Five 2s,,,,,,,,,
Nottinghamshire County Council,1111/1001,Children and Young People,CYP,Transport Related,CCA,26/04/2012,01-16630,1835.24,6 Five 2s,,,,,,,,,
Nottinghamshire County Council,1111/1001,Children and Young People,CYP,Transport Related,CCA,26/04/2012,01-16631,1272.7,6 Five 2s,,,,,,,,,
Nottinghamshire County Council,1111/1001,Children and Young People,CYP,Transport Related,CCA,26/04/2012,01-16634,1320,Cabline Uk Ltd,,,,,,,,,
Nottinghamshire County Council,1111/1001,Children and Young People,CYP,Transport Related,CCA,26/04/2012,01-16635,1320,Cabline Uk Ltd,,,,,,,,,
Nottinghamshire County Council,1111/1001,Children and Young People,CYP,Transport Related,CCA,26/04/2012,01-16636,1320,Cabline Uk Ltd,,,,,,,,,
Nottinghamshire County Council,1111/1001,Children and Young People,CYP,Transport Related,CCA,26/04/2012,01-16637,1680,Cabline Uk Ltd,,,,,,,,,
Nottinghamshire County Council,1111/1001,Children and Young People,CYP,Transport Related,CCA,26/04/2012,01-16638,2161.28,Johnson Bros Tours Ltd,,,,,,,,,
Nottinghamshire County Council,1111/1001,Children and Young People,CYP,Transport Related,CCA,26/04/2012,01-16639,800,Redfern Travel,,,,,,,,,
Nottinghamshire County Council,1111/1001,Children and Young People,CYP,Transport Related,CCA,26/04/2012,01-16640,1540,CBC Taxis Ltd,,,,,,,,,
Nottinghamshire County Council,1111/1001,Children and Young People,CYP,Transport Related,CCA,26/04/2012,01-16641,990,CBC Taxis Ltd,,,,,,,,,
Nottinghamshire County Council,1111/1001,Children and Young People,CYP,Transport Related,CCA,26/04/2012,01-16642,630,CBC Taxis Ltd,,,,,,,,,
Nottinghamshire County Council,1111/1001,Children and Young People,CYP,Transport Related,CCA,26/04/2012,01-16643,616,CBC Taxis Ltd,,,,,,,,,
Nottinghamshire County Council,1111/1001,Children and Young People,CYP,Transport Related,CCA,26/04/2012,01-16644,2167.83,Sprays Transport Ltd,,,,,,,,,
Nottinghamshire County Council,1111/1001,Children and Young People,CYP,Transport Related,CCA,26/04/2012,01-16645,2303.49,Sprays Transport Ltd,,,,,,,,,
Nottinghamshire County Council,1111/1001,Children and Young People,CYP,Transport Related,CCA,26/04/2012,01-16646,1211.54,County Cars,,,,,,,,,
Nottinghamshire County Council,1111/1001,Children and Young People,CYP,Transport Related,CCA,26/04/2012,01-16647,2152.76,Bn Gibson Ltd,,,,,,,,,
Nottinghamshire County Council,1111/1001,Children and Young People,CYP,Transport Related,CCA,26/04/2012,01-16648,4193.64,Bn Gibson Ltd,,,,,,,,,
Nottinghamshire County Council,1111/1001,Children and Young People,CYP,Transport Related,CCA,26/04/2012,01-16649,2314.25,Bn Gibson Ltd,,,,,,,,,
Nottinghamshire County Council,1111/1001,Children and Young People,CYP,Transport Related,CCA,26/04/2012,01-16653,1317.5,Silverdale Tours Nottm Ltd,,,,,,,,,
Nottinghamshire County Council,1111/1001,Children and Young People,CYP,Transport Related,CCA,26/04/2012,01-16654,1215,Silverdale Tours Nottm Ltd,,,,,,,,,
Nottinghamshire County Council,1111/1001,Children and Young People,CYP,Transport Related,CCA,26/04/2012,01-16655,2497,Tiger European Uk Ltd,,,,,,,,,
Nottinghamshire County Council,1111/1001,Children and Young People,CYP,Transport Related,CCA,26/04/2012,01-16656,732.5,Travel Wright Ltd,,,,,,,,,
Nottinghamshire County Council,1111/1001,Children and Young People,CYP,Transport Related,CCA,30/04/2012,01-12482,359.25,Doncaster Metroplitan Borough Counc,,,,,,,,,
Nottinghamshire County Council,1111/1001,Children and Young People,CYP,Transport Related,CCA,30/04/2012,01-17023,1500,Premiere Travel Ltd,,,,,,,,,
Nottinghamshire County Council,1111/1001,Children and Young People,CYP,Transport Related,CCA,30/04/2012,01-17024,79000,Stagecoach Services Ltd,,,,,,,,,
Nottinghamshire County Council,1111/1001,Children and Young People,CYP,Transport Related,CCA,30/04/2012,01-17025,41000,C W Moxon Ltd,,,,,,,,,
Nottinghamshire County Council,1111/1001,Children and Young People,CYP,Transport Related,CCA,30/04/2012,01-17026,12450,Paul S Winson Coaches,,,,,,,,,
Nottinghamshire County Council,1111/1001,Children and Young People,CYP,Transport Related,CCA,30/04/2012,01-17027,6700,Marshalls Of Sutton On Trent Ltd,,,,,,,,,
Nottinghamshire County Council,1111/1001,Children and Young People,CYP,Transport Related,CCA,30/04/2012,01-17028,32000,Silverdale Tours Nottm Ltd,,,,,,,,,
Nottinghamshire County Council,1111/1001,Children and Young People,CYP,Transport Related,CCA,30/04/2012,01-17029,10100,Nottm City Transport Ltd,,,,,,,,,
Nottinghamshire County Council,1111/1001,Children and Young People,CYP,Transport Related,CCA,30/04/2012,01-17030,10300,Travel Wright Ltd,,,,,,,,,
Nottinghamshire County Council,1111/1001,Children and Young People,CYP,Transport Related,CDA,05/04/2012,01-11365,261.3,CW Taxis,,,,,,,,,
Nottinghamshire County Council,1111/1001,Children and Young People,CYP,Transport Related,CDA,11/04/2012,01-11606,1579.5,Amvale Ltd,,,,,,,,,
Nottinghamshire County Council,1111/1001,Children and Young People,CYP,Transport Related,CDA,11/04/2012,01-11607,1872,Amvale Ltd,,,,,,,,,
Nottinghamshire County Council,1111/1001,Children and Young People,CYP,Transport Related,CDA,11/04/2012,01-11635,171.6,Ace Of Mansfield Ltd,,,,,,,,,
Nottinghamshire County Council,1111/1001,Children and Young People,CYP,Transport Related,CDA,11/04/2012,01-11678,847,Arrow Specialised Transport Ltd,,,,,,,,,
Nottinghamshire County Council,1111/1001,Children and Young People,CYP,Transport Related,CDA,11/04/2012,01-11686,1262.8,Arrow Specialised Transport Ltd,,,,,,,,,
Nottinghamshire County Council,1111/1001,Children and Young People,CYP,Transport Related,CDA,11/04/2012,01-11689,664.49,Arrow Specialised Transport Ltd,,,,,,,,,
Nottinghamshire County Council,1111/1001,Children and Young People,CYP,Transport Related,CDA,11/04/2012,01-11699,2420.04,Bridges Transport Services,,,,,,,,,
Nottinghamshire County Council,1111/1001,Children and Young People,CYP,Transport Related,CDA,11/04/2012,01-11703,316.64,Bridges Transport Services,,,,,,,,,
Nottinghamshire County Council,1111/1001,Children and Young People,CYP,Transport Related,CDA,11/04/2012,01-11710,427.5,Fozcabs Newark Taxis,,,,,,,,,
Nottinghamshire County Council,1111/1001,Children and Young People,CYP,Transport Related,CDA,11/04/2012,01-11725,892.5,Sprays Transport Ltd,,,,,,,,,
Nottinghamshire County Council,1111/1001,Children and Young People,CYP,Transport Related,CDA,11/04/2012,01-11743,1307.98,Sprays Transport Ltd,,,,,,,,,
Nottinghamshire County Council,1111/1001,Children and Young People,CYP,Transport Related,CDA,11/04/2012,01-11747,1899.68,P Rhodes Transport Ltd,,,,,,,,,
Nottinghamshire County Council,1111/1001,Children and Young People,CYP,Transport Related,CDA,13/04/2012,01-12401,30.9,Bn Gibson Ltd,,,,,,,,,
Nottinghamshire County Council,1111/1001,Children and Young People,CYP,Transport Related,CDA,13/04/2012,01-12406,270,D G Private Hire Ltd,,,,,,,,,
Nottinghamshire County Council,1111/1001,Children and Young People,CYP,Transport Related,CDA,13/04/2012,01-12407,1106.21,D G Private Hire Ltd,,,,,,,,,
Nottinghamshire County Council,1111/1001,Children and Young People,CYP,Transport Related,CDA,13/04/2012,01-12455,90.22,P & P Taxis,,,,,,,,,
Nottinghamshire County Council,1111/1001,Children and Young People,CYP,Transport Related,CDA,13/04/2012,01-12466,979,AAA Taxis,,,,,,,,,
Nottinghamshire County Council,1111/1001,Children and Young People,CYP,Transport Related,CDA,19/04/2012,01-13211,1097.08,Bn Gibson Ltd,,,,,,,,,
Nottinghamshire County Council,1111/1001,Children and Young People,CYP,Transport Related,CDA,30/04/2012,01-12482,1531.55,Doncaster Metroplitan Borough Counc,,,,,,,,,
Nottinghamshire County Council,1111/1001,Children and Young People,CYP,Supplies & Services,DAA,02/04/2012,01-10263,1088,King James's School,,,,,,,,,
Nottinghamshire County Council,1111/1001,Children and Young People,CYP,Supplies & Services,DAA,02/04/2012,01-10348,130763.56,The Carlton Academy,,,,,,,,,
Nottinghamshire County Council,1111/1001,Children and Young People,CYP,Supplies & Services,DAA,05/04/2012,01-17047,525,Office Innovations,,,,,,,,,
Nottinghamshire County Council,1111/1001,Children and Young People,CYP,Supplies & Services,DAA,13/04/2012,01-10311,1000,National Academy,,,,,,,,,
Nottinghamshire County Council,1111/1001,Children and Young People,CYP,Supplies & Services,DAA,18/04/2012,01-12977,6670.53,Garibaldi School Ncc,,,,,,,,,
Nottinghamshire County Council,1111/1001,Children and Young People,CYP,Supplies & Services,DAA,23/04/2012,01-13522,50000,North Leverton Primary School,,,,,,,,,
Nottinghamshire County Council,1111/1001,Children and Young People,CYP,Supplies & Services,DAA,24/04/2012,01-16464,5000,Nottm & Notts Futures Ltd,,,,,,,,,
Nottinghamshire County Council,1111/1001,Children and Young People,CYP,Supplies & Services,DAA,24/04/2012,01-16465,6550,Nottm & Notts Futures Ltd,,,,,,,,,
Nottinghamshire County Council,1111/1001,Children and Young People,CYP,Supplies & Services,DAA,25/04/2012,01-12805,3490.32,Transform Schools,,,,,,,,,
Nottinghamshire County Council,1111/1001,Children and Young People,CYP,Supplies & Services,DAA,25/04/2012,01-12806,46053.46,Transform Schools,,,,,,,,,
Nottinghamshire County Council,1111/1001,Children and Young People,CYP,Supplies & Services,DAA,25/04/2012,01-12807,19580.96,Transform Schools,,,,,,,,,
Nottinghamshire County Council,1111/1001,Children and Young People,CYP,Supplies & Services,DAA,25/04/2012,01-12808,3037.71,Transform Schools,,,,,,,,,
Nottinghamshire County Council,1111/1001,Children and Young People,CYP,Supplies & Services,DAA,25/04/2012,01-12809,3967.91,Transform Schools,,,,,,,,,
Nottinghamshire County Council,1111/1001,Children and Young People,CYP,Supplies & Services,DAA,25/04/2012,01-12811,1474318.49,Transform Schools,,,,,,,,,
Nottinghamshire County Council,1111/1001,Children and Young People,CYP,Supplies & Services,DAA,25/04/2012,01-12812,14857.05,Transform Schools,,,,,,,,,
Nottinghamshire County Council,1111/1001,Children and Young People,CYP,Supplies & Services,DAA,25/04/2012,01-12814,3055.16,Transform Schools,,,,,,,,,
Nottinghamshire County Council,1111/1001,Children and Young People,CYP,Supplies & Services,DAA,25/04/2012,01-16467,4675.72,Norbridge Academy Trust,,,,,,,,,
Nottinghamshire County Council,1111/1001,Children and Young People,CYP,Supplies & Services,DAA,25/04/2012,01-16540,1241.67,Bestwood Lodge Hotel,,,,,,,,,
Nottinghamshire County Council,1111/1001,Children and Young People,CYP,Supplies & Services,DAA,26/04/2012,01-12813,9701.76,Gedling Borough Council,,,,,,,,,
Nottinghamshire County Council,1111/1001,Children and Young People,CYP,Supplies & Services,DAA,27/04/2012,01-13144,976,Derbyshire County Council,,,,,,,,,
Nottinghamshire County Council,1111/1001,Children and Young People,CYP,Supplies & Services,DAA,27/04/2012,01-16829,228707.91,East Leake Schools Ltd,,,,,,,,,
Nottinghamshire County Council,1111/1001,Children and Young People,CYP,Supplies & Services,DAA,27/04/2012,01-16858,660,Tough Furniture Ltd,,,,,,,,,
Nottinghamshire County Council,1111/1001,Children and Young People,CYP,Supplies & Services,DAA,27/04/2012,01-16896,500,D Hatchett,,,,,,,,,
Nottinghamshire County Council,1111/1001,Children and Young People,CYP,Supplies & Services,DBA,02/04/2012,01-10396,244.67,M Maloney Country Butchers & B Ltd,,,,,,,,,
Nottinghamshire County Council,1111/1001,Children and Young People,CYP,Supplies & Services,DBA,02/04/2012,01-10398,543.59,Newark Orchard School,,,,,,,,,
Nottinghamshire County Council,1111/1001,Children and Young People,CYP,Supplies & Services,DBA,03/04/2012,01-11064,374.99,Hallam Country Fresh Foods Ltd,,,,,,,,,
Nottinghamshire County Council,1111/1001,Children and Young People,CYP,Supplies & Services,DBA,04/04/2012,01-11119,401.32,Brake Bros Ltd,,,,,,,,,
Nottinghamshire County Council,1111/1001,Children and Young People,CYP,Supplies & Services,DBA,04/04/2012,01-11121,844.58,Brake Bros Ltd,,,,,,,,,
Nottinghamshire County Council,1111/1001,Children and Young People,CYP,Supplies & Services,DBA,04/04/2012,01-11122,183.09,Arnold Dairies Ltd,,,,,,,,,
Nottinghamshire County Council,1111/1001,Children and Young People,CYP,Supplies & Services,DBA,04/04/2012,01-11124,916.34,Brake Bros Ltd,,,,,,,,,
Nottinghamshire County Council,1111/1001,Children and Young People,CYP,Supplies & Services,DBA,04/04/2012,01-11126,364.73,Brake Bros Ltd,,,,,,,,,
Nottinghamshire County Council,1111/1001,Children and Young People,CYP,Supplies & Services,DBA,05/04/2012,01-11241,857.57,Brake Bros Ltd,,,,,,,,,
Nottinghamshire County Council,1111/1001,Children and Young People,CYP,Supplies & Services,DBA,05/04/2012,01-11345,62.3,Brake Bros Ltd,,,,,,,,,
Nottinghamshire County Council,1111/1001,Children and Young People,CYP,Supplies & Services,DBA,05/04/2012,01-11346,192.71,Arnold Dairies Ltd,,,,,,,,,
Nottinghamshire County Council,1111/1001,Children and Young People,CYP,Supplies & Services,DBA,05/04/2012,01-11347,51.24,Brake Bros Ltd,,,,,,,,,
Nottinghamshire County Council,1111/1001,Children and Young People,CYP,Supplies & Services,DBA,10/04/2012,01-11452,43.75,Brake Bros Ltd,,,,,,,,,
Nottinghamshire County Council,1111/1001,Children and Young People,CYP,Supplies & Services,DBA,10/04/2012,01-11453,2157.88,Brake Bros Ltd,,,,,,,,,
Nottinghamshire County Council,1111/1001,Children and Young People,CYP,Supplies & Services,DBA,12/04/2012,01-11957,475.06,Hallam Country Fresh Foods Ltd,,,,,,,,,
Nottinghamshire County Council,1111/1001,Children and Young People,CYP,Supplies & Services,DBA,17/04/2012,01-12797,201.71,Arnold Dairies Ltd,,,,,,,,,
Nottinghamshire County Council,1111/1001,Children and Young People,CYP,Supplies & Services,DBA,18/04/2012,01-12966,253.99,M Maloney Country Butchers & B Ltd,,,,,,,,,
Nottinghamshire County Council,1111/1001,Children and Young People,CYP,Supplies & Services,DBA,18/04/2012,01-12967,326.35,M Maloney Country Butchers & B Ltd,,,,,,,,,
Nottinghamshire County Council,1111/1001,Children and Young People,CYP,Supplies & Services,DBA,18/04/2012,01-12979,257.77,Hallam Country Fresh Foods Ltd,,,,,,,,,
Nottinghamshire County Council,1111/1001,Children and Young People,CYP,Supplies & Services,DBA,19/04/2012,01-13137,362.29,Brake Bros Ltd,,,,,,,,,
Nottinghamshire County Council,1111/1001,Children and Young People,CYP,Supplies & Services,DBA,19/04/2012,01-13139,346.58,Brake Bros Ltd,,,,,,,,,
Nottinghamshire County Council,1111/1001,Children and Young People,CYP,Supplies & Services,DBA,19/04/2012,01-13140,70.79,Brake Bros Ltd,,,,,,,,,
Nottinghamshire County Council,1111/1001,Children and Young People,CYP,Supplies & Services,DBA,19/04/2012,01-13142,273.34,Brake Bros Ltd,,,,,,,,,
Nottinghamshire County Council,1111/1001,Children and Young People,CYP,Supplies & Services,DBA,24/04/2012,01-16470,202.47,Arnold Dairies Ltd,,,,,,,,,
Nottinghamshire County Council,1111/1001,Children and Young People,CYP,Supplies & Services,DBA,24/04/2012,01-16471,389.78,Hallam Country Fresh Foods Ltd,,,,,,,,,
Nottinghamshire County Council,1111/1001,Children and Young People,CYP,Supplies & Services,DBA,25/04/2012,01-16497,312.2,Brake Bros Ltd,,,,,,,,,
Nottinghamshire County Council,1111/1001,Children and Young People,CYP,Supplies & Services,DBA,25/04/2012,01-16499,604.31,Brake Bros Ltd,,,,,,,,,
Nottinghamshire County Council,1111/1001,Children and Young People,CYP,Supplies & Services,DBA,25/04/2012,01-16500,200.47,Brake Bros Ltd,,,,,,,,,
Nottinghamshire County Council,1111/1001,Children and Young People,CYP,Supplies & Services,DBA,26/04/2012,01-16668,241.13,M Maloney Country Butchers & B Ltd,,,,,,,,,
Nottinghamshire County Council,1111/1001,Children and Young People,CYP,Supplies & Services,DBA,26/04/2012,01-16669,345.41,M Maloney Country Butchers & B Ltd,,,,,,,,,
Nottinghamshire County Council,1111/1001,Children and Young People,CYP,Supplies & Services,DBA,27/04/2012,01-16864,393.29,Brake Bros Ltd,,,,,,,,,
Nottinghamshire County Council,1111/1001,Children and Young People,CYP,Supplies & Services,DBA,27/04/2012,01-16870,444.81,Brake Bros Ltd,,,,,,,,,
Nottinghamshire County Council,1111/1001,Children and Young People,CYP,Supplies & Services,DBA,27/04/2012,01-16871,482.02,Brake Bros Ltd,,,,,,,,,
Nottinghamshire County Council,1111/1001,Children and Young People,CYP,Supplies & Services,DBA,27/04/2012,01-16873,474.07,Brake Bros Ltd,,,,,,,,,
Nottinghamshire County Council,1111/1001,Children and Young People,CYP,Supplies & Services,DEA,02/04/2012,01-10414,1284,Nottingham City Council,,,,,,,,,
Nottinghamshire County Council,1111/1001,Children and Young People,CYP,Supplies & Services,DEA,02/04/2012,01-10446,872,Cox Associates Ltd,,,,,,,,,
Nottinghamshire County Council,1111/1001,Children and Young People,CYP,Supplies & Services,DEA,04/04/2012,01-11134,1364,Fostering Network,,,,,,,,,
Nottinghamshire County Council,1111/1001,Children and Young People,CYP,Supplies & Services,DEA,11/04/2012,01-10093,1141.48,Tree House Out Of School,,,,,,,,,
Nottinghamshire County Council,1111/1001,Children and Young People,CYP,Supplies & Services,DEA,11/04/2012,01-11647,75.06,Arrow Specialised Transport Ltd,,,,,,,,,
Nottinghamshire County Council,1111/1001,Children and Young People,CYP,Supplies & Services,DEA,12/04/2012,01-10188,21250,Nottinghamshire Healthcare Nhs Trus,,,,,,,,,
Nottinghamshire County Council,1111/1001,Children and Young People,CYP,Supplies & Services,DEA,12/04/2012,01-10189,88750,Nottinghamshire Healthcare Nhs Trus,,,,,,,,,
Nottinghamshire County Council,1111/1001,Children and Young People,CYP,Supplies & Services,DEA,12/04/2012,01-11989,1946.92,Le Fosso Sarl,,,,,,,,,
Nottinghamshire County Council,1111/1001,Children and Young People,CYP,Supplies & Services,DEA,13/04/2012,01-10151,771.68,Disability Support Team Account,,,,,,,,,
Nottinghamshire County Council,1111/1001,Children and Young People,CYP,Supplies & Services,DEA,13/04/2012,01-10173,2337,Nottingham City Council,,,,,,,,,
Nottinghamshire County Council,1111/1001,Children and Young People,CYP,Supplies & Services,DEA,13/04/2012,01-12516,775,Southwell Cathedral Chapter,,,,,,,,,
Nottinghamshire County Council,1111/1001,Children and Young People,CYP,Supplies & Services,DEA,17/04/2012,01-12804,589.92,Westfield Folk House,,,,,,,,,
Nottinghamshire County Council,1111/1001,Children and Young People,CYP,Supplies & Services,DEA,17/04/2012,01-12943,759,Pierrepont Gamston Kids Club,,,,,,,,,
Nottinghamshire County Council,1111/1001,Children and Young People,CYP,Supplies & Services,DEA,18/04/2012,01-12978,2520,Rettech Ltd,,,,,,,,,
Nottinghamshire County Council,1111/1001,Children and Young People,CYP,Supplies & Services,DEA,19/04/2012,01-13357,524.92,Learning Ladder Childcare Ltd,,,,,,,,,
Nottinghamshire County Council,1111/1001,Children and Young People,CYP,Supplies & Services,DEA,23/04/2012,01-13597,14850,Nottinghamshire Healthcare Nhs Trus,,,,,,,,,
Nottinghamshire County Council,1111/1001,Children and Young People,CYP,Supplies & Services,DEA,25/04/2012,01-16605,7777.77,Leicestershire County Council,,,,,,,,,
Nottinghamshire County Council,1111/1001,Children and Young People,CYP,Supplies & Services,DEA,27/04/2012,01-17236,1107.6,Newark & Sherwood District Council,,,,,,,,,
Nottinghamshire County Council,1111/1001,Children and Young People,CYP,Supplies & Services,DEA,27/04/2012,01-17247,565.76,Newark & Sherwood District Council,,,,,,,,,
Nottinghamshire County Council,1111/1001,Children and Young People,CYP,Supplies & Services,DEA,30/04/2012,01-17015,500,The Isle of Man Adoption Service,,,,,,,,,
Nottinghamshire County Council,1111/1001,Children and Young People,CYP,Supplies & Services,DFA,05/04/2012,01-10083,1044.51,Virgin Media,,,,,,,,,
Nottinghamshire County Council,1111/1001,Children and Young People,CYP,Supplies & Services,DFA,05/04/2012,01-11230,5000,Careworks Ltd,,,,,,,,,
Nottinghamshire County Council,1111/1001,Children and Young People,CYP,Supplies & Services,DFA,10/04/2012,01-11450,516.69,Lantec Services Ltd,,,,,,,,,
Nottinghamshire County Council,1111/1001,Children and Young People,CYP,Supplies & Services,DGA,24/04/2012,01-11132,700,M Stimpson,,,,,,,,,
Nottinghamshire County Council,1111/1001,Children and Young People,CYP,Supplies & Services,DGA,24/04/2012,01-11133,1325,M Stimpson,,,,,,,,,
Nottinghamshire County Council,1111/1001,Children and Young People,CYP,Supplies & Services,DHA,02/04/2012,01-10433,1064.44,Bassetlaw Primary Care Trust,,,,,,,,,
Nottinghamshire County Council,1111/1001,Children and Young People,CYP,Supplies & Services,DHA,02/04/2012,01-10434,1064.44,Bassetlaw Primary Care Trust,,,,,,,,,
Nottinghamshire County Council,1111/1001,Children and Young People,CYP,Supplies & Services,DKA,02/04/2012,01-10445,744.4,The Kirkby Trust,,,,,,,,,
Nottinghamshire County Council,1111/1001,Children and Young People,CYP,Supplies & Services,DKA,03/04/2012,01-11070,1000,Oak Tree Lane Primary School,,,,,,,,,
Nottinghamshire County Council,1111/1001,Children and Young People,CYP,Supplies & Services,DKA,03/04/2012,01-11088,2930,West Bridgford Academy,,,,,,,,,
Nottinghamshire County Council,1111/1001,Children and Young People,CYP,Supplies & Services,DKA,03/04/2012,01-11095,1105,Portland Hall Hotel,,,,,,,,,
Nottinghamshire County Council,1111/1001,Children and Young People,CYP,Supplies & Services,DKA,04/04/2012,01-10335,575,G S Mahal & Co Ltd,,,,,,,,,
Nottinghamshire County Council,1111/1001,Children and Young People,CYP,Supplies & Services,DKA,04/04/2012,01-10384,575,G S Mahal & Co Ltd,,,,,,,,,
Nottinghamshire County Council,1111/1001,Children and Young People,CYP,Supplies & Services,DKA,04/04/2012,01-10385,1857.73,Keyworth Youth Centre,,,,,,,,,
Nottinghamshire County Council,1111/1001,Children and Young People,CYP,Supplies & Services,DKA,04/04/2012,01-11168,1170,Portland Hall Hotel,,,,,,,,,
Nottinghamshire County Council,1111/1001,Children and Young People,CYP,Supplies & Services,DKA,05/04/2012,01-10077,10000,North Notts College,,,,,,,,,
Nottinghamshire County Council,1111/1001,Children and Young People,CYP,Supplies & Services,DKA,05/04/2012,01-10277,941.81,Bingham Youth Wing,,,,,,,,,
Nottinghamshire County Council,1111/1001,Children and Young People,CYP,Supplies & Services,DKA,05/04/2012,01-10278,1857.73,Keyworth Youth Centre,,,,,,,,,
Nottinghamshire County Council,1111/1001,Children and Young People,CYP,Supplies & Services,DKA,05/04/2012,01-10342,941.81,Bingham Youth Wing,,,,,,,,,
Nottinghamshire County Council,1111/1001,Children and Young People,CYP,Supplies & Services,DKA,05/04/2012,01-11334,12348,Hettys,,,,,,,,,
Nottinghamshire County Council,1111/1001,Children and Young People,CYP,Supplies & Services,DKA,05/04/2012,01-11335,3840,Magnus Church Of England School,,,,,,,,,
Nottinghamshire County Council,1111/1001,Children and Young People,CYP,Supplies & Services,DKA,05/04/2012,01-11336,3123,Gedling Play Forum,,,,,,,,,
Nottinghamshire County Council,1111/1001,Children and Young People,CYP,Supplies & Services,DKA,10/04/2012,01-11494,1170,Northwood Nottingham Ltd,,,,,,,,,
Nottinghamshire County Council,1111/1001,Children and Young People,CYP,Supplies & Services,DKA,11/04/2012,01-10115,2000,Barnby Road Academy Prim & Nursery,,,,,,,,,
Nottinghamshire County Council,1111/1001,Children and Young People,CYP,Supplies & Services,DKA,11/04/2012,01-11608,3300,Fostering People Ltd,,,,,,,,,
Nottinghamshire County Council,1111/1001,Children and Young People,CYP,Supplies & Services,DKA,11/04/2012,01-11617,329.96,Taxicover Uk Ltd,,,,,,,,,
Nottinghamshire County Council,1111/1001,Children and Young People,CYP,Supplies & Services,DKA,11/04/2012,01-11788,830,Newark & Sherwood Locksmiths Ltd,,,,,,,,,
Nottinghamshire County Council,1111/1001,Children and Young People,CYP,Supplies & Services,DKA,12/04/2012,01-12027,675.64,Framework Housing Association,,,,,,,,,
Nottinghamshire County Council,1111/1001,Children and Young People,CYP,Supplies & Services,DKA,12/04/2012,01-12118,4000,Newark Orchard School,,,,,,,,,
Nottinghamshire County Council,1111/1001,Children and Young People,CYP,Supplies & Services,DKA,12/04/2012,01-12119,15779,A Place To Call Our Own Ltd,,,,,,,,,
Nottinghamshire County Council,1111/1001,Children and Young People,CYP,Supplies & Services,DKA,12/04/2012,01-12122,4000,Mansfield Play Forum,,,,,,,,,
Nottinghamshire County Council,1111/1001,Children and Young People,CYP,Supplies & Services,DKA,12/04/2012,01-12131,10237,Spectrum Wasp,,,,,,,,,
Nottinghamshire County Council,1111/1001,Children and Young People,CYP,Supplies & Services,DKA,13/04/2012,01-10152,738.5,Friends Of Dst,,,,,,,,,
Nottinghamshire County Council,1111/1001,Children and Young People,CYP,Supplies & Services,DKA,13/04/2012,01-11945,4600,Nottinghamshire Healthcare Nhs Trus,,,,,,,,,
Nottinghamshire County Council,1111/1001,Children and Young People,CYP,Supplies & Services,DKA,13/04/2012,01-11995,752.56,Cotgrave & Radcliffe Youth Work Tea,,,,,,,,,
Nottinghamshire County Council,1111/1001,Children and Young People,CYP,Supplies & Services,DKA,13/04/2012,01-12239,1689.1,Framework Housing Assoc,,,,,,,,,
Nottinghamshire County Council,1111/1001,Children and Young People,CYP,Supplies & Services,DKA,16/04/2012,01-12703,11513,Joseph Whittaker Academy,,,,,,,,,
Nottinghamshire County Council,1111/1001,Children and Young People,CYP,Supplies & Services,DKA,16/04/2012,01-12704,22623,Young Potential East Midlands Ltd,,,,,,,,,
Nottinghamshire County Council,1111/1001,Children and Young People,CYP,Supplies & Services,DKA,16/04/2012,01-12788,12975.71,Progressive Care,,,,,,,,,
Nottinghamshire County Council,1111/1001,Children and Young People,CYP,Supplies & Services,DKA,17/04/2012,01-12796,1182.37,Framework Housing Assoc,,,,,,,,,
Nottinghamshire County Council,1111/1001,Children and Young People,CYP,Supplies & Services,DKA,17/04/2012,01-12833,800,Tbr Care Ltd,,,,,,,,,
Nottinghamshire County Council,1111/1001,Children and Young People,CYP,Supplies & Services,DKA,17/04/2012,01-12838,1462.65,Framework Housing Assoc,,,,,,,,,
Nottinghamshire County Council,1111/1001,Children and Young People,CYP,Supplies & Services,DKA,18/04/2012,01-12028,3501.45,Foster Care Associates Ltd,,,,,,,,,
Nottinghamshire County Council,1111/1001,Children and Young People,CYP,Supplies & Services,DKA,18/04/2012,01-12991,2200,Horizon Social Housing Ltd,,,,,,,,,
Nottinghamshire County Council,1111/1001,Children and Young People,CYP,Supplies & Services,DKA,18/04/2012,01-13069,766.67,Quality Education Solutions Ltd,,,,,,,,,
Nottinghamshire County Council,1111/1001,Children and Young People,CYP,Supplies & Services,DKA,18/04/2012,01-13070,3388.5,Foster Care Associates Ltd,,,,,,,,,
Nottinghamshire County Council,1111/1001,Children and Young People,CYP,Supplies & Services,DKA,18/04/2012,01-13071,3501.45,Foster Care Associates Ltd,,,,,,,,,
Nottinghamshire County Council,1111/1001,Children and Young People,CYP,Supplies & Services,DKA,18/04/2012,01-13072,3501.45,Foster Care Associates Ltd,,,,,,,,,
Nottinghamshire County Council,1111/1001,Children and Young People,CYP,Supplies & Services,DKA,18/04/2012,01-13073,3501.45,Foster Care Associates Ltd,,,,,,,,,
Nottinghamshire County Council,1111/1001,Children and Young People,CYP,Supplies & Services,DKA,18/04/2012,01-13074,3388.5,Foster Care Associates Ltd,,,,,,,,,
Nottinghamshire County Council,1111/1001,Children and Young People,CYP,Supplies & Services,DKA,18/04/2012,01-13076,2726,Compass Services For Children Ltd,,,,,,,,,
Nottinghamshire County Council,1111/1001,Children and Young People,CYP,Supplies & Services,DKA,18/04/2012,01-13080,1500,Horizon Social Housing Ltd,,,,,,,,,
Nottinghamshire County Council,1111/1001,Children and Young People,CYP,Supplies & Services,DKA,19/04/2012,01-13117,9826.65,Foster Care Associates Ltd,,,,,,,,,
Nottinghamshire County Council,1111/1001,Children and Young People,CYP,Supplies & Services,DKA,19/04/2012,01-13118,1600,Wyn Training & Consultancy Ltd,,,,,,,,,
Nottinghamshire County Council,1111/1001,Children and Young People,CYP,Supplies & Services,DKA,19/04/2012,01-13119,3000,Hope Fostering Services Ltd,,,,,,,,,
Nottinghamshire County Council,1111/1001,Children and Young People,CYP,Supplies & Services,DKA,19/04/2012,01-13120,1500,Horizon Social Housing Ltd,,,,,,,,,
Nottinghamshire County Council,1111/1001,Children and Young People,CYP,Supplies & Services,DKA,19/04/2012,01-13149,35000,Newark & Sherwood Play Support Sch,,,,,,,,,
Nottinghamshire County Council,1111/1001,Children and Young People,CYP,Supplies & Services,DKA,19/04/2012,01-13252,3750,Netherfield Primary School,,,,,,,,,
Nottinghamshire County Council,1111/1001,Children and Young People,CYP,Supplies & Services,DKA,20/04/2012,01-11992,2100,Quality Education Solutions Ltd,,,,,,,,,
Nottinghamshire County Council,1111/1001,Children and Young People,CYP,Supplies & Services,DKA,20/04/2012,01-12262,25000,Kirkby College,,,,,,,,,
Nottinghamshire County Council,1111/1001,Children and Young People,CYP,Supplies & Services,DKA,20/04/2012,01-13482,1387.02,Nottinghamshire Ymca,,,,,,,,,
Nottinghamshire County Council,1111/1001,Children and Young People,CYP,Supplies & Services,DKA,20/04/2012,01-13514,20000,Indigo Kids,,,,,,,,,
Nottinghamshire County Council,1111/1001,Children and Young People,CYP,Supplies & Services,DKA,20/04/2012,01-13516,500,Gedling Play Forum,,,,,,,,,
Nottinghamshire County Council,1111/1001,Children and Young People,CYP,Supplies & Services,DKA,20/04/2012,01-13518,3308.9,Foster Care Associates Ltd,,,,,,,,,
Nottinghamshire County Council,1111/1001,Children and Young People,CYP,Supplies & Services,DKA,23/04/2012,01-12141,612.54,Cotgrave & Radcliffe Youth Work Tea,,,,,,,,,
Nottinghamshire County Council,1111/1001,Children and Young People,CYP,Supplies & Services,DKA,23/04/2012,01-12702,24830,Right 2 B Me,,,,,,,,,
Nottinghamshire County Council,1111/1001,Children and Young People,CYP,Supplies & Services,DKA,23/04/2012,01-13532,4500,Adoptionplus Ltd,,,,,,,,,
Nottinghamshire County Council,1111/1001,Children and Young People,CYP,Supplies & Services,DKA,23/04/2012,01-13586,4673.25,Nottingham Mencap,,,,,,,,,
Nottinghamshire County Council,1111/1001,Children and Young People,CYP,Supplies & Services,DKA,23/04/2012,01-13599,4646.12,Nottingham Mencap,,,,,,,,,
Nottinghamshire County Council,1111/1001,Children and Young People,CYP,Supplies & Services,DKA,23/04/2012,01-13653,1500,Horizon Social Housing Ltd,,,,,,,,,
Nottinghamshire County Council,1111/1001,Children and Young People,CYP,Supplies & Services,DKA,23/04/2012,01-17164,1107.9,Phs Group Plc,,,,,,,,,
Nottinghamshire County Council,1111/1001,Children and Young People,CYP,Supplies & Services,DKA,24/04/2012,01-13701,79464,The Brunts Academy,,,,,,,,,
Nottinghamshire County Council,1111/1001,Children and Young People,CYP,Supplies & Services,DKA,24/04/2012,01-16460,500,Holgate School,,,,,,,,,
Nottinghamshire County Council,1111/1001,Children and Young People,CYP,Supplies & Services,DKA,24/04/2012,01-16466,10000,Symbols Worldwide LtdT/A Widgit Sof,,,,,,,,,
Nottinghamshire County Council,1111/1001,Children and Young People,CYP,Supplies & Services,DKA,24/04/2012,01-16491,500,Churchill Lettings,,,,,,,,,
Nottinghamshire County Council,1111/1001,Children and Young People,CYP,Supplies & Services,DKA,25/04/2012,01-16515,10436,Debz 4 Coffee,,,,,,,,,
Nottinghamshire County Council,1111/1001,Children and Young People,CYP,Supplies & Services,DKA,25/04/2012,01-16516,570,Clifton Hotel (Mansfield) Ltd,,,,,,,,,
Nottinghamshire County Council,1111/1001,Children and Young People,CYP,Supplies & Services,DKA,25/04/2012,01-16535,1124.48,Nottinghamshire Ymca,,,,,,,,,
Nottinghamshire County Council,1111/1001,Children and Young People,CYP,Supplies & Services,DKA,25/04/2012,01-16582,2914,Compass Services For Children Ltd,,,,,,,,,
Nottinghamshire County Council,1111/1001,Children and Young People,CYP,Supplies & Services,DKA,25/04/2012,01-16585,1550,Carefirst Services,,,,,,,,,
Nottinghamshire County Council,1111/1001,Children and Young People,CYP,Supplies & Services,DKA,25/04/2012,01-16586,1208,Darren C Coe,,,,,,,,,
Nottinghamshire County Council,1111/1001,Children and Young People,CYP,Supplies & Services,DKA,25/04/2012,01-16589,1450,Carefirst Services,,,,,,,,,
Nottinghamshire County Council,1111/1001,Children and Young People,CYP,Supplies & Services,DKA,26/04/2012,01-12121,5100,Special Kids Nottingham,,,,,,,,,
Nottinghamshire County Council,1111/1001,Children and Young People,CYP,Supplies & Services,DKA,26/04/2012,01-12706,3000,Nottingham Mencap,,,,,,,,,
Nottinghamshire County Council,1111/1001,Children and Young People,CYP,Supplies & Services,DKA,26/04/2012,01-13150,13796,Norsaca Society Office,,,,,,,,,
Nottinghamshire County Council,1111/1001,Children and Young People,CYP,Supplies & Services,DKA,26/04/2012,01-13513,5000,Kool Kids,,,,,,,,,
Nottinghamshire County Council,1111/1001,Children and Young People,CYP,Supplies & Services,DKA,26/04/2012,01-16672,4622,Gedling Southbank Special Abilities,,,,,,,,,
Nottinghamshire County Council,1111/1001,Children and Young People,CYP,Supplies & Services,DKA,27/04/2012,01-12117,9435,Rosehill Special School,,,,,,,,,
Nottinghamshire County Council,1111/1001,Children and Young People,CYP,Supplies & Services,DKA,27/04/2012,01-16900,665.14,B Singh,,,,,,,,,
Nottinghamshire County Council,1111/1001,Children and Young People,CYP,Supplies & Services,DKA,27/04/2012,01-16901,665.14,B Singh,,,,,,,,,
Nottinghamshire County Council,1111/1001,Children and Young People,CYP,Supplies & Services,DKA,27/04/2012,01-16902,595.52,The Kirkby Trust,,,,,,,,,
Nottinghamshire County Council,1111/1001,Children and Young People,CYP,Supplies & Services,DKA,27/04/2012,01-16954,8000,Nottinghamshire PaCT,,,,,,,,,
Nottinghamshire County Council,1111/1001,Children and Young People,CYP,Supplies & Services,DKA,27/04/2012,01-16955,6000,Spectra Support Group,,,,,,,,,
Nottinghamshire County Council,1111/1001,Children and Young People,CYP,Supplies & Services,DKA,30/04/2012,01-11445,500,Bright Light Therapies,,,,,,,,,
Nottinghamshire County Council,1111/1001,Children and Young People,CYP,Third Party Payments,EBA,24/04/2012,01-13702,8039.92,Rotherham Metropolitan Borough Coun,,,,,,,,,
Nottinghamshire County Council,1111/1001,Children and Young People,CYP,Third Party Payments,EBA,24/04/2012,01-17186,2082,Notts Indep Domestic Abuse Serv,,,,,,,,,
Nottinghamshire County Council,1111/1001,Children and Young People,CYP,Third Party Payments,EBA,27/04/2012,01-17285,1598.96,Family Action,,,,,,,,,
Nottinghamshire County Council,1111/1001,Children and Young People,CYP,Third Party Payments,ECA,12/04/2012,01-10153,11326,Nottinghamshire Healthcare Nhs Trus,,,,,,,,,
Nottinghamshire County Council,1111/1001,Children and Young People,CYP,Third Party Payments,ECA,12/04/2012,01-10154,10405.89,Nottinghamshire Healthcare Nhs Trus,,,,,,,,,
Nottinghamshire County Council,1111/1001,Children and Young People,CYP,Third Party Payments,ECA,12/04/2012,01-10155,2122.03,Nottinghamshire Healthcare Nhs Trus,,,,,,,,,
Nottinghamshire County Council,1111/1001,Children and Young People,CYP,Third Party Payments,ECA,26/04/2012,01-13584,6843.7,Nottinghamshire Healthcare Nhs Trus,,,,,,,,,
Nottinghamshire County Council,1111/1001,Children and Young People,CYP,Third Party Payments,ECA,26/04/2012,01-13585,74774.77,Nottinghamshire Healthcare Nhs Trus,,,,,,,,,
Nottinghamshire County Council,1111/1001,Children and Young People,CYP,Third Party Payments,EFA,02/04/2012,01-10134,2614.15,G4S Care & Justice Services (UK) Li,,,,,,,,,
Nottinghamshire County Council,1111/1001,Children and Young People,CYP,Third Party Payments,EFA,16/04/2012,01-12688,2808,Hope Fostering Services Ltd,,,,,,,,,
Nottinghamshire County Council,1111/1001,Children and Young People,CYP,Third Party Payments,EFA,16/04/2012,01-12689,3000,Hope Fostering Services Ltd,,,,,,,,,
Nottinghamshire County Council,1111/1001,Children and Young People,CYP,Third Party Payments,EFA,19/04/2012,01-13114,2000,Arnold Hill Academy,,,,,,,,,
Nottinghamshire County Council,1111/1001,Children and Young People,CYP,Third Party Payments,EFA,19/04/2012,01-13115,1200,Carlton Le Willows Academy,,,,,,,,,
Nottinghamshire County Council,1111/1001,Children and Young People,CYP,Third Party Payments,EFA,19/04/2012,01-13116,10000,Nisai Virtual Academy Ltd,,,,,,,,,
Nottinghamshire County Council,1111/1001,Children and Young People,CYP,Third Party Payments,EFA,20/04/2012,01-11605,24333.33,Kisimul School,,,,,,,,,
Nottinghamshire County Council,1111/1001,Children and Young People,CYP,Third Party Payments,EFA,20/04/2012,01-12860,2250,M Stimpson,,,,,,,,,
Nottinghamshire County Council,1111/1001,Children and Young People,CYP,Third Party Payments,EFA,23/04/2012,01-13648,9030.55,I Can Services Ltd,,,,,,,,,
Nottinghamshire County Council,1111/1001,Children and Young People,CYP,Third Party Payments,EFA,23/04/2012,01-13649,12686.33,Doncaster Deaf Trust,,,,,,,,,
Nottinghamshire County Council,1111/1001,Children and Young People,CYP,Third Party Payments,EFA,23/04/2012,01-13650,3508.9,I Can Services Ltd,,,,,,,,,
Nottinghamshire County Council,1111/1001,Children and Young People,CYP,Third Party Payments,EFA,23/04/2012,01-13651,8061.91,I Can Services Ltd,,,,,,,,,
Nottinghamshire County Council,1111/1001,Children and Young People,CYP,Third Party Payments,EFA,23/04/2012,01-13652,9030.55,I Can Services Ltd,,,,,,,,,
Nottinghamshire County Council,1111/1001,Children and Young People,CYP,Third Party Payments,EFA,23/04/2012,01-13654,9030.55,I Can Services Ltd,,,,,,,,,
Nottinghamshire County Council,1111/1001,Children and Young People,CYP,Third Party Payments,EFA,23/04/2012,01-13655,10591.47,I Can Services Ltd,,,,,,,,,
Nottinghamshire County Council,1111/1001,Children and Young People,CYP,Third Party Payments,EFA,23/04/2012,01-13656,10591.47,I Can Services Ltd,,,,,,,,,
Nottinghamshire County Council,1111/1001,Children and Young People,CYP,Third Party Payments,EFA,23/04/2012,01-13660,4344.95,Maple Hayes School,,,,,,,,,
Nottinghamshire County Council,1111/1001,Children and Young People,CYP,Third Party Payments,EFA,24/04/2012,01-13657,9030.55,I Can Services Ltd,,,,,,,,,
Nottinghamshire County Council,1111/1001,Children and Young People,CYP,Third Party Payments,EFA,24/04/2012,01-13658,9030.55,I Can Services Ltd,,,,,,,,,
Nottinghamshire County Council,1111/1001,Children and Young People,CYP,Third Party Payments,EFA,24/04/2012,01-13659,9030.55,I Can Services Ltd,,,,,,,,,
Nottinghamshire County Council,1111/1001,Children and Young People,CYP,Third Party Payments,EFA,24/04/2012,01-13661,10591.47,I Can Services Ltd,,,,,,,,,
Nottinghamshire County Council,1111/1001,Children and Young People,CYP,Third Party Payments,EFA,24/04/2012,01-13662,8061.91,I Can Services Ltd,,,,,,,,,
Nottinghamshire County Council,1111/1001,Children and Young People,CYP,Third Party Payments,EFA,24/04/2012,01-13663,9030.55,I Can Services Ltd,,,,,,,,,
Nottinghamshire County Council,1111/1001,Children and Young People,CYP,Third Party Payments,EFA,24/04/2012,01-13664,10591.47,I Can Services Ltd,,,,,,,,,
Nottinghamshire County Council,1111/1001,Children and Young People,CYP,Third Party Payments,EFA,24/04/2012,01-13665,9030.55,I Can Services Ltd,,,,,,,,,
Nottinghamshire County Council,1111/1001,Children and Young People,CYP,Third Party Payments,EFA,24/04/2012,01-13666,9030.55,I Can Services Ltd,,,,,,,,,
Nottinghamshire County Council,1111/1001,Children and Young People,CYP,Third Party Payments,EFA,24/04/2012,01-13704,12686.33,Doncaster Deaf Trust,,,,,,,,,
Nottinghamshire County Council,1111/1001,Children and Young People,CYP,Third Party Payments,EFA,25/04/2012,01-16526,1080,Unique Coffee Bar,,,,,,,,,
Nottinghamshire County Council,1111/1001,Children and Young People,CYP,Third Party Payments,EFA,25/04/2012,01-16527,600,Unique Coffee Bar,,,,,,,,,
Nottinghamshire County Council,1111/1001,Children and Young People,CYP,Third Party Payments,EFA,25/04/2012,01-16538,1052.45,M Stimpson,,,,,,,,,
Nottinghamshire County Council,1111/1001,Children and Young People,CYP,Third Party Payments,EFA,27/04/2012,01-16899,657,Sarah Mann Shaw,,,,,,,,,
Nottinghamshire County Council,1111/1001,Children and Young People,CYP,Third Party Payments,EFA,27/04/2012,01-17279,3360,City College Nottingham,,,,,,,,,
Nottinghamshire County Council,1111/1001,Children and Young People,CYP,Third Party Payments,EFA,30/04/2012,01-16978,8685,St Davids College Trust,,,,,,,,,
Nottinghamshire County Council,1111/1001,Children and Young People,CYP,Third Party Payments,EFA,30/04/2012,01-16980,4344.95,Maple Hayes School,,,,,,,,,
Nottinghamshire County Council,1111/1001,Children and Young People,CYP,Third Party Payments,EFA,30/04/2012,01-17019,2848.6,Keys 7KS Ltd,,,,,,,,,
Nottinghamshire County Council,1111/1001,Children and Young People,CYP,Third Party Payments,EGA,02/04/2012,01-10060,3361.05,G4S Care & Justice Services (UK) Li,,,,,,,,,
Nottinghamshire County Council,1111/1001,Children and Young People,CYP,Third Party Payments,EGA,02/04/2012,01-10448,776,St Mary's Pre-School,,,,,,,,,
Nottinghamshire County Council,1111/1001,Children and Young People,CYP,Third Party Payments,EGA,02/04/2012,01-10449,785.7,Mansfield Childrens Community,,,,,,,,,
Nottinghamshire County Council,1111/1001,Children and Young People,CYP,Third Party Payments,EGA,02/04/2012,01-10450,625.65,West Street Pre-School,,,,,,,,,
Nottinghamshire County Council,1111/1001,Children and Young People,CYP,Third Party Payments,EGA,02/04/2012,01-10465,1813.9,Nottinghamshire Helathcare NHS Trus,,,,,,,,,
Nottinghamshire County Council,1111/1001,Children and Young People,CYP,Third Party Payments,EGA,03/04/2012,01-10049,12407.94,Heronridge Homes Ltd,,,,,,,,,
Nottinghamshire County Council,1111/1001,Children and Young People,CYP,Third Party Payments,EGA,03/04/2012,01-10460,640.2,Shaping Futures Ltd,,,,,,,,,
Nottinghamshire County Council,1111/1001,Children and Young People,CYP,Third Party Payments,EGA,03/04/2012,01-10462,737.2,Kidzgrove,,,,,,,,,
Nottinghamshire County Council,1111/1001,Children and Young People,CYP,Third Party Payments,EGA,03/04/2012,01-10463,756.6,Cherubs Childrens Centre Wynndale,,,,,,,,,
Nottinghamshire County Council,1111/1001,Children and Young People,CYP,Third Party Payments,EGA,03/04/2012,01-10464,640.2,Rocking Horse Nursery Butlers Hill,,,,,,,,,
Nottinghamshire County Council,1111/1001,Children and Young People,CYP,Third Party Payments,EGA,03/04/2012,01-10466,1372.55,New Woods Childcare Centre,,,,,,,,,
Nottinghamshire County Council,1111/1001,Children and Young People,CYP,Third Party Payments,EGA,04/04/2012,01-11208,533.5,Hucknall Day Nursery,,,,,,,,,
Nottinghamshire County Council,1111/1001,Children and Young People,CYP,Third Party Payments,EGA,04/04/2012,01-11209,1033.05,Tiny World Mansfield,,,,,,,,,
Nottinghamshire County Council,1111/1001,Children and Young People,CYP,Third Party Payments,EGA,04/04/2012,01-11211,548.05,Butterflies Nursery (West Notts Col,,,,,,,,,
Nottinghamshire County Council,1111/1001,Children and Young People,CYP,Third Party Payments,EGA,05/04/2012,01-10258,3272.86,Hillcrest Care Home,,,,,,,,,
Nottinghamshire County Council,1111/1001,Children and Young People,CYP,Third Party Payments,EGA,05/04/2012,01-11380,6055.23,Jay Fostering,,,,,,,,,
Nottinghamshire County Council,1111/1001,Children and Young People,CYP,Third Party Payments,EGA,05/04/2012,01-11381,9747.72,Jay Fostering,,,,,,,,,
Nottinghamshire County Council,1111/1001,Children and Young People,CYP,Third Party Payments,EGA,05/04/2012,01-11382,9433.28,Jay Fostering,,,,,,,,,
Nottinghamshire County Council,1111/1001,Children and Young People,CYP,Third Party Payments,EGA,05/04/2012,01-11385,13650,Fairview Only Total Care Matters Lt,,,,,,,,,
Nottinghamshire County Council,1111/1001,Children and Young People,CYP,Third Party Payments,EGA,05/04/2012,01-11387,879.75,Quayside Care Ltd,,,,,,,,,
Nottinghamshire County Council,1111/1001,Children and Young People,CYP,Third Party Payments,EGA,05/04/2012,01-11388,14083.33,Fairview Only Total Care Matters Lt,,,,,,,,,
Nottinghamshire County Council,1111/1001,Children and Young People,CYP,Third Party Payments,EGA,05/04/2012,01-11390,1989,Broadwood Educational Services Ltd,,,,,,,,,
Nottinghamshire County Council,1111/1001,Children and Young People,CYP,Third Party Payments,EGA,05/04/2012,01-11391,14367.27,Pathway Care Solutions II Ltd,,,,,,,,,
Nottinghamshire County Council,1111/1001,Children and Young People,CYP,Third Party Payments,EGA,05/04/2012,01-11393,6242.78,Treehouse Care Fostering Solutions,,,,,,,,,
Nottinghamshire County Council,1111/1001,Children and Young People,CYP,Third Party Payments,EGA,05/04/2012,01-11394,8604,South London & Maudsley Nhs Foundat,,,,,,,,,
Nottinghamshire County Council,1111/1001,Children and Young People,CYP,Third Party Payments,EGA,05/04/2012,01-11395,3439.8,Fostering Solutions Ltd,,,,,,,,,
Nottinghamshire County Council,1111/1001,Children and Young People,CYP,Third Party Payments,EGA,05/04/2012,01-11396,4085.6,Capstone Foster Care Ltd,,,,,,,,,
Nottinghamshire County Council,1111/1001,Children and Young People,CYP,Third Party Payments,EGA,05/04/2012,01-11397,4004,Capstone Foster Care Ltd,,,,,,,,,
Nottinghamshire County Council,1111/1001,Children and Young People,CYP,Third Party Payments,EGA,05/04/2012,01-11398,4205.6,Capstone Foster Care Ltd,,,,,,,,,
Nottinghamshire County Council,1111/1001,Children and Young People,CYP,Third Party Payments,EGA,05/04/2012,01-11399,3653.35,Capstone Foster Care Ltd,,,,,,,,,
Nottinghamshire County Council,1111/1001,Children and Young People,CYP,Third Party Payments,EGA,05/04/2012,01-11402,3109.21,Alliance Foster Care,,,,,,,,,
Nottinghamshire County Council,1111/1001,Children and Young People,CYP,Third Party Payments,EGA,05/04/2012,01-11403,6000.39,Jay Fostering,,,,,,,,,
Nottinghamshire County Council,1111/1001,Children and Young People,CYP,Third Party Payments,EGA,10/04/2012,01-11401,2501.16,Newark Emmaus Trust,,,,,,,,,
Nottinghamshire County Council,1111/1001,Children and Young People,CYP,Third Party Payments,EGA,10/04/2012,01-11405,561.06,Lincolnshire County Council,,,,,,,,,
Nottinghamshire County Council,1111/1001,Children and Young People,CYP,Third Party Payments,EGA,10/04/2012,01-11407,13950,Castle Homes Care Ltd,,,,,,,,,
Nottinghamshire County Council,1111/1001,Children and Young People,CYP,Third Party Payments,EGA,10/04/2012,01-11408,13604.04,Scope,,,,,,,,,
Nottinghamshire County Council,1111/1001,Children and Young People,CYP,Third Party Payments,EGA,10/04/2012,01-11409,1872,Broadwood Educational Services Ltd,,,,,,,,,
Nottinghamshire County Council,1111/1001,Children and Young People,CYP,Third Party Payments,EGA,11/04/2012,01-10257,3653.35,A & N Care Solicitors,,,,,,,,,
Nottinghamshire County Council,1111/1001,Children and Young People,CYP,Third Party Payments,EGA,11/04/2012,01-11596,6217.51,Jani Homes,,,,,,,,,
Nottinghamshire County Council,1111/1001,Children and Young People,CYP,Third Party Payments,EGA,11/04/2012,01-11598,12820.67,Heronridge Homes Ltd,,,,,,,,,
Nottinghamshire County Council,1111/1001,Children and Young People,CYP,Third Party Payments,EGA,11/04/2012,01-11599,1328.12,Foster Care Associates Ltd,,,,,,,,,
Nottinghamshire County Council,1111/1001,Children and Young People,CYP,Third Party Payments,EGA,11/04/2012,01-11600,1300,Tbr Care Ltd,,,,,,,,,
Nottinghamshire County Council,1111/1001,Children and Young People,CYP,Third Party Payments,EGA,11/04/2012,01-11601,6642.99,Tbr Care Ltd,,,,,,,,,
Nottinghamshire County Council,1111/1001,Children and Young People,CYP,Third Party Payments,EGA,11/04/2012,01-11602,5726.4,Jay Fostering,,,,,,,,,
Nottinghamshire County Council,1111/1001,Children and Young People,CYP,Third Party Payments,EGA,11/04/2012,01-11604,3653.35,Capstone Foster Care Ltd,,,,,,,,,
Nottinghamshire County Council,1111/1001,Children and Young People,CYP,Third Party Payments,EGA,11/04/2012,01-11811,10628.57,Northerncare,,,,,,,,,
Nottinghamshire County Council,1111/1001,Children and Young People,CYP,Third Party Payments,EGA,11/04/2012,01-11812,13444,Total Care Matters Ltd,,,,,,,,,
Nottinghamshire County Council,1111/1001,Children and Young People,CYP,Third Party Payments,EGA,11/04/2012,01-11817,622.05,Brookhill House Day Nursery,,,,,,,,,
Nottinghamshire County Council,1111/1001,Children and Young People,CYP,Third Party Payments,EGA,11/04/2012,01-11818,10292.1,Abacus Pre-School,,,,,,,,,
Nottinghamshire County Council,1111/1001,Children and Young People,CYP,Third Party Payments,EGA,11/04/2012,01-11821,12522.06,Alphabet House Day Nursery,,,,,,,,,
Nottinghamshire County Council,1111/1001,Children and Young People,CYP,Third Party Payments,EGA,11/04/2012,01-11823,8851.21,Alphabet House Day Nursery WB,,,,,,,,,
Nottinghamshire County Council,1111/1001,Children and Young People,CYP,Third Party Payments,EGA,11/04/2012,01-11824,16467.36,Alphabet House Nursery,,,,,,,,,
Nottinghamshire County Council,1111/1001,Children and Young People,CYP,Third Party Payments,EGA,11/04/2012,01-11825,14923.55,Alphabet House Day Nursery Worksop,,,,,,,,,
Nottinghamshire County Council,1111/1001,Children and Young People,CYP,Third Party Payments,EGA,11/04/2012,01-11826,33895.32,Applegarth Day Nursery,,,,,,,,,
Nottinghamshire County Council,1111/1001,Children and Young People,CYP,Third Party Payments,EGA,11/04/2012,01-11827,4631.45,Appleton Day Nursery,,,,,,,,,
Nottinghamshire County Council,1111/1001,Children and Young People,CYP,Third Party Payments,EGA,11/04/2012,01-11828,6518.33,Arnold St Mary'S Pre-School,,,,,,,,,
Nottinghamshire County Council,1111/1001,Children and Young People,CYP,Third Party Payments,EGA,11/04/2012,01-11829,8954.13,Arnold View Pre-School,,,,,,,,,
Nottinghamshire County Council,1111/1001,Children and Young People,CYP,Third Party Payments,EGA,11/04/2012,01-11830,7924.92,Ashfield Plaza Day Nursery,,,,,,,,,
Nottinghamshire County Council,1111/1001,Children and Young People,CYP,Third Party Payments,EGA,11/04/2012,01-11831,14923.55,Attenborough Church Pre-School,,,,,,,,,
Nottinghamshire County Council,1111/1001,Children and Young People,CYP,Third Party Payments,EGA,11/04/2012,01-11832,5351.89,Attenborough Day Nursery & Pre-Sch,,,,,,,,,
Nottinghamshire County Council,1111/1001,Children and Young People,CYP,Third Party Payments,EGA,11/04/2012,01-11833,9365.81,Awsworth Schoolhouse Day Nursery,,,,,,,,,
Nottinghamshire County Council,1111/1001,Children and Young People,CYP,Third Party Payments,EGA,11/04/2012,01-11834,7410.31,Balderton Village Day Nursery,,,,,,,,,
Nottinghamshire County Council,1111/1001,Children and Young People,CYP,Third Party Payments,EGA,11/04/2012,01-11835,9949.03,Beacon Hill Day Nursery,,,,,,,,,
Nottinghamshire County Council,1111/1001,Children and Young People,CYP,Third Party Payments,EGA,11/04/2012,01-11836,4374.14,Benner & Bolton Childminders,,,,,,,,,
Nottinghamshire County Council,1111/1001,Children and Young People,CYP,Third Party Payments,EGA,11/04/2012,01-11837,18628.7,Bingham Day Nursery & Pre School,,,,,,,,,
Nottinghamshire County Council,1111/1001,Children and Young People,CYP,Third Party Payments,EGA,11/04/2012,01-11838,11921.68,Bircotes Pre-School,,,,,,,,,
Nottinghamshire County Council,1111/1001,Children and Young People,CYP,Third Party Payments,EGA,11/04/2012,01-11839,30258.77,Bizzy Kidz,,,,,,,,,
Nottinghamshire County Council,1111/1001,Children and Young People,CYP,Third Party Payments,EGA,11/04/2012,01-11840,9674.57,Blyth Pre-School Playgroup,,,,,,,,,
Nottinghamshire County Council,1111/1001,Children and Young People,CYP,Third Party Payments,EGA,11/04/2012,01-11841,2401.49,Pretty Windows Ltd,,,,,,,,,
Nottinghamshire County Council,1111/1001,Children and Young People,CYP,Third Party Payments,EGA,11/04/2012,01-11842,14923.55,Bright Sparks Day Nursery,,,,,,,,,
Nottinghamshire County Council,1111/1001,Children and Young People,CYP,Third Party Payments,EGA,11/04/2012,01-11843,3087.63,Bright Stars Childcare,,,,,,,,,
Nottinghamshire County Council,1111/1001,Children and Young People,CYP,Third Party Payments,EGA,11/04/2012,01-11844,3344.93,Bumble Bee Children'S Day Nursery,,,,,,,,,
Nottinghamshire County Council,1111/1001,Children and Young People,CYP,Third Party Payments,EGA,11/04/2012,01-11845,8919.82,Burnside Hall Playgroup,,,,,,,,,
Nottinghamshire County Council,1111/1001,Children and Young People,CYP,Third Party Payments,EGA,11/04/2012,01-11846,21819.25,Busy Bees (Daybrook),,,,,,,,,
Nottinghamshire County Council,1111/1001,Children and Young People,CYP,Third Party Payments,EGA,11/04/2012,01-11847,13036.66,Crossdale Busy Bees Pre-School,,,,,,,,,
Nottinghamshire County Council,1111/1001,Children and Young People,CYP,Third Party Payments,EGA,11/04/2012,01-11848,9125.66,Busy Bees Playgroup,,,,,,,,,
Nottinghamshire County Council,1111/1001,Children and Young People,CYP,Third Party Payments,EGA,11/04/2012,01-11849,7118.7,Busy Bees Pre-School,,,,,,,,,
Nottinghamshire County Council,1111/1001,Children and Young People,CYP,Third Party Payments,EGA,11/04/2012,01-11850,20927.27,Buttercross Pre School,,,,,,,,,
Nottinghamshire County Council,1111/1001,Children and Young People,CYP,Third Party Payments,EGA,11/04/2012,01-11869,11115.47,Butterflies Nursery (West Notts Col,,,,,,,,,
Nottinghamshire County Council,1111/1001,Children and Young People,CYP,Third Party Payments,EGA,11/04/2012,01-11870,7410.31,Carlton Hill Playgroup,,,,,,,,,
Nottinghamshire County Council,1111/1001,Children and Young People,CYP,Third Party Payments,EGA,11/04/2012,01-11872,24906.88,Carnarvon Pre-School,,,,,,,,,
Nottinghamshire County Council,1111/1001,Children and Young People,CYP,Third Party Payments,EGA,11/04/2012,01-11873,1955.5,Carousel Under 5'S Playgroup,,,,,,,,,
Nottinghamshire County Council,1111/1001,Children and Young People,CYP,Third Party Payments,EGA,11/04/2012,01-11874,12350.52,Chetwynd Barracks Pre-School,,,,,,,,,
Nottinghamshire County Council,1111/1001,Children and Young People,CYP,Third Party Payments,EGA,11/04/2012,01-11875,4391.3,Children 1st @ Breedon House,,,,,,,,,
Nottinghamshire County Council,1111/1001,Children and Young People,CYP,Third Party Payments,EGA,11/04/2012,01-11876,7599,Breedon House Nursery,,,,,,,,,
Nottinghamshire County Council,1111/1001,Children and Young People,CYP,Third Party Payments,EGA,11/04/2012,01-11877,28440.5,Breedon House Nursries Ltd,,,,,,,,,
Nottinghamshire County Council,1111/1001,Children and Young People,CYP,Third Party Payments,EGA,11/04/2012,01-11878,17393.65,Childrens Corner Day Nursery,,,,,,,,,
Nottinghamshire County Council,1111/1001,Children and Young People,CYP,Third Party Payments,EGA,11/04/2012,01-11879,13379.73,Children's House Nursery School,,,,,,,,,
Nottinghamshire County Council,1111/1001,Children and Young People,CYP,Third Party Payments,EGA,11/04/2012,01-11880,16981.97,Christchurch Hall Pre-School Playgr,,,,,,,,,
Nottinghamshire County Council,1111/1001,Children and Young People,CYP,Third Party Payments,EGA,11/04/2012,01-11881,15746.91,Church House Day Nursery,,,,,,,,,
Nottinghamshire County Council,1111/1001,Children and Young People,CYP,Third Party Payments,EGA,11/04/2012,01-11882,7032.94,Claremont Early Years Ltd,,,,,,,,,
Nottinghamshire County Council,1111/1001,Children and Young People,CYP,Third Party Payments,EGA,11/04/2012,01-11883,6586.94,Claremont House Nursery School,,,,,,,,,
Nottinghamshire County Council,1111/1001,Children and Young People,CYP,Third Party Payments,EGA,11/04/2012,01-11884,14717.7,Collingham & District Pre-School,,,,,,,,,
Nottinghamshire County Council,1111/1001,Children and Young People,CYP,Third Party Payments,EGA,11/04/2012,01-11885,9262.89,Colwick Pre School Playgroup,,,,,,,,,
Nottinghamshire County Council,1111/1001,Children and Young People,CYP,Third Party Payments,EGA,11/04/2012,01-11886,5866.5,Costock Pre School,,,,,,,,,
Nottinghamshire County Council,1111/1001,Children and Young People,CYP,Third Party Payments,EGA,11/04/2012,01-11887,16150.68,Coteswood House School,,,,,,,,,
Nottinghamshire County Council,1111/1001,Children and Young People,CYP,Third Party Payments,EGA,11/04/2012,01-11889,9468.73,Daisies Day Nursery,,,,,,,,,
Nottinghamshire County Council,1111/1001,Children and Young People,CYP,Third Party Payments,EGA,11/04/2012,01-11890,15026.47,Daisies Day Nursery,,,,,,,,,
Nottinghamshire County Council,1111/1001,Children and Young People,CYP,Third Party Payments,EGA,11/04/2012,01-11891,13173.89,Discovery Day Nursery,,,,,,,,,
Nottinghamshire County Council,1111/1001,Children and Young People,CYP,Third Party Payments,EGA,11/04/2012,01-11893,5423.15,Duncroft Day Nursery,,,,,,,,,
Nottinghamshire County Council,1111/1001,Children and Young People,CYP,Third Party Payments,EGA,11/04/2012,01-11894,6175.26,Early Years Playgroup,,,,,,,,,
Nottinghamshire County Council,1111/1001,Children and Young People,CYP,Third Party Payments,EGA,11/04/2012,01-11895,37154.48,East Leake Day Nursery & Pre-School,,,,,,,,,
Nottinghamshire County Council,1111/1001,Children and Young People,CYP,Third Party Payments,EGA,11/04/2012,01-11896,8439.52,East Leake Pre-School Playgroup,,,,,,,,,
Nottinghamshire County Council,1111/1001,Children and Young People,CYP,Third Party Payments,EGA,11/04/2012,01-11898,22333.86,Edwalton Day Nursery,,,,,,,,,
Nottinghamshire County Council,1111/1001,Children and Young People,CYP,Third Party Payments,EGA,11/04/2012,01-11900,3087.63,Edwinstowe Pre-School Playgroup,,,,,,,,,
Nottinghamshire County Council,1111/1001,Children and Young People,CYP,Third Party Payments,EGA,11/04/2012,01-11901,6072.34,Elston Pre-school Playgroup Newark,,,,,,,,,
Nottinghamshire County Council,1111/1001,Children and Young People,CYP,Third Party Payments,EGA,11/04/2012,01-11902,11835.92,Farndon St Peters Early Years,,,,,,,,,
Nottinghamshire County Council,1111/1001,Children and Young People,CYP,Third Party Payments,EGA,11/04/2012,01-11904,29847.09,Fernwood Day Nursery,,,,,,,,,
Nottinghamshire County Council,1111/1001,Children and Young People,CYP,Third Party Payments,EGA,11/04/2012,01-11905,8130.76,Fledglings Playgroup,,,,,,,,,
Nottinghamshire County Council,1111/1001,Children and Young People,CYP,Third Party Payments,EGA,11/04/2012,01-11906,4116.84,Foxy Creek Pre-School Playgroup,,,,,,,,,
Nottinghamshire County Council,1111/1001,Children and Young People,CYP,Third Party Payments,EGA,11/04/2012,01-11907,5248.97,Friary Playschool,,,,,,,,,
Nottinghamshire County Council,1111/1001,Children and Young People,CYP,Third Party Payments,EGA,11/04/2012,01-11908,20275.44,Good Foundations Day Nursery,,,,,,,,,
Nottinghamshire County Council,1111/1001,Children and Young People,CYP,Third Party Payments,EGA,11/04/2012,01-11909,14477.55,Good Shepherd Pre-School,,,,,,,,,
Nottinghamshire County Council,1111/1001,Children and Young People,CYP,Third Party Payments,EGA,11/04/2012,01-11912,20172.52,Granby House Nursery,,,,,,,,,
Nottinghamshire County Council,1111/1001,Children and Young People,CYP,Third Party Payments,EGA,11/04/2012,01-11914,10120.57,Haywood Road Pre-School Playgroup,,,,,,,,,
Nottinghamshire County Council,1111/1001,Children and Young People,CYP,Third Party Payments,EGA,11/04/2012,01-11915,10984.84,Hazel Hurst School,,,,,,,,,
Nottinghamshire County Council,1111/1001,Children and Young People,CYP,Third Party Payments,EGA,11/04/2012,01-11916,5351.89,Hermitage Pre-School,,,,,,,,,
Nottinghamshire County Council,1111/1001,Children and Young People,CYP,Third Party Payments,EGA,11/04/2012,01-11917,6586.94,Hickling Pre-School,,,,,,,,,
Nottinghamshire County Council,1111/1001,Children and Young People,CYP,Third Party Payments,EGA,11/04/2012,01-11918,20241.13,Hickory House Day Nursery,,,,,,,,,
Nottinghamshire County Council,1111/1001,Children and Young People,CYP,Third Party Payments,EGA,11/04/2012,01-11919,9724.72,Highfields School & Nursery,,,,,,,,,
Nottinghamshire County Council,1111/1001,Children and Young People,CYP,Third Party Payments,EGA,11/04/2012,01-11920,8405.22,Hollies  Day Nurseries Limited,,,,,,,,,
Nottinghamshire County Council,1111/1001,Children and Young People,CYP,Third Party Payments,EGA,11/04/2012,01-11921,11621.5,Homestead Day Nursery,,,,,,,,,
Nottinghamshire County Council,1111/1001,Children and Young People,CYP,Third Party Payments,EGA,11/04/2012,01-11922,6381.1,Quinton Day Nurseries T/A Honey Bee,,,,,,,,,
Nottinghamshire County Council,1111/1001,Children and Young People,CYP,Third Party Payments,EGA,11/04/2012,01-11923,6175.26,Honey Pot Day Private Day Nursery L,,,,,,,,,
Nottinghamshire County Council,1111/1001,Children and Young People,CYP,Third Party Payments,EGA,11/04/2012,01-11924,13208.2,Horsendale Playgroup,,,,,,,,,
Nottinghamshire County Council,1111/1001,Children and Young People,CYP,Third Party Payments,EGA,11/04/2012,01-11925,9674.57,Hucknall Day Nursery,,,,,,,,,
Nottinghamshire County Council,1111/1001,Children and Young People,CYP,Third Party Payments,EGA,11/04/2012,01-11926,19040.39,Hucknall Pre-School Playgroup,,,,,,,,,
Nottinghamshire County Council,1111/1001,Children and Young People,CYP,Third Party Payments,EGA,11/04/2012,01-11927,12350.52,Huthwaite Children'S Centre,,,,,,,,,
Nottinghamshire County Council,1111/1001,Children and Young People,CYP,Third Party Payments,EGA,11/04/2012,01-11929,2573.03,Inham Park Pre School Playgroup,,,,,,,,,
Nottinghamshire County Council,1111/1001,Children and Young People,CYP,Third Party Payments,EGA,11/04/2012,01-11930,1543.82,Jubilee House Christian School,,,,,,,,,
Nottinghamshire County Council,1111/1001,Children and Young People,CYP,Third Party Payments,EGA,11/04/2012,01-11931,7513.23,Kimberley Pre-School Playgroup,,,,,,,,,
Nottinghamshire County Council,1111/1001,Children and Young People,CYP,Third Party Payments,EGA,11/04/2012,01-11932,2573.03,Kirkby Cross Playgroup,,,,,,,,,
Nottinghamshire County Council,1111/1001,Children and Young People,CYP,Third Party Payments,EGA,11/04/2012,01-11933,10635.17,Lambley Day Nursery Ltd,,,,,,,,,
Nottinghamshire County Council,1111/1001,Children and Young People,CYP,Third Party Payments,EGA,12/04/2012,01-10150,32567,Nottinghamshire Healthcare Nhs Trus,,,,,,,,,
Nottinghamshire County Council,1111/1001,Children and Young People,CYP,Third Party Payments,EGA,12/04/2012,01-11404,1446.9,Fostering Solutions Ltd,,,,,,,,,
Nottinghamshire County Council,1111/1001,Children and Young People,CYP,Third Party Payments,EGA,12/04/2012,01-12022,5752.98,Fostering Solutions Ltd,,,,,,,,,
Nottinghamshire County Council,1111/1001,Children and Young People,CYP,Third Party Payments,EGA,12/04/2012,01-12023,17207,Wings Education Ltd,,,,,,,,,
Nottinghamshire County Council,1111/1001,Children and Young People,CYP,Third Party Payments,EGA,12/04/2012,01-12024,36883,Wings Education Ltd,,,,,,,,,
Nottinghamshire County Council,1111/1001,Children and Young People,CYP,Third Party Payments,EGA,12/04/2012,01-12142,1322.75,Acorn Fostering Services Ltd,,,,,,,,,
Nottinghamshire County Council,1111/1001,Children and Young People,CYP,Third Party Payments,EGA,12/04/2012,01-12155,20687.12,Leahurst Road Pre-School,,,,,,,,,
Nottinghamshire County Council,1111/1001,Children and Young People,CYP,Third Party Payments,EGA,12/04/2012,01-12156,17805.33,Learning Ladder Childcare Ltd,,,,,,,,,
Nottinghamshire County Council,1111/1001,Children and Young People,CYP,Third Party Payments,EGA,12/04/2012,01-12157,15129.39,Leoschildrens Nurseries Ltd,,,,,,,,,
Nottinghamshire County Council,1111/1001,Children and Young People,CYP,Third Party Payments,EGA,12/04/2012,01-12158,17084.89,Leo's Childrens Nurseries Ltd,,,,,,,,,
Nottinghamshire County Council,1111/1001,Children and Young People,CYP,Third Party Payments,EGA,12/04/2012,01-12159,10377.87,North Leverton Pre-School Playgroup,,,,,,,,,
Nottinghamshire County Council,1111/1001,Children and Young People,CYP,Third Party Payments,EGA,12/04/2012,01-12160,16638.9,Little Acorns Shireoaks,,,,,,,,,
Nottinghamshire County Council,1111/1001,Children and Young People,CYP,Third Party Payments,EGA,12/04/2012,01-12161,18096.94,Little Acorns Pre School,,,,,,,,,
Nottinghamshire County Council,1111/1001,Children and Young People,CYP,Third Party Payments,EGA,12/04/2012,01-12162,17599.49,Little Bears Day Nursery,,,,,,,,,
Nottinghamshire County Council,1111/1001,Children and Young People,CYP,Third Party Payments,EGA,12/04/2012,01-12163,6878.55,Little Champs Pre-School & Day Nurs,,,,,,,,,
Nottinghamshire County Council,1111/1001,Children and Young People,CYP,Third Party Payments,EGA,12/04/2012,01-12164,8645.36,Little Friends Day Nursery,,,,,,,,,
Nottinghamshire County Council,1111/1001,Children and Young People,CYP,Third Party Payments,EGA,12/04/2012,01-12165,771.91,Little Kites Pre-School,,,,,,,,,
Nottinghamshire County Council,1111/1001,Children and Young People,CYP,Third Party Payments,EGA,12/04/2012,01-12166,18714.47,Little Millers Day Nursery,,,,,,,,,
Nottinghamshire County Council,1111/1001,Children and Young People,CYP,Third Party Payments,EGA,12/04/2012,01-12167,21784.95,Little Nippers Pre-School,,,,,,,,,
Nottinghamshire County Council,1111/1001,Children and Young People,CYP,Third Party Payments,EGA,12/04/2012,01-12168,29932.86,Little Oaks Nursery,,,,,,,,,
Nottinghamshire County Council,1111/1001,Children and Young People,CYP,Third Party Payments,EGA,12/04/2012,01-12169,12144.68,Little Rascals Pre-School,,,,,,,,,
Nottinghamshire County Council,1111/1001,Children and Young People,CYP,Third Party Payments,EGA,12/04/2012,01-12170,15095.08,Lowater Street Playgroup,,,,,,,,,
Nottinghamshire County Council,1111/1001,Children and Young People,CYP,Third Party Payments,EGA,12/04/2012,01-12171,7204.47,Mansfield Childrens Community,,,,,,,,,
Nottinghamshire County Council,1111/1001,Children and Young People,CYP,Third Party Payments,EGA,12/04/2012,01-12172,823.37,A Marsden,,,,,,,,,
Nottinghamshire County Council,1111/1001,Children and Young People,CYP,Third Party Payments,EGA,12/04/2012,01-12173,19040.39,Millfield Nursery School,,,,,,,,,
Nottinghamshire County Council,1111/1001,Children and Young People,CYP,Third Party Payments,EGA,12/04/2012,01-12174,9262.89,Misson Pre-School,,,,,,,,,
Nottinghamshire County Council,1111/1001,Children and Young People,CYP,Third Party Payments,EGA,12/04/2012,01-12175,1972.65,Mulberry Bush Day Nursery,,,,,,,,,
Nottinghamshire County Council,1111/1001,Children and Young People,CYP,Third Party Payments,EGA,12/04/2012,01-12177,7461.77,Noahs Ark Playgroup,,,,,,,,,
Nottinghamshire County Council,1111/1001,Children and Young People,CYP,Third Party Payments,EGA,12/04/2012,01-12178,8662.52,North Muskham Playgroup,,,,,,,,,
Nottinghamshire County Council,1111/1001,Children and Young People,CYP,Third Party Payments,EGA,12/04/2012,01-12179,18011.18,Nurseryworld & Friends Nursery & Pr,,,,,,,,,
Nottinghamshire County Council,1111/1001,Children and Young People,CYP,Third Party Payments,EGA,12/04/2012,01-12180,18525.78,Oceans Day Nursery,,,,,,,,,
Nottinghamshire County Council,1111/1001,Children and Young People,CYP,Third Party Payments,EGA,12/04/2012,01-12181,4734.37,Old Cooperative Day Nursery,,,,,,,,,
Nottinghamshire County Council,1111/1001,Children and Young People,CYP,Third Party Payments,EGA,12/04/2012,01-12182,4734.37,Old Station Nursery,,,,,,,,,
Nottinghamshire County Council,1111/1001,Children and Young People,CYP,Third Party Payments,EGA,12/04/2012,01-12183,27068.22,The Orchard Day Nursery,,,,,,,,,
Nottinghamshire County Council,1111/1001,Children and Young People,CYP,Third Party Payments,EGA,12/04/2012,01-12184,8576.75,Orchard School Nursery,,,,,,,,,
Nottinghamshire County Council,1111/1001,Children and Young People,CYP,Third Party Payments,EGA,12/04/2012,01-12185,926.29,Ordsall Pre-School,,,,,,,,,
Nottinghamshire County Council,1111/1001,Children and Young People,CYP,Third Party Payments,EGA,12/04/2012,01-12186,19040.39,Papermoon Day Nursery,,,,,,,,,
Nottinghamshire County Council,1111/1001,Children and Young People,CYP,Third Party Payments,EGA,12/04/2012,01-12187,38389.53,Papermoon Day Nursery Sutton In Ash,,,,,,,,,
Nottinghamshire County Council,1111/1001,Children and Young People,CYP,Third Party Payments,EGA,12/04/2012,01-12188,14923.55,Papermoon Day Nursery,,,,,,,,,
Nottinghamshire County Council,1111/1001,Children and Young People,CYP,Third Party Payments,EGA,12/04/2012,01-12189,29143.8,Papermoon Day Nursery,,,,,,,,,
Nottinghamshire County Council,1111/1001,Children and Young People,CYP,Third Party Payments,EGA,12/04/2012,01-12190,13894.34,Papplewick Pre-School Playgroup,,,,,,,,,
Nottinghamshire County Council,1111/1001,Children and Young People,CYP,Third Party Payments,EGA,12/04/2012,01-12191,8147.91,Pea Pod Day Nursery Ltd,,,,,,,,,
Nottinghamshire County Council,1111/1001,Children and Young People,CYP,Third Party Payments,EGA,12/04/2012,01-12192,12436.29,Pelham Pre-School,,,,,,,,,
Nottinghamshire County Council,1111/1001,Children and Young People,CYP,Third Party Payments,EGA,12/04/2012,01-12193,3567.93,Phoenix Farm Pre School,,,,,,,,,
Nottinghamshire County Council,1111/1001,Children and Young People,CYP,Third Party Payments,EGA,12/04/2012,01-12194,13997.26,Pippins Pre-School,,,,,,,,,
Nottinghamshire County Council,1111/1001,Children and Young People,CYP,Third Party Payments,EGA,12/04/2012,01-12195,11527.15,Plumtree School,,,,,,,,,
Nottinghamshire County Council,1111/1001,Children and Young People,CYP,Third Party Payments,EGA,12/04/2012,01-12196,17084.89,Pre-School 345,,,,,,,,,
Nottinghamshire County Council,1111/1001,Children and Young People,CYP,Third Party Payments,EGA,12/04/2012,01-12197,23500.3,Puddleducks Pre-School,,,,,,,,,
Nottinghamshire County Council,1111/1001,Children and Young People,CYP,Third Party Payments,EGA,12/04/2012,01-12198,5043.13,Pump Farm Day Nursery,,,,,,,,,
Nottinghamshire County Council,1111/1001,Children and Young People,CYP,Third Party Payments,EGA,12/04/2012,01-12199,11115.47,Radcliffe On Trent Pre-School Playg,,,,,,,,,
Nottinghamshire County Council,1111/1001,Children and Young People,CYP,Third Party Payments,EGA,12/04/2012,01-12200,9605.96,Railway Children Playgroup,,,,,,,,,
Nottinghamshire County Council,1111/1001,Children and Young People,CYP,Third Party Payments,EGA,12/04/2012,01-12201,6689.87,Rainbow Day Nursery,,,,,,,,,
Nottinghamshire County Council,1111/1001,Children and Young People,CYP,Third Party Payments,EGA,12/04/2012,01-12202,5146.05,Rainbows Day Nursery,,,,,,,,,
Nottinghamshire County Council,1111/1001,Children and Young People,CYP,Third Party Payments,EGA,12/04/2012,01-12203,9231.22,Woodard Schs Notts Ltd Ranby Schola,,,,,,,,,
Nottinghamshire County Council,1111/1001,Children and Young People,CYP,Third Party Payments,EGA,12/04/2012,01-12204,13722.8,Ranskill Nursery,,,,,,,,,
Nottinghamshire County Council,1111/1001,Children and Young People,CYP,Third Party Payments,EGA,12/04/2012,01-12205,13808.57,Ravenshead Pre-School Playgroup,,,,,,,,,
Nottinghamshire County Council,1111/1001,Children and Young People,CYP,Third Party Payments,EGA,12/04/2012,01-12206,31390.91,The Rocking Horse Child Car Centres,,,,,,,,,
Nottinghamshire County Council,1111/1001,Children and Young People,CYP,Third Party Payments,EGA,12/04/2012,01-12207,5146.05,Rocking Horse Nursery Butlers Hill,,,,,,,,,
Nottinghamshire County Council,1111/1001,Children and Young People,CYP,Third Party Payments,EGA,12/04/2012,01-12208,13482.65,Rushcliffe Pre-School Cic,,,,,,,,,
Nottinghamshire County Council,1111/1001,Children and Young People,CYP,Third Party Payments,EGA,12/04/2012,01-12209,16999.12,Safe Haven Day Nursery,,,,,,,,,
Nottinghamshire County Council,1111/1001,Children and Young People,CYP,Third Party Payments,EGA,13/04/2012,01-10096,1071,Good Foundations Day Nursery,,,,,,,,,
Nottinghamshire County Council,1111/1001,Children and Young People,CYP,Third Party Payments,EGA,13/04/2012,01-10121,1168.85,Sutton Nursery Children'S Centre,,,,,,,,,
Nottinghamshire County Council,1111/1001,Children and Young People,CYP,Third Party Payments,EGA,13/04/2012,01-10294,504,Discovery Childcare,,,,,,,,,
Nottinghamshire County Council,1111/1001,Children and Young People,CYP,Third Party Payments,EGA,13/04/2012,01-10297,560,Radcliffe On Trent Pre School Playg,,,,,,,,,
Nottinghamshire County Council,1111/1001,Children and Young People,CYP,Third Party Payments,EGA,13/04/2012,01-10299,1624,Carlton & Gedling Day Nursery,,,,,,,,,
Nottinghamshire County Council,1111/1001,Children and Young People,CYP,Third Party Payments,EGA,13/04/2012,01-10300,532,Longdale Nursery School,,,,,,,,,
Nottinghamshire County Council,1111/1001,Children and Young People,CYP,Third Party Payments,EGA,13/04/2012,01-11352,2575.17,Keys 16Plus Independent Living Serv,,,,,,,,,
Nottinghamshire County Council,1111/1001,Children and Young People,CYP,Third Party Payments,EGA,13/04/2012,01-11386,2546.56,Keys 16Plus Independent Living Serv,,,,,,,,,
Nottinghamshire County Council,1111/1001,Children and Young People,CYP,Third Party Payments,EGA,13/04/2012,01-11389,1652.67,Keys 16Plus Independent Living Serv,,,,,,,,,
Nottinghamshire County Council,1111/1001,Children and Young People,CYP,Third Party Payments,EGA,13/04/2012,01-11392,2236.34,Keys 16Plus Independent Living Serv,,,,,,,,,
Nottinghamshire County Council,1111/1001,Children and Young People,CYP,Third Party Payments,EGA,13/04/2012,01-11400,3093.49,Keys 16Plus Independent Living Serv,,,,,,,,,
Nottinghamshire County Council,1111/1001,Children and Young People,CYP,Third Party Payments,EGA,13/04/2012,01-11603,15000,Halliwell Homes,,,,,,,,,
Nottinghamshire County Council,1111/1001,Children and Young People,CYP,Third Party Payments,EGA,13/04/2012,01-12025,3049.16,Keys 16Plus Independent Living Serv,,,,,,,,,
Nottinghamshire County Council,1111/1001,Children and Young People,CYP,Third Party Payments,EGA,13/04/2012,01-12215,1029.21,Catherine Sansone,,,,,,,,,
Nottinghamshire County Council,1111/1001,Children and Young People,CYP,Third Party Payments,EGA,13/04/2012,01-12216,4528.52,Sconce Hills Pre-School Playgroup,,,,,,,,,
Nottinghamshire County Council,1111/1001,Children and Young People,CYP,Third Party Payments,EGA,13/04/2012,01-12217,11492.85,Scottswood Pdn Ltd,,,,,,,,,
Nottinghamshire County Council,1111/1001,Children and Young People,CYP,Third Party Payments,EGA,13/04/2012,01-12218,15180.85,Scotts Wood Private Day Nursery,,,,,,,,,
Nottinghamshire County Council,1111/1001,Children and Young People,CYP,Third Party Payments,EGA,13/04/2012,01-12219,8542.44,Serendipitys Day Nursery Cotgrave,,,,,,,,,
Nottinghamshire County Council,1111/1001,Children and Young People,CYP,Third Party Payments,EGA,13/04/2012,01-12220,7719.08,Serendipitys Day Nursery & Pre Scho,,,,,,,,,
Nottinghamshire County Council,1111/1001,Children and Young People,CYP,Third Party Payments,EGA,13/04/2012,01-12221,10189.18,Serendipitys Day Nursery & Pre-Scho,,,,,,,,,
Nottinghamshire County Council,1111/1001,Children and Young People,CYP,Third Party Payments,EGA,13/04/2012,01-12222,20995.88,Serendipity's Day Nursery & Pre-Sch,,,,,,,,,
Nottinghamshire County Council,1111/1001,Children and Young People,CYP,Third Party Payments,EGA,13/04/2012,01-12223,11698.69,Shaping Futures Oakham Day Nursery,,,,,,,,,
Nottinghamshire County Council,1111/1001,Children and Young People,CYP,Third Party Payments,EGA,13/04/2012,01-12224,8748.29,Shaping Futures Ltd,,,,,,,,,
Nottinghamshire County Council,1111/1001,Children and Young People,CYP,Third Party Payments,EGA,13/04/2012,01-12225,9863.26,Smarties Private Day Nursery,,,,,,,,,
Nottinghamshire County Council,1111/1001,Children and Young People,CYP,Third Party Payments,EGA,13/04/2012,01-12226,10925.46,South Nottingham College Nursery,,,,,,,,,
Nottinghamshire County Council,1111/1001,Children and Young People,CYP,Third Party Payments,EGA,13/04/2012,01-12227,3499.31,Southfields Pre-School,,,,,,,,,
Nottinghamshire County Council,1111/1001,Children and Young People,CYP,Third Party Payments,EGA,13/04/2012,01-12228,1020.63,Dawn Sparrow's Childminding Service,,,,,,,,,
Nottinghamshire County Council,1111/1001,Children and Young People,CYP,Third Party Payments,EGA,13/04/2012,01-12229,4133.99,Speckled Frogs Pre-School,,,,,,,,,
Nottinghamshire County Council,1111/1001,Children and Young People,CYP,Third Party Payments,EGA,13/04/2012,01-12230,9057.05,St Giles Playgroup,,,,,,,,,
Nottinghamshire County Council,1111/1001,Children and Young People,CYP,Third Party Payments,EGA,13/04/2012,01-12231,13276.81,St Johns Playgroup,,,,,,,,,
Nottinghamshire County Council,1111/1001,Children and Young People,CYP,Third Party Payments,EGA,13/04/2012,01-12232,6689.87,St Mary's Pre-School,,,,,,,,,
Nottinghamshire County Council,1111/1001,Children and Young People,CYP,Third Party Payments,EGA,13/04/2012,01-12233,4116.84,Stapleford Day Nursery,,,,,,,,,
Nottinghamshire County Council,1111/1001,Children and Young People,CYP,Third Party Payments,EGA,13/04/2012,01-12234,3087.63,Station House Day Nursery Ltd,,,,,,,,,
Nottinghamshire County Council,1111/1001,Children and Young People,CYP,Third Party Payments,EGA,13/04/2012,01-12235,15438.15,Staunton Nursery School,,,,,,,,,
Nottinghamshire County Council,1111/1001,Children and Young People,CYP,Third Party Payments,EGA,13/04/2012,01-12236,14408.94,Stepping Stones 11,,,,,,,,,
Nottinghamshire County Council,1111/1001,Children and Young People,CYP,Third Party Payments,EGA,13/04/2012,01-12237,4116.84,Nottinghamshire Helathcare NHS Trus,,,,,,,,,
Nottinghamshire County Council,1111/1001,Children and Young People,CYP,Third Party Payments,EGA,13/04/2012,01-12238,14408.94,Sutton Bonington Playgroup,,,,,,,,,
Nottinghamshire County Council,1111/1001,Children and Young People,CYP,Third Party Payments,EGA,13/04/2012,01-12240,12916.59,Sutton Centre Under 5'S Playgroup,,,,,,,,,
Nottinghamshire County Council,1111/1001,Children and Young People,CYP,Third Party Payments,EGA,13/04/2012,01-12241,12178.99,The Grange Nursery Ltd,,,,,,,,,
Nottinghamshire County Council,1111/1001,Children and Young People,CYP,Third Party Payments,EGA,13/04/2012,01-12242,15438.15,The Learning Tree Nursery,,,,,,,,,
Nottinghamshire County Council,1111/1001,Children and Young People,CYP,Third Party Payments,EGA,13/04/2012,01-12243,9177.12,The Learning Tree Day Nursery 2,,,,,,,,,
Nottinghamshire County Council,1111/1001,Children and Young People,CYP,Third Party Payments,EGA,13/04/2012,01-12244,11321.31,The Secret Garden Private Day Nurse,,,,,,,,,
Nottinghamshire County Council,1111/1001,Children and Young People,CYP,Third Party Payments,EGA,13/04/2012,01-12245,1114.98,Thrumpton Kids Clubs,,,,,,,,,
Nottinghamshire County Council,1111/1001,Children and Young People,CYP,Third Party Payments,EGA,13/04/2012,01-12246,6689.87,Tiny Teddies Day Nursery,,,,,,,,,
Nottinghamshire County Council,1111/1001,Children and Young People,CYP,Third Party Payments,EGA,13/04/2012,01-12247,3911,Tiny Tots Playgroup,,,,,,,,,
Nottinghamshire County Council,1111/1001,Children and Young People,CYP,Third Party Payments,EGA,13/04/2012,01-12248,11321.31,Tiny World Mansfield,,,,,,,,,
Nottinghamshire County Council,1111/1001,Children and Young People,CYP,Third Party Payments,EGA,13/04/2012,01-12249,2658.79,Toddlers University (Bee),,,,,,,,,
Nottinghamshire County Council,1111/1001,Children and Young People,CYP,Third Party Payments,EGA,13/04/2012,01-12264,22539.7,Tollerton Playgroup,,,,,,,,,
Nottinghamshire County Council,1111/1001,Children and Young People,CYP,Third Party Payments,EGA,13/04/2012,01-12265,2658.79,Toton Tots Pre-School,,,,,,,,,
Nottinghamshire County Council,1111/1001,Children and Young People,CYP,Third Party Payments,EGA,13/04/2012,01-12266,15952.76,Treetops Nursery,,,,,,,,,
Nottinghamshire County Council,1111/1001,Children and Young People,CYP,Third Party Payments,EGA,13/04/2012,01-12267,6175.26,Treetops Nursery (Clipstone),,,,,,,,,
Nottinghamshire County Council,1111/1001,Children and Young People,CYP,Third Party Payments,EGA,13/04/2012,01-12268,30464.62,Treetops Nursery,,,,,,,,,
Nottinghamshire County Council,1111/1001,Children and Young People,CYP,Third Party Payments,EGA,13/04/2012,01-12269,8542.44,Trowell Pre School,,,,,,,,,
Nottinghamshire County Council,1111/1001,Children and Young People,CYP,Third Party Payments,EGA,13/04/2012,01-12270,8147.91,Valmarys Childrens Centre 2,,,,,,,,,
Nottinghamshire County Council,1111/1001,Children and Young People,CYP,Third Party Payments,EGA,13/04/2012,01-12271,25421.49,Village Day Nursery,,,,,,,,,
Nottinghamshire County Council,1111/1001,Children and Young People,CYP,Third Party Payments,EGA,13/04/2012,01-12272,16673.2,Walesby School Playgroup,,,,,,,,,
Nottinghamshire County Council,1111/1001,Children and Young People,CYP,Third Party Payments,EGA,13/04/2012,01-12273,12144.68,Watnall Pre-School Playgroup,,,,,,,,,
Nottinghamshire County Council,1111/1001,Children and Young People,CYP,Third Party Payments,EGA,13/04/2012,01-12274,27068.22,Weaverthorpe Pre-School Playgroup,,,,,,,,,
Nottinghamshire County Council,1111/1001,Children and Young People,CYP,Third Party Payments,EGA,13/04/2012,01-12275,6089.49,Wellin Lane Playgroup,,,,,,,,,
Nottinghamshire County Council,1111/1001,Children and Young People,CYP,Third Party Payments,EGA,13/04/2012,01-12276,8951.49,Wellow House School,,,,,,,,,
Nottinghamshire County Council,1111/1001,Children and Young People,CYP,Third Party Payments,EGA,13/04/2012,01-12277,16467.36,West Bridgford Out Of School Care L,,,,,,,,,
Nottinghamshire County Council,1111/1001,Children and Young People,CYP,Third Party Payments,EGA,13/04/2012,01-12278,1029.21,West Street Pre-School,,,,,,,,,
Nottinghamshire County Council,1111/1001,Children and Young People,CYP,Third Party Payments,EGA,13/04/2012,01-12279,13379.73,Westbourne House Nursery School,,,,,,,,,
Nottinghamshire County Council,1111/1001,Children and Young People,CYP,Third Party Payments,EGA,13/04/2012,01-12280,32848.95,Westdale Pre School,,,,,,,,,
Nottinghamshire County Council,1111/1001,Children and Young People,CYP,Third Party Payments,EGA,13/04/2012,01-12281,32111.35,Whitehouse Day Nursery,,,,,,,,,
Nottinghamshire County Council,1111/1001,Children and Young People,CYP,Third Party Payments,EGA,13/04/2012,01-12282,4374.14,Willoughby On The Wolds Playgroup,,,,,,,,,
Nottinghamshire County Council,1111/1001,Children and Young People,CYP,Third Party Payments,EGA,13/04/2012,01-12283,13276.81,Willow Brook Pre-School,,,,,,,,,
Nottinghamshire County Council,1111/1001,Children and Young People,CYP,Third Party Payments,EGA,13/04/2012,01-12284,27068.22,Willow Pre-School Playgroup,,,,,,,,,
Nottinghamshire County Council,1111/1001,Children and Young People,CYP,Third Party Payments,EGA,13/04/2012,01-12285,8147.91,Windmill Kindergarten Playgroup,,,,,,,,,
Nottinghamshire County Council,1111/1001,Children and Young People,CYP,Third Party Payments,EGA,13/04/2012,01-12286,5660.66,Windmills Pre-School Playgroup,,,,,,,,,
Nottinghamshire County Council,1111/1001,Children and Young People,CYP,Third Party Payments,EGA,13/04/2012,01-12287,19246.23,Wishing Well Day Nursery,,,,,,,,,
Nottinghamshire County Council,1111/1001,Children and Young People,CYP,Third Party Payments,EGA,13/04/2012,01-12288,7204.47,Wollaton Village Day Nurseries Limi,,,,,,,,,
Nottinghamshire County Council,1111/1001,Children and Young People,CYP,Third Party Payments,EGA,13/04/2012,01-12289,14923.55,Wollaton Village Day Nurseries Ltd.,,,,,,,,,
Nottinghamshire County Council,1111/1001,Children and Young People,CYP,Third Party Payments,EGA,13/04/2012,01-12290,23054.3,Woodthorpe Day Nursery Ltd,,,,,,,,,
Nottinghamshire County Council,1111/1001,Children and Young People,CYP,Third Party Payments,EGA,13/04/2012,01-12291,5746.42,Young Rascals Day Nursery,,,,,,,,,
Nottinghamshire County Council,1111/1001,Children and Young People,CYP,Third Party Payments,EGA,13/04/2012,01-12298,7822,Salterford House School,,,,,,,,,
Nottinghamshire County Council,1111/1001,Children and Young People,CYP,Third Party Payments,EGA,13/04/2012,01-12503,13840,South London & Maudsley Nhs Foundat,,,,,,,,,
Nottinghamshire County Council,1111/1001,Children and Young People,CYP,Third Party Payments,EGA,13/04/2012,01-12505,2745,Compass Services For Children Ltd,,,,,,,,,
Nottinghamshire County Council,1111/1001,Children and Young People,CYP,Third Party Payments,EGA,13/04/2012,01-12506,2332.85,Compass Services For Children Ltd,,,,,,,,,
Nottinghamshire County Council,1111/1001,Children and Young People,CYP,Third Party Payments,EGA,13/04/2012,01-12507,5092.99,Stepping Stones (factored),,,,,,,,,
Nottinghamshire County Council,1111/1001,Children and Young People,CYP,Third Party Payments,EGA,13/04/2012,01-12508,1374.96,Youth Justice Board For England & W,,,,,,,,,
Nottinghamshire County Council,1111/1001,Children and Young People,CYP,Third Party Payments,EGA,16/04/2012,01-11819,11835.92,All Aboard Day Nursery,,,,,,,,,
Nottinghamshire County Council,1111/1001,Children and Young People,CYP,Third Party Payments,EGA,16/04/2012,01-11820,8954.13,Allsorts Playgroup,,,,,,,,,
Nottinghamshire County Council,1111/1001,Children and Young People,CYP,Third Party Payments,EGA,16/04/2012,01-11822,12607.82,Alphabet House Day Nursery,,,,,,,,,
Nottinghamshire County Council,1111/1001,Children and Young People,CYP,Third Party Payments,EGA,16/04/2012,01-11910,7101.55,Gotham Pre-School Playgroup,,,,,,,,,
Nottinghamshire County Council,1111/1001,Children and Young People,CYP,Third Party Payments,EGA,16/04/2012,01-11913,2229.96,The Grove Pre-school,,,,,,,,,
Nottinghamshire County Council,1111/1001,Children and Young People,CYP,Third Party Payments,EGA,16/04/2012,01-12292,25558.72,Pre School Learning Alliance,,,,,,,,,
Nottinghamshire County Council,1111/1001,Children and Young People,CYP,Third Party Payments,EGA,16/04/2012,01-12293,21150.27,Pre School Learning Alliance,,,,,,,,,
Nottinghamshire County Council,1111/1001,Children and Young People,CYP,Third Party Payments,EGA,16/04/2012,01-12294,4528.52,Pre School Learning Alliance,,,,,,,,,
Nottinghamshire County Council,1111/1001,Children and Young People,CYP,Third Party Payments,EGA,16/04/2012,01-12295,8662.52,Pre School Learning Alliance,,,,,,,,,
Nottinghamshire County Council,1111/1001,Children and Young People,CYP,Third Party Payments,EGA,16/04/2012,01-12296,3773.77,Pre School Learning Alliance,,,,,,,,,
Nottinghamshire County Council,1111/1001,Children and Young People,CYP,Third Party Payments,EGA,16/04/2012,01-12297,1029.21,Pre School Learning Alliance,,,,,,,,,
Nottinghamshire County Council,1111/1001,Children and Young People,CYP,Third Party Payments,EGA,17/04/2012,01-12870,3880,Core Childrens Services,,,,,,,,,
Nottinghamshire County Council,1111/1001,Children and Young People,CYP,Third Party Payments,EGA,17/04/2012,01-12872,2714.67,Keys 16Plus Independent Living Serv,,,,,,,,,
Nottinghamshire County Council,1111/1001,Children and Young People,CYP,Third Party Payments,EGA,17/04/2012,01-12874,3186.49,The National Fostering Agency,,,,,,,,,
Nottinghamshire County Council,1111/1001,Children and Young People,CYP,Third Party Payments,EGA,17/04/2012,01-12875,3186.49,The National Fostering Agency,,,,,,,,,
Nottinghamshire County Council,1111/1001,Children and Young People,CYP,Third Party Payments,EGA,17/04/2012,01-12876,3078.35,The National Fostering Agency,,,,,,,,,
Nottinghamshire County Council,1111/1001,Children and Young People,CYP,Third Party Payments,EGA,17/04/2012,01-12877,12642.9,Direct Care Ltd,,,,,,,,,
Nottinghamshire County Council,1111/1001,Children and Young People,CYP,Third Party Payments,EGA,17/04/2012,01-12879,12835.8,Direct Care Ltd,,,,,,,,,
Nottinghamshire County Council,1111/1001,Children and Young People,CYP,Third Party Payments,EGA,17/04/2012,01-12881,17207,Wings Education Ltd,,,,,,,,,
Nottinghamshire County Council,1111/1001,Children and Young People,CYP,Third Party Payments,EGA,17/04/2012,01-12887,8735,Wings Education Ltd,,,,,,,,,
Nottinghamshire County Council,1111/1001,Children and Young People,CYP,Third Party Payments,EGA,17/04/2012,01-12900,3197.87,Barnardos Family Placement Unit,,,,,,,,,
Nottinghamshire County Council,1111/1001,Children and Young People,CYP,Third Party Payments,EGA,17/04/2012,01-12902,582,Compass Services For Children Ltd,,,,,,,,,
Nottinghamshire County Council,1111/1001,Children and Young People,CYP,Third Party Payments,EGA,17/04/2012,01-12904,1581,D Angier-Brown,,,,,,,,,
Nottinghamshire County Council,1111/1001,Children and Young People,CYP,Third Party Payments,EGA,17/04/2012,01-12905,3154.25,Acorn Fostering Services Ltd,,,,,,,,,
Nottinghamshire County Council,1111/1001,Children and Young People,CYP,Third Party Payments,EGA,17/04/2012,01-12907,3675.6,Barnardo Services Ltd,,,,,,,,,
Nottinghamshire County Council,1111/1001,Children and Young People,CYP,Third Party Payments,EGA,17/04/2012,01-12920,1164,Compass Services For Children Ltd,,,,,,,,,
Nottinghamshire County Council,1111/1001,Children and Young People,CYP,Third Party Payments,EGA,17/04/2012,01-12921,1795.88,Jay Fostering,,,,,,,,,
Nottinghamshire County Council,1111/1001,Children and Young People,CYP,Third Party Payments,EGA,17/04/2012,01-12922,6121.32,Jay Fostering,,,,,,,,,
Nottinghamshire County Council,1111/1001,Children and Young People,CYP,Third Party Payments,EGA,17/04/2012,01-12924,13650,Fairview Only Total Care Matters Lt,,,,,,,,,
Nottinghamshire County Council,1111/1001,Children and Young People,CYP,Third Party Payments,EGA,17/04/2012,01-12925,1795.88,Jay Fostering,,,,,,,,,
Nottinghamshire County Council,1111/1001,Children and Young People,CYP,Third Party Payments,EGA,17/04/2012,01-12926,2410.83,Hillcrest Care Ltd,,,,,,,,,
Nottinghamshire County Council,1111/1001,Children and Young People,CYP,Third Party Payments,EGA,18/04/2012,01-11888,14151.64,Cropwell Bishop Pre-School Playgrou,,,,,,,,,
Nottinghamshire County Council,1111/1001,Children and Young People,CYP,Third Party Payments,EGA,18/04/2012,01-11903,14306.02,Farnsfield Pre-School,,,,,,,,,
Nottinghamshire County Council,1111/1001,Children and Young People,CYP,Third Party Payments,EGA,18/04/2012,01-12866,3275.81,Foster Care Associates Ltd,,,,,,,,,
Nottinghamshire County Council,1111/1001,Children and Young People,CYP,Third Party Payments,EGA,18/04/2012,01-12871,3811.18,Foster Care Associates Ltd,,,,,,,,,
Nottinghamshire County Council,1111/1001,Children and Young People,CYP,Third Party Payments,EGA,18/04/2012,01-12927,2941.9,Foster Care Associates Ltd,,,,,,,,,
Nottinghamshire County Council,1111/1001,Children and Young People,CYP,Third Party Payments,EGA,18/04/2012,01-12961,13637.03,Woodborough Village Pre School,,,,,,,,,
Nottinghamshire County Council,1111/1001,Children and Young People,CYP,Third Party Payments,EGA,18/04/2012,01-12962,12007.45,Tiny Talkers Day Nursery,,,,,,,,,
Nottinghamshire County Council,1111/1001,Children and Young People,CYP,Third Party Payments,EGA,18/04/2012,01-12965,17393.65,Lowdham & Epperstone Pre-School,,,,,,,,,
Nottinghamshire County Council,1111/1001,Children and Young People,CYP,Third Party Payments,EGA,18/04/2012,01-12969,3823.91,St John's College Nottingham,,,,,,,,,
Nottinghamshire County Council,1111/1001,Children and Young People,CYP,Third Party Payments,EGA,18/04/2012,01-12970,1458.05,Lilliput Day Nursery (The Canch),,,,,,,,,
Nottinghamshire County Council,1111/1001,Children and Young People,CYP,Third Party Payments,EGA,18/04/2012,01-12971,39727.51,Leen Mills Pre School Playgroup,,,,,,,,,
Nottinghamshire County Council,1111/1001,Children and Young People,CYP,Third Party Payments,EGA,18/04/2012,01-12972,4116.84,Kidzgrove,,,,,,,,,
Nottinghamshire County Council,1111/1001,Children and Young People,CYP,Third Party Payments,EGA,18/04/2012,01-12973,4717.21,Fosse Paddock Kindergarten,,,,,,,,,
Nottinghamshire County Council,1111/1001,Children and Young People,CYP,Third Party Payments,EGA,18/04/2012,01-12974,8621.61,Dagfa House School,,,,,,,,,
Nottinghamshire County Council,1111/1001,Children and Young People,CYP,Third Party Payments,EGA,18/04/2012,01-12975,2487.26,Cherubs Child Care Centre,,,,,,,,,
Nottinghamshire County Council,1111/1001,Children and Young People,CYP,Third Party Payments,EGA,18/04/2012,01-12976,21956.48,Cherubs Day Nursery,,,,,,,,,
Nottinghamshire County Council,1111/1001,Children and Young People,CYP,Third Party Payments,EGA,18/04/2012,01-12981,3516.47,Cherubs Ryton Park,,,,,,,,,
Nottinghamshire County Council,1111/1001,Children and Young People,CYP,Third Party Payments,EGA,18/04/2012,01-12983,20241.13,Cherubs Childrens Centre Wynndale,,,,,,,,,
Nottinghamshire County Council,1111/1001,Children and Young People,CYP,Third Party Payments,EGA,18/04/2012,01-12985,6089.49,Brooklyn Day Nursery,,,,,,,,,
Nottinghamshire County Council,1111/1001,Children and Young People,CYP,Third Party Payments,EGA,18/04/2012,01-12986,19554.99,Brookhill House Day Nursery,,,,,,,,,
Nottinghamshire County Council,1111/1001,Children and Young People,CYP,Third Party Payments,EGA,18/04/2012,01-13028,5757.01,Hope Fostering Services Ltd,,,,,,,,,
Nottinghamshire County Council,1111/1001,Children and Young People,CYP,Third Party Payments,EGA,18/04/2012,01-13029,1543.36,Fostering Solutions Ltd,,,,,,,,,
Nottinghamshire County Council,1111/1001,Children and Young People,CYP,Third Party Payments,EGA,18/04/2012,01-13031,3272.86,Hillcrest Care Ltd,,,,,,,,,
Nottinghamshire County Council,1111/1001,Children and Young People,CYP,Third Party Payments,EGA,18/04/2012,01-13032,3264.3,The National Fostering Agency,,,,,,,,,
Nottinghamshire County Council,1111/1001,Children and Young People,CYP,Third Party Payments,EGA,19/04/2012,01-13367,1314.03,East Midlands Care Matters,,,,,,,,,
Nottinghamshire County Council,1111/1001,Children and Young People,CYP,Third Party Payments,EGA,20/04/2012,01-11597,5423.58,Lincolnshire County Council,,,,,,,,,
Nottinghamshire County Council,1111/1001,Children and Young People,CYP,Third Party Payments,EGA,20/04/2012,01-12701,653.5,Norsaca Society Office,,,,,,,,,
Nottinghamshire County Council,1111/1001,Children and Young People,CYP,Third Party Payments,EGA,20/04/2012,01-12906,47119,Kisimul School,,,,,,,,,
Nottinghamshire County Council,1111/1001,Children and Young People,CYP,Third Party Payments,EGA,20/04/2012,01-12963,5866.5,Montessori Care Ltd,,,,,,,,,
Nottinghamshire County Council,1111/1001,Children and Young People,CYP,Third Party Payments,EGA,20/04/2012,01-13408,3396.98,The National Fostering Agency,,,,,,,,,
Nottinghamshire County Council,1111/1001,Children and Young People,CYP,Third Party Payments,EGA,20/04/2012,01-13409,13444,Fairview Only Total Care Matters Lt,,,,,,,,,
Nottinghamshire County Council,1111/1001,Children and Young People,CYP,Third Party Payments,EGA,20/04/2012,01-13410,14083.33,Fairview Only Total Care Matters Lt,,,,,,,,,
Nottinghamshire County Council,1111/1001,Children and Young People,CYP,Third Party Payments,EGA,20/04/2012,01-13411,3369.6,The National Fostering Agency,,,,,,,,,
Nottinghamshire County Council,1111/1001,Children and Young People,CYP,Third Party Payments,EGA,20/04/2012,01-13414,3396.98,The National Fostering Agency,,,,,,,,,
Nottinghamshire County Council,1111/1001,Children and Young People,CYP,Third Party Payments,EGA,20/04/2012,01-13415,3290.65,The National Fostering Agency,,,,,,,,,
Nottinghamshire County Council,1111/1001,Children and Young People,CYP,Third Party Payments,EGA,20/04/2012,01-13416,3410,Fostering People Ltd,,,,,,,,,
Nottinghamshire County Council,1111/1001,Children and Young People,CYP,Third Party Payments,EGA,20/04/2012,01-13417,13165.2,Scope,,,,,,,,,
Nottinghamshire County Council,1111/1001,Children and Young People,CYP,Third Party Payments,EGA,20/04/2012,01-13418,3059.5,Foster Care Associates Ltd,,,,,,,,,
Nottinghamshire County Council,1111/1001,Children and Young People,CYP,Third Party Payments,EGA,20/04/2012,01-13419,48907.5,Cruckton Hall School,,,,,,,,,
Nottinghamshire County Council,1111/1001,Children and Young People,CYP,Third Party Payments,EGA,20/04/2012,01-13420,13263.66,Heronridge Homes Ltd,,,,,,,,,
Nottinghamshire County Council,1111/1001,Children and Young People,CYP,Third Party Payments,EGA,23/04/2012,01-13587,12247.6,Arnold House Day Nursery,,,,,,,,,
Nottinghamshire County Council,1111/1001,Children and Young People,CYP,Third Party Payments,EGA,23/04/2012,01-13588,25524.41,Balderton Pre-School,,,,,,,,,
Nottinghamshire County Council,1111/1001,Children and Young People,CYP,Third Party Payments,EGA,23/04/2012,01-13589,10635.17,East Bridgford Pre-School,,,,,,,,,
Nottinghamshire County Council,1111/1001,Children and Young People,CYP,Third Party Payments,EGA,23/04/2012,01-13590,20841.5,Killisick Pre-School,,,,,,,,,
Nottinghamshire County Council,1111/1001,Children and Young People,CYP,Third Party Payments,EGA,23/04/2012,01-13591,10978.24,Radcliffe On Trent Day Nursery,,,,,,,,,
Nottinghamshire County Council,1111/1001,Children and Young People,CYP,Third Party Payments,EGA,23/04/2012,01-13592,17239.27,Ruddington Nursery And Pre-School,,,,,,,,,
Nottinghamshire County Council,1111/1001,Children and Young People,CYP,Third Party Payments,EGA,23/04/2012,01-13593,823.37,G Cottee,,,,,,,,,
Nottinghamshire County Council,1111/1001,Children and Young People,CYP,Third Party Payments,EGA,23/04/2012,01-13636,7701.48,Heronridge Homes Ltd,,,,,,,,,
Nottinghamshire County Council,1111/1001,Children and Young People,CYP,Third Party Payments,EGA,23/04/2012,01-13637,3498.57,Hillcrest Care Ltd,,,,,,,,,
Nottinghamshire County Council,1111/1001,Children and Young People,CYP,Third Party Payments,EGA,23/04/2012,01-13638,2629.46,Hillcrest Care Ltd,,,,,,,,,
Nottinghamshire County Council,1111/1001,Children and Young People,CYP,Third Party Payments,EGA,23/04/2012,01-13639,58838,Kisimul School,,,,,,,,,
Nottinghamshire County Council,1111/1001,Children and Young People,CYP,Third Party Payments,EGA,23/04/2012,01-13640,43443.89,Pathway Care Solutions Ltd,,,,,,,,,
Nottinghamshire County Council,1111/1001,Children and Young People,CYP,Third Party Payments,EGA,23/04/2012,01-13641,54073.64,Pathway Care Solutions Ltd,,,,,,,,,
Nottinghamshire County Council,1111/1001,Children and Young People,CYP,Third Party Payments,EGA,23/04/2012,01-13642,58690.5,Pathway Care Solutions Ltd,,,,,,,,,
Nottinghamshire County Council,1111/1001,Children and Young People,CYP,Third Party Payments,EGA,23/04/2012,01-13644,58690.5,Pathway Care Solutions Ltd,,,,,,,,,
Nottinghamshire County Council,1111/1001,Children and Young People,CYP,Third Party Payments,EGA,23/04/2012,01-13645,54073.64,Pathway Care Solutions Ltd,,,,,,,,,
Nottinghamshire County Council,1111/1001,Children and Young People,CYP,Third Party Payments,EGA,23/04/2012,01-13646,1977.15,Heronridge Homes Ltd,,,,,,,,,
Nottinghamshire County Council,1111/1001,Children and Young People,CYP,Third Party Payments,EGA,23/04/2012,01-13647,54073.64,Pathway Care Solutions Ltd,,,,,,,,,
Nottinghamshire County Council,1111/1001,Children and Young People,CYP,Third Party Payments,EGA,24/04/2012,01-12988,7600.32,Saville House School,,,,,,,,,
Nottinghamshire County Council,1111/1001,Children and Young People,CYP,Third Party Payments,EGA,24/04/2012,01-13689,5351.89,Shaping Futures Ltd,,,,,,,,,
Nottinghamshire County Council,1111/1001,Children and Young People,CYP,Third Party Payments,EGA,24/04/2012,01-13703,55005.67,Cheadle Royal Hospital,,,,,,,,,
Nottinghamshire County Council,1111/1001,Children and Young People,CYP,Third Party Payments,EGA,24/04/2012,01-14574,1860,Woodthorpe Manor Nursing Home,,,,,,,,,
Nottinghamshire County Council,1111/1001,Children and Young People,CYP,Third Party Payments,EGA,24/04/2012,01-16420,3535.5,Capstone Foster Care Ltd,,,,,,,,,
Nottinghamshire County Council,1111/1001,Children and Young People,CYP,Third Party Payments,EGA,24/04/2012,01-16421,2474.85,Capstone Foster Care Ltd,,,,,,,,,
Nottinghamshire County Council,1111/1001,Children and Young People,CYP,Third Party Payments,EGA,24/04/2012,01-16431,36988.5,Heronridge Homes Ltd,,,,,,,,,
Nottinghamshire County Council,1111/1001,Children and Young People,CYP,Third Party Payments,EGA,24/04/2012,01-16436,633.46,Real Education Ltd,,,,,,,,,
Nottinghamshire County Council,1111/1001,Children and Young People,CYP,Third Party Payments,EGA,24/04/2012,01-16437,58690.49,Pathway Care Solutions Ltd,,,,,,,,,
Nottinghamshire County Council,1111/1001,Children and Young People,CYP,Third Party Payments,EGA,24/04/2012,01-16441,67293.89,Pathway Care Solutions Ltd,,,,,,,,,
Nottinghamshire County Council,1111/1001,Children and Young People,CYP,Third Party Payments,EGA,24/04/2012,01-16445,54073.64,Pathway Care Solutions Ltd,,,,,,,,,
Nottinghamshire County Council,1111/1001,Children and Young People,CYP,Third Party Payments,EGA,24/04/2012,01-16449,3290.65,The National Fostering Agency,,,,,,,,,
Nottinghamshire County Council,1111/1001,Children and Young People,CYP,Third Party Payments,EGA,24/04/2012,01-16450,1998.23,Jay Fostering,,,,,,,,,
Nottinghamshire County Council,1111/1001,Children and Young People,CYP,Third Party Payments,EGA,24/04/2012,01-16451,2961.09,Jay Fostering,,,,,,,,,
Nottinghamshire County Council,1111/1001,Children and Young People,CYP,Third Party Payments,EGA,25/04/2012,01-12968,23929.13,Longdale Nursery School,,,,,,,,,
Nottinghamshire County Council,1111/1001,Children and Young People,CYP,Third Party Payments,EGA,25/04/2012,01-12982,8405.22,Cherubs Childrens Centre Pleasley,,,,,,,,,
Nottinghamshire County Council,1111/1001,Children and Young People,CYP,Third Party Payments,EGA,25/04/2012,01-12984,11664.38,Cherubs Childcare Centre (Mansfield,,,,,,,,,
Nottinghamshire County Council,1111/1001,Children and Young People,CYP,Third Party Payments,EGA,26/04/2012,01-12908,3467.66,Barnardo Services Ltd,,,,,,,,,
Nottinghamshire County Council,1111/1001,Children and Young People,CYP,Third Party Payments,EGA,26/04/2012,01-13594,1543.82,The Wolds Day Nursery,,,,,,,,,
Nottinghamshire County Council,1111/1001,Children and Young People,CYP,Third Party Payments,EGA,26/04/2012,01-16618,1285.25,Wollaton Village Day Nurseries Ltd.,,,,,,,,,
Nottinghamshire County Council,1111/1001,Children and Young People,CYP,Third Party Payments,EGA,26/04/2012,01-16619,882.7,Wollaton Village Day Nurseries Ltd.,,,,,,,,,
Nottinghamshire County Council,1111/1001,Children and Young People,CYP,Third Party Payments,EGA,26/04/2012,01-16620,1067,Papermoon Day Nursery Sutton In Ash,,,,,,,,,
Nottinghamshire County Council,1111/1001,Children and Young People,CYP,Third Party Payments,EGA,26/04/2012,01-16621,533.5,Brookhill House Day Nursery,,,,,,,,,
Nottinghamshire County Council,1111/1001,Children and Young People,CYP,Third Party Payments,EGA,26/04/2012,01-16848,1029.21,Sparkle Daycare,,,,,,,,,
Nottinghamshire County Council,1111/1001,Children and Young People,CYP,Third Party Payments,EGA,26/04/2012,01-16849,40036.27,Barnby Road Academy Prim & Nursery,,,,,,,,,
Nottinghamshire County Council,1111/1001,Children and Young People,CYP,Third Party Payments,EGA,26/04/2012,01-16850,26759.46,Norbridge Academy Trust,,,,,,,,,
Nottinghamshire County Council,1111/1001,Children and Young People,CYP,Third Party Payments,EGA,26/04/2012,01-16851,15438.15,Bramcote Pre-School Playgroup,,,,,,,,,
Nottinghamshire County Council,1111/1001,Children and Young People,CYP,Third Party Payments,EGA,26/04/2012,01-16852,3435.98,Portland Place Pre-School,,,,,,,,,
Nottinghamshire County Council,1111/1001,Children and Young People,CYP,Third Party Payments,EGA,26/04/2012,01-16853,6166.68,Sunbeams Pre-School,,,,,,,,,
Nottinghamshire County Council,1111/1001,Children and Young People,CYP,Third Party Payments,EGA,27/04/2012,01-10459,640.2,All Aboard Day Nursery,,,,,,,,,
Nottinghamshire County Council,1111/1001,Children and Young People,CYP,Third Party Payments,EGA,27/04/2012,01-10461,887.55,Sutton Nursery Children'S Centre,,,,,,,,,
Nottinghamshire County Council,1111/1001,Children and Young People,CYP,Third Party Payments,EGA,27/04/2012,01-12176,1543.82,Newstead Children's Centre,,,,,,,,,
Nottinghamshire County Council,1111/1001,Children and Young People,CYP,Third Party Payments,EGA,27/04/2012,01-12923,11576.95,G4S Care & Justice Services (UK) Li,,,,,,,,,
Nottinghamshire County Council,1111/1001,Children and Young People,CYP,Third Party Payments,EGA,27/04/2012,01-16903,3481.92,The National Fostering Agency,,,,,,,,,
Nottinghamshire County Council,1111/1001,Children and Young People,CYP,Third Party Payments,EGA,27/04/2012,01-16904,3858.01,Foster Care Associates Ltd,,,,,,,,,
Nottinghamshire County Council,1111/1001,Children and Young People,CYP,Third Party Payments,EGA,27/04/2012,01-16905,3300.57,The National Fostering Agency,,,,,,,,,
Nottinghamshire County Council,1111/1001,Children and Young People,CYP,Third Party Payments,EGA,27/04/2012,01-16906,1322.75,Acorn Fostering Services Ltd,,,,,,,,,
Nottinghamshire County Council,1111/1001,Children and Young People,CYP,Third Party Payments,EGA,27/04/2012,01-16907,3655.5,Team Fostering,,,,,,,,,
Nottinghamshire County Council,1111/1001,Children and Young People,CYP,Third Party Payments,EGA,27/04/2012,01-16908,1862.11,Foster Care Associates Ltd,,,,,,,,,
Nottinghamshire County Council,1111/1001,Children and Young People,CYP,Third Party Payments,EGA,27/04/2012,01-16909,1542.86,Capstone Care Provider Limited,,,,,,,,,
Nottinghamshire County Council,1111/1001,Children and Young People,CYP,Third Party Payments,EGA,27/04/2012,01-16910,3190,Fostering People Ltd,,,,,,,,,
Nottinghamshire County Council,1111/1001,Children and Young People,CYP,Third Party Payments,EGA,27/04/2012,01-16911,3325.14,Fostering Solutions Ltd,,,,,,,,,
Nottinghamshire County Council,1111/1001,Children and Young People,CYP,Third Party Payments,EGA,27/04/2012,01-16912,3158.88,Fostering Solutions Ltd,,,,,,,,,
Nottinghamshire County Council,1111/1001,Children and Young People,CYP,Third Party Payments,EGA,27/04/2012,01-16913,3325.14,Fostering Solutions Ltd,,,,,,,,,
Nottinghamshire County Council,1111/1001,Children and Young People,CYP,Third Party Payments,EGA,27/04/2012,01-16914,3158.88,Fostering Solutions Ltd,,,,,,,,,
Nottinghamshire County Council,1111/1001,Children and Young People,CYP,Third Party Payments,EGA,27/04/2012,01-16915,3325.14,Fostering Solutions Ltd,,,,,,,,,
Nottinghamshire County Council,1111/1001,Children and Young People,CYP,Third Party Payments,EGA,27/04/2012,01-16916,3325.14,Fostering Solutions Ltd,,,,,,,,,
Nottinghamshire County Council,1111/1001,Children and Young People,CYP,Third Party Payments,EGA,27/04/2012,01-16917,3325.14,Fostering Solutions Ltd,,,,,,,,,
Nottinghamshire County Council,1111/1001,Children and Young People,CYP,Third Party Payments,EGA,27/04/2012,01-16918,3158.88,Fostering Solutions Ltd,,,,,,,,,
Nottinghamshire County Council,1111/1001,Children and Young People,CYP,Third Party Payments,EGA,27/04/2012,01-16919,38185.75,Cheadle Royal Hospital,,,,,,,,,
Nottinghamshire County Council,1111/1001,Children and Young People,CYP,Third Party Payments,EGA,27/04/2012,01-16920,36883,Wings Education Ltd,,,,,,,,,
Nottinghamshire County Council,1111/1001,Children and Young People,CYP,Third Party Payments,EGA,27/04/2012,01-16921,4385,Woodard Schools (Notts) Ltd,,,,,,,,,
Nottinghamshire County Council,1111/1001,Children and Young People,CYP,Third Party Payments,EGA,27/04/2012,01-16922,3290.65,The National Fostering Agency,,,,,,,,,
Nottinghamshire County Council,1111/1001,Children and Young People,CYP,Third Party Payments,EGA,27/04/2012,01-16923,3002.57,Barnardo Services Ltd,,,,,,,,,
Nottinghamshire County Council,1111/1001,Children and Young People,CYP,Third Party Payments,EGA,27/04/2012,01-16924,3082.95,The National Fostering Agency,,,,,,,,,
Nottinghamshire County Council,1111/1001,Children and Young People,CYP,Third Party Payments,EGA,27/04/2012,01-16925,3481.92,The National Fostering Agency,,,,,,,,,
Nottinghamshire County Council,1111/1001,Children and Young People,CYP,Third Party Payments,EGA,27/04/2012,01-16926,3260.58,Jay Fostering,,,,,,,,,
Nottinghamshire County Council,1111/1001,Children and Young People,CYP,Third Party Payments,EGA,27/04/2012,01-16927,1061.06,Fostering Solutions Ltd,,,,,,,,,
Nottinghamshire County Council,1111/1001,Children and Young People,CYP,Third Party Payments,EGA,27/04/2012,01-16928,58690.5,Pathway Care Solutions II Ltd,,,,,,,,,
Nottinghamshire County Council,1111/1001,Children and Young People,CYP,Third Party Payments,EGA,27/04/2012,01-16929,58690.49,Pathway Care Solutions II Ltd,,,,,,,,,
Nottinghamshire County Council,1111/1001,Children and Young People,CYP,Third Party Payments,EGA,27/04/2012,01-16930,67293.89,Pathway Care Solutions II Ltd,,,,,,,,,
Nottinghamshire County Council,1111/1001,Children and Young People,CYP,Third Party Payments,EGA,27/04/2012,01-16932,3290.65,The National Fostering Agency,,,,,,,,,
Nottinghamshire County Council,1111/1001,Children and Young People,CYP,Third Party Payments,EGA,27/04/2012,01-16933,3660.21,By The Bridge,,,,,,,,,
Nottinghamshire County Council,1111/1001,Children and Young People,CYP,Third Party Payments,EGA,27/04/2012,01-16934,3852.86,By The Bridge,,,,,,,,,
Nottinghamshire County Council,1111/1001,Children and Young People,CYP,Third Party Payments,EGA,27/04/2012,01-16935,12000,Blue Mountain Homes Ltd,,,,,,,,,
Nottinghamshire County Council,1111/1001,Children and Young People,CYP,Third Party Payments,EGA,27/04/2012,01-16936,1846.2,Foster Care Associates Ltd,,,,,,,,,
Nottinghamshire County Council,1111/1001,Children and Young People,CYP,Third Party Payments,EGA,27/04/2012,01-16937,2501.16,Newark Emmaus Trust,,,,,,,,,
Nottinghamshire County Council,1111/1001,Children and Young People,CYP,Third Party Payments,EGA,27/04/2012,01-16938,10285.71,Northerncare,,,,,,,,,
Nottinghamshire County Council,1111/1001,Children and Young People,CYP,Third Party Payments,EGA,27/04/2012,01-16939,13870,The William Henry Smith School,,,,,,,,,
Nottinghamshire County Council,1111/1001,Children and Young People,CYP,Third Party Payments,EGA,27/04/2012,01-16940,67293.89,Pathway Care Solutions Ltd,,,,,,,,,
Nottinghamshire County Council,1111/1001,Children and Young People,CYP,Third Party Payments,EGA,27/04/2012,01-16941,2000,Chrysalis Associates Ltd,,,,,,,,,
Nottinghamshire County Council,1111/1001,Children and Young People,CYP,Third Party Payments,EGA,27/04/2012,01-17266,1080,Spencer Bell,,,,,,,,,
Nottinghamshire County Council,1111/1001,Children and Young People,CYP,Third Party Payments,EGA,30/04/2012,01-11351,3161.65,Alliance Foster Care,,,,,,,,,
Nottinghamshire County Council,1111/1001,Children and Young People,CYP,Third Party Payments,EGA,30/04/2012,01-12026,3478.2,Anglia Fostering Agency,,,,,,,,,
Nottinghamshire County Council,1111/1001,Children and Young People,CYP,Third Party Payments,EGA,30/04/2012,01-16931,5797.62,Lincolnshire County Council,,,,,,,,,
Nottinghamshire County Council,1111/1001,Children and Young People,CYP,Third Party Payments,EGA,30/04/2012,01-17035,1324.05,Homestead Day Nursery,,,,,,,,,
Nottinghamshire County Council,1111/1001,Children and Young People,CYP,Third Party Payments,EGA,30/04/2012,01-17036,848.75,Claremont Early Years Ltd,,,,,,,,,
Nottinghamshire County Council,1111/1001,Children and Young People,CYP,Third Party Payments,EGA,30/04/2012,01-17037,1324.05,Lilliput Day Nursery (The Canch),,,,,,,,,
Nottinghamshire County Council,1111/1001,Children and Young People,CYP,Third Party Payments,EGA,30/04/2012,01-17038,1629.6,Granby House Nursery,,,,,,,,,
Nottinghamshire County Council,1111/1001,Children and Young People,CYP,Third Party Payments,EGA,30/04/2012,01-17039,1765.4,West Street Pre-School,,,,,,,,,
Nottinghamshire County Council,1111/1001,Children and Young People,CYP,Third Party Payments,EGA,30/04/2012,01-17040,1982.68,The Learning Tree Day Nursery 2,,,,,,,,,
Nottinghamshire County Council,1111/1001,Children and Young People,CYP,Third Party Payments,EGA,30/04/2012,01-17041,1290.1,Oceans Day Nursery,,,,,,,,,
Nottinghamshire County Council,1111/1001,Children and Young People,CYP,Third Party Payments,EGA,30/04/2012,01-17042,1324.05,Cherubs Childrens Centre Wynndale,,,,,,,,,
Nottinghamshire County Council,1111/1001,Children and Young People,CYP,Third Party Payments,EGA,30/04/2012,01-17043,1600.05,Papermoon Day Nursery,,,,,,,,,
Nottinghamshire County Council,1111/1001,Children and Young People,CYP,Third Party Payments,EGA,30/04/2012,01-17299,516.6,Mencap Accounts Region 2,,,,,,,,,
Nottinghamshire County Council,1111/1001,Children and Young People,CYP,Third Party Payments,EGA,30/04/2012,01-17306,700,Nottingham City Council,,,,,,,,,
Nottinghamshire County Council,1111/1001,Children and Young People,CYP,Third Party Payments,EHA,05/04/2012,01-10052,9000,Barnardos,,,,,,,,,
Nottinghamshire County Council,1111/1001,Children and Young People,CYP,Third Party Payments,EHA,12/04/2012,01-11946,860,Dfw Adoption,,,,,,,,,
Nottinghamshire County Council,1111/1001,Children and Young People,CYP,Third Party Payments,EHA,17/04/2012,01-12863,28859.6,Faith In Families,,,,,,,,,
Nottinghamshire County Council,1111/1001,Children and Young People,CYP,Transfer Payments,GAA,24/04/2012,01-13697,9100,Tring Park School,,,,,,,,,
Nottinghamshire County Council,1111/1001,Children and Young People,CYP,Transfer Payments,GAA,24/04/2012,01-13698,9100,Tring Park School,,,,,,,,,
Nottinghamshire County Council,1111/1001,Children and Young People,CYP,Transfer Payments,GAA,25/04/2012,01-16503,1179,Cedar Housing Nottingham,,,,,,,,,
Nottinghamshire County Council,1111/1001,Children and Young People,CYP,Support Services,HAA,05/04/2012,01-10239,19379.91,Nottinghamshire Healthcare Nhs Trus,,,,,,,,,
Nottinghamshire County Council,1111/1001,Children and Young People,CYP,Support Services,HAA,05/04/2012,01-11355,3718,Midland Fleet Maintenance,,,,,,,,,
Nottinghamshire County Council,1111/1001,Children and Young People,CYP,Support Services,HAA,05/04/2012,01-11372,15,Dunn Motor Traction,,,,,,,,,
Nottinghamshire County Council,1111/1001,Children and Young People,CYP,Support Services,HAA,05/04/2012,01-11373,1562.41,Dunn Motor Traction,,,,,,,,,
Nottinghamshire County Council,1111/1001,Children and Young People,CYP,Support Services,HAA,05/04/2012,01-11374,2788.76,Dunn Motor Traction,,,,,,,,,
Nottinghamshire County Council,1111/1001,Children and Young People,CYP,Support Services,HAA,05/04/2012,01-11375,8266.53,Dunn Motor Traction,,,,,,,,,
Nottinghamshire County Council,1111/1001,Children and Young People,CYP,Support Services,HAA,05/04/2012,01-11376,5386.5,Dunn Motor Traction,,,,,,,,,
Nottinghamshire County Council,1111/1001,Children and Young People,CYP,Support Services,HAA,05/04/2012,01-11379,3339.82,Nottm City Transport Ltd,,,,,,,,,
Nottinghamshire County Council,1111/1001,Children and Young People,CYP,Support Services,HAA,11/04/2012,01-11631,1320,Kirkhams Coaches,,,,,,,,,
Nottinghamshire County Council,1111/1001,Children and Young People,CYP,Support Services,HAA,11/04/2012,01-11634,660,Ace Of Mansfield Ltd,,,,,,,,,
Nottinghamshire County Council,1111/1001,Children and Young People,CYP,Support Services,HAA,11/04/2012,01-11637,2320,Arnold Acorn Travel,,,,,,,,,
Nottinghamshire County Council,1111/1001,Children and Young People,CYP,Support Services,HAA,11/04/2012,01-11754,1441,AOT Coaches,,,,,,,,,
Nottinghamshire County Council,1111/1001,Children and Young People,CYP,Support Services,HAA,11/04/2012,01-11755,1979.54,AOT Coaches,,,,,,,,,
Nottinghamshire County Council,1111/1001,Children and Young People,CYP,Support Services,HAA,11/04/2012,01-11756,3227.18,AOT Coaches,,,,,,,,,
Nottinghamshire County Council,1111/1001,Children and Young People,CYP,Support Services,HAA,11/04/2012,01-11757,2535.15,AOT Coaches,,,,,,,,,
Nottinghamshire County Council,1111/1001,Children and Young People,CYP,Support Services,HAA,11/04/2012,01-11758,2895.17,AOT Coaches,,,,,,,,,
Nottinghamshire County Council,1111/1001,Children and Young People,CYP,Support Services,HAA,11/04/2012,01-11759,2146.58,AOT Coaches,,,,,,,,,
Nottinghamshire County Council,1111/1001,Children and Young People,CYP,Support Services,HAA,11/04/2012,01-11764,1164,Nottm Minibuses & Coaches,,,,,,,,,
Nottinghamshire County Council,1111/1001,Children and Young People,CYP,Support Services,HAA,11/04/2012,01-11765,27.9,Nottm Minibuses & Coaches,,,,,,,,,
Nottinghamshire County Council,1111/1001,Children and Young People,CYP,Support Services,HAA,11/04/2012,01-11769,2928.85,Freeway Coaches Ltd,,,,,,,,,
Nottinghamshire County Council,1111/1001,Children and Young People,CYP,Support Services,HAA,11/04/2012,01-11770,2963.49,Freeway Coaches Ltd,,,,,,,,,
Nottinghamshire County Council,1111/1001,Children and Young People,CYP,Support Services,HAA,11/04/2012,01-11771,2802.8,Freeway Coaches Ltd,,,,,,,,,
Nottinghamshire County Council,1111/1001,Children and Young People,CYP,Support Services,HAA,11/04/2012,01-11778,4414.8,Wallis Coachways,,,,,,,,,
Nottinghamshire County Council,1111/1001,Children and Young People,CYP,Support Services,HAA,11/04/2012,01-11779,2164.88,Wallis Coachways,,,,,,,,,
Nottinghamshire County Council,1111/1001,Children and Young People,CYP,Support Services,HAA,13/04/2012,01-10323,1997.15,Trent Motor Traction Company Ltd,,,,,,,,,
Nottinghamshire County Council,1111/1001,Children and Young People,CYP,Support Services,HAA,13/04/2012,01-10329,831.25,Trent Motor Traction Company Ltd,,,,,,,,,
